Organisation Name,Organisation Code,Unique Ref No,Effective Date,Directorate  where expenditure incurred,Supplier Name,Payment Date,Net Amount,Procurement Classification (Higher Level),Purpose of Spend,Procurement Classification (Lower Level),Capital/Revenue
Walsall Council,http://opendatacommunities.org/id/metropolitan-district-council/walsall,WC108-01,30/09/2019,Resources and Transformation,2BM LIMITED,06/09/2019,"1,197.00",63800-COMPUTER EQUIPMENT AND SUPPLIES,Supplies & Services,Communications & Computing,Revenue
Walsall Council,http://opendatacommunities.org/id/metropolitan-district-council/walsall,WC108-02,30/09/2019,Resources and Transformation,4 SIGHT EYECARE CENTRE 002,04/09/2019,500.00,63000-PROFESSIONAL FEES AND SERVICES,Supplies & Services,Services,Revenue
Walsall Council,http://opendatacommunities.org/id/metropolitan-district-council/walsall,WC108-03,30/09/2019,Adult Social Care,5 CARE SERVICES LTD,12/09/2019,310.70,73507-DOMICILIARY CARE,Third Party Payments,Private Contractor Fees,Revenue
Walsall Council,http://opendatacommunities.org/id/metropolitan-district-council/walsall,WC108-04,30/09/2019,Adult Social Care,5 CARE SERVICES LTD,12/09/2019,328.63,73507-DOMICILIARY CARE,Third Party Payments,Private Contractor Fees,Revenue
Walsall Council,http://opendatacommunities.org/id/metropolitan-district-council/walsall,WC108-05,30/09/2019,Adult Social Care,5 CARE SERVICES LTD,12/09/2019,332.21,73507-DOMICILIARY CARE,Third Party Payments,Private Contractor Fees,Revenue
Walsall Council,http://opendatacommunities.org/id/metropolitan-district-council/walsall,WC108-06,30/09/2019,Adult Social Care,5 CARE SERVICES LTD,12/09/2019,339.34,73507-DOMICILIARY CARE,Third Party Payments,Private Contractor Fees,Revenue
Walsall Council,http://opendatacommunities.org/id/metropolitan-district-council/walsall,WC108-07,30/09/2019,Adult Social Care,5 CARE SERVICES LTD,12/09/2019,339.38,73507-DOMICILIARY CARE,Third Party Payments,Private Contractor Fees,Revenue
Walsall Council,http://opendatacommunities.org/id/metropolitan-district-council/walsall,WC108-08,30/09/2019,Adult Social Care,5 CARE SERVICES LTD,12/09/2019,361.85,73507-DOMICILIARY CARE,Third Party Payments,Private Contractor Fees,Revenue
Walsall Council,http://opendatacommunities.org/id/metropolitan-district-council/walsall,WC108-09,30/09/2019,Adult Social Care,5 CARE SERVICES LTD,12/09/2019,372.66,73507-DOMICILIARY CARE,Third Party Payments,Private Contractor Fees,Revenue
Walsall Council,http://opendatacommunities.org/id/metropolitan-district-council/walsall,WC108-10,30/09/2019,Adult Social Care,5 CARE SERVICES LTD,12/09/2019,382.41,73507-DOMICILIARY CARE,Third Party Payments,Private Contractor Fees,Revenue
Walsall Council,http://opendatacommunities.org/id/metropolitan-district-council/walsall,WC108-11,30/09/2019,Adult Social Care,5 CARE SERVICES LTD,12/09/2019,382.41,73507-DOMICILIARY CARE,Third Party Payments,Private Contractor Fees,Revenue
Walsall Council,http://opendatacommunities.org/id/metropolitan-district-council/walsall,WC108-12,30/09/2019,Adult Social Care,5 CARE SERVICES LTD,12/09/2019,387.18,73507-DOMICILIARY CARE,Third Party Payments,Private Contractor Fees,Revenue
Walsall Council,http://opendatacommunities.org/id/metropolitan-district-council/walsall,WC108-13,30/09/2019,Adult Social Care,5 CARE SERVICES LTD,12/09/2019,399.13,73507-DOMICILIARY CARE,Third Party Payments,Private Contractor Fees,Revenue
Walsall Council,http://opendatacommunities.org/id/metropolitan-district-council/walsall,WC108-14,30/09/2019,Adult Social Care,5 CARE SERVICES LTD,12/09/2019,412.32,73507-DOMICILIARY CARE,Third Party Payments,Private Contractor Fees,Revenue
Walsall Council,http://opendatacommunities.org/id/metropolitan-district-council/walsall,WC108-15,30/09/2019,Adult Social Care,5 CARE SERVICES LTD,12/09/2019,419.47,73507-DOMICILIARY CARE,Third Party Payments,Private Contractor Fees,Revenue
Walsall Council,http://opendatacommunities.org/id/metropolitan-district-council/walsall,WC108-16,30/09/2019,Adult Social Care,5 CARE SERVICES LTD,12/09/2019,424.09,73507-DOMICILIARY CARE,Third Party Payments,Private Contractor Fees,Revenue
Walsall Council,http://opendatacommunities.org/id/metropolitan-district-council/walsall,WC108-17,30/09/2019,Adult Social Care,5 CARE SERVICES LTD,12/09/2019,455.30,73507-DOMICILIARY CARE,Third Party Payments,Private Contractor Fees,Revenue
Walsall Council,http://opendatacommunities.org/id/metropolitan-district-council/walsall,WC108-18,30/09/2019,Adult Social Care,5 CARE SERVICES LTD,12/09/2019,468.44,73507-DOMICILIARY CARE,Third Party Payments,Private Contractor Fees,Revenue
Walsall Council,http://opendatacommunities.org/id/metropolitan-district-council/walsall,WC108-19,30/09/2019,Adult Social Care,5 CARE SERVICES LTD,12/09/2019,470.84,73507-DOMICILIARY CARE,Third Party Payments,Private Contractor Fees,Revenue
Walsall Council,http://opendatacommunities.org/id/metropolitan-district-council/walsall,WC108-20,30/09/2019,Adult Social Care,5 CARE SERVICES LTD,12/09/2019,472.03,73507-DOMICILIARY CARE,Third Party Payments,Private Contractor Fees,Revenue
Walsall Council,http://opendatacommunities.org/id/metropolitan-district-council/walsall,WC108-21,30/09/2019,Adult Social Care,5 CARE SERVICES LTD,12/09/2019,476.68,73507-DOMICILIARY CARE,Third Party Payments,Private Contractor Fees,Revenue
Walsall Council,http://opendatacommunities.org/id/metropolitan-district-council/walsall,WC108-22,30/09/2019,Adult Social Care,5 CARE SERVICES LTD,02/09/2019,480.32,73025-PROFESSIONAL SERVICES-PRIV CONTRACTOR & OTHER AGENCIES,Third Party Payments,Private Contractor Fees,Revenue
Walsall Council,http://opendatacommunities.org/id/metropolitan-district-council/walsall,WC108-23,30/09/2019,Adult Social Care,5 CARE SERVICES LTD,12/09/2019,481.59,73507-DOMICILIARY CARE,Third Party Payments,Private Contractor Fees,Revenue
Walsall Council,http://opendatacommunities.org/id/metropolitan-district-council/walsall,WC108-24,30/09/2019,Adult Social Care,5 CARE SERVICES LTD,12/09/2019,491.15,73507-DOMICILIARY CARE,Third Party Payments,Private Contractor Fees,Revenue
Walsall Council,http://opendatacommunities.org/id/metropolitan-district-council/walsall,WC108-25,30/09/2019,Adult Social Care,5 CARE SERVICES LTD,12/09/2019,516.00,73507-DOMICILIARY CARE,Third Party Payments,Private Contractor Fees,Revenue
Walsall Council,http://opendatacommunities.org/id/metropolitan-district-council/walsall,WC108-26,30/09/2019,Adult Social Care,5 CARE SERVICES LTD,12/09/2019,553.23,73507-DOMICILIARY CARE,Third Party Payments,Private Contractor Fees,Revenue
Walsall Council,http://opendatacommunities.org/id/metropolitan-district-council/walsall,WC108-27,30/09/2019,Adult Social Care,5 CARE SERVICES LTD,12/09/2019,566.43,73507-DOMICILIARY CARE,Third Party Payments,Private Contractor Fees,Revenue
Walsall Council,http://opendatacommunities.org/id/metropolitan-district-council/walsall,WC108-28,30/09/2019,Adult Social Care,5 CARE SERVICES LTD,12/09/2019,572.25,73507-DOMICILIARY CARE,Third Party Payments,Private Contractor Fees,Revenue
Walsall Council,http://opendatacommunities.org/id/metropolitan-district-council/walsall,WC108-29,30/09/2019,Adult Social Care,5 CARE SERVICES LTD,12/09/2019,604.67,73507-DOMICILIARY CARE,Third Party Payments,Private Contractor Fees,Revenue
Walsall Council,http://opendatacommunities.org/id/metropolitan-district-council/walsall,WC108-30,30/09/2019,Adult Social Care,5 CARE SERVICES LTD,12/09/2019,627.38,73507-DOMICILIARY CARE,Third Party Payments,Private Contractor Fees,Revenue
Walsall Council,http://opendatacommunities.org/id/metropolitan-district-council/walsall,WC108-31,30/09/2019,Adult Social Care,5 CARE SERVICES LTD,12/09/2019,732.52,73507-DOMICILIARY CARE,Third Party Payments,Private Contractor Fees,Revenue
Walsall Council,http://opendatacommunities.org/id/metropolitan-district-council/walsall,WC108-32,30/09/2019,Adult Social Care,5 CARE SERVICES LTD,12/09/2019,740.92,73507-DOMICILIARY CARE,Third Party Payments,Private Contractor Fees,Revenue
Walsall Council,http://opendatacommunities.org/id/metropolitan-district-council/walsall,WC108-33,30/09/2019,Adult Social Care,5 CARE SERVICES LTD,20/09/2019,752.74,73025-PROFESSIONAL SERVICES-PRIV CONTRACTOR & OTHER AGENCIES,Third Party Payments,Private Contractor Fees,Revenue
Walsall Council,http://opendatacommunities.org/id/metropolitan-district-council/walsall,WC108-34,30/09/2019,Adult Social Care,5 CARE SERVICES LTD,12/09/2019,757.52,73507-DOMICILIARY CARE,Third Party Payments,Private Contractor Fees,Revenue
Walsall Council,http://opendatacommunities.org/id/metropolitan-district-council/walsall,WC108-35,30/09/2019,Adult Social Care,5 CARE SERVICES LTD,12/09/2019,763.61,73507-DOMICILIARY CARE,Third Party Payments,Private Contractor Fees,Revenue
Walsall Council,http://opendatacommunities.org/id/metropolitan-district-council/walsall,WC108-36,30/09/2019,Adult Social Care,5 CARE SERVICES LTD,12/09/2019,767.05,73507-DOMICILIARY CARE,Third Party Payments,Private Contractor Fees,Revenue
Walsall Council,http://opendatacommunities.org/id/metropolitan-district-council/walsall,WC108-37,30/09/2019,Adult Social Care,5 CARE SERVICES LTD,12/09/2019,775.56,73507-DOMICILIARY CARE,Third Party Payments,Private Contractor Fees,Revenue
Walsall Council,http://opendatacommunities.org/id/metropolitan-district-council/walsall,WC108-38,30/09/2019,Adult Social Care,5 CARE SERVICES LTD,12/09/2019,786.31,73507-DOMICILIARY CARE,Third Party Payments,Private Contractor Fees,Revenue
Walsall Council,http://opendatacommunities.org/id/metropolitan-district-council/walsall,WC108-39,30/09/2019,Adult Social Care,5 CARE SERVICES LTD,12/09/2019,827.86,73507-DOMICILIARY CARE,Third Party Payments,Private Contractor Fees,Revenue
Walsall Council,http://opendatacommunities.org/id/metropolitan-district-council/walsall,WC108-40,30/09/2019,Adult Social Care,5 CARE SERVICES LTD,12/09/2019,893.72,73507-DOMICILIARY CARE,Third Party Payments,Private Contractor Fees,Revenue
Walsall Council,http://opendatacommunities.org/id/metropolitan-district-council/walsall,WC108-41,30/09/2019,Adult Social Care,5 CARE SERVICES LTD,12/09/2019,909.26,73507-DOMICILIARY CARE,Third Party Payments,Private Contractor Fees,Revenue
Walsall Council,http://opendatacommunities.org/id/metropolitan-district-council/walsall,WC108-42,30/09/2019,Adult Social Care,5 CARE SERVICES LTD,12/09/2019,965.50,73507-DOMICILIARY CARE,Third Party Payments,Private Contractor Fees,Revenue
Walsall Council,http://opendatacommunities.org/id/metropolitan-district-council/walsall,WC108-43,30/09/2019,Adult Social Care,5 CARE SERVICES LTD,12/09/2019,996.04,73507-DOMICILIARY CARE,Third Party Payments,Private Contractor Fees,Revenue
Walsall Council,http://opendatacommunities.org/id/metropolitan-district-council/walsall,WC108-44,30/09/2019,Adult Social Care,5 CARE SERVICES LTD,12/09/2019,"1,078.66",73507-DOMICILIARY CARE,Third Party Payments,Private Contractor Fees,Revenue
Walsall Council,http://opendatacommunities.org/id/metropolitan-district-council/walsall,WC108-45,30/09/2019,Adult Social Care,5 CARE SERVICES LTD,12/09/2019,"1,168.71",73507-DOMICILIARY CARE,Third Party Payments,Private Contractor Fees,Revenue
Walsall Council,http://opendatacommunities.org/id/metropolitan-district-council/walsall,WC108-46,30/09/2019,Adult Social Care,5 CARE SERVICES LTD,12/09/2019,"1,216.30",73507-DOMICILIARY CARE,Third Party Payments,Private Contractor Fees,Revenue
Walsall Council,http://opendatacommunities.org/id/metropolitan-district-council/walsall,WC108-47,30/09/2019,Adult Social Care,5 CARE SERVICES LTD,12/09/2019,"1,280.76",73507-DOMICILIARY CARE,Third Party Payments,Private Contractor Fees,Revenue
Walsall Council,http://opendatacommunities.org/id/metropolitan-district-council/walsall,WC108-48,30/09/2019,Adult Social Care,5 CARE SERVICES LTD,12/09/2019,"1,357.84",73507-DOMICILIARY CARE,Third Party Payments,Private Contractor Fees,Revenue
Walsall Council,http://opendatacommunities.org/id/metropolitan-district-council/walsall,WC108-49,30/09/2019,Adult Social Care,5 CARE SERVICES LTD,12/09/2019,"1,601.24",73507-DOMICILIARY CARE,Third Party Payments,Private Contractor Fees,Revenue
Walsall Council,http://opendatacommunities.org/id/metropolitan-district-council/walsall,WC108-50,30/09/2019,Adult Social Care,5 CARE SERVICES LTD,12/09/2019,"1,613.26",73507-DOMICILIARY CARE,Third Party Payments,Private Contractor Fees,Revenue
Walsall Council,http://opendatacommunities.org/id/metropolitan-district-council/walsall,WC108-51,30/09/2019,Adult Social Care,5 CARE SERVICES LTD,12/09/2019,"1,667.94",73507-DOMICILIARY CARE,Third Party Payments,Private Contractor Fees,Revenue
Walsall Council,http://opendatacommunities.org/id/metropolitan-district-council/walsall,WC108-52,30/09/2019,Adult Social Care,5 CARE SERVICES LTD,12/09/2019,"1,826.25",73507-DOMICILIARY CARE,Third Party Payments,Private Contractor Fees,Revenue
Walsall Council,http://opendatacommunities.org/id/metropolitan-district-council/walsall,WC108-53,30/09/2019,Adult Social Care,5 CARE SERVICES LTD,12/09/2019,"1,939.08",73507-DOMICILIARY CARE,Third Party Payments,Private Contractor Fees,Revenue
Walsall Council,http://opendatacommunities.org/id/metropolitan-district-council/walsall,WC108-54,30/09/2019,Adult Social Care,5 CARE SERVICES LTD,12/09/2019,"2,133.74",73507-DOMICILIARY CARE,Third Party Payments,Private Contractor Fees,Revenue
Walsall Council,http://opendatacommunities.org/id/metropolitan-district-council/walsall,WC108-55,30/09/2019,Adult Social Care,5 CARE SERVICES LTD,12/09/2019,"3,166.93",73507-DOMICILIARY CARE,Third Party Payments,Private Contractor Fees,Revenue
Walsall Council,http://opendatacommunities.org/id/metropolitan-district-council/walsall,WC108-56,30/09/2019,Economy & Environment,A ASHTON,06/09/2019,300.00,60500-GENERAL MATERIALS,Supplies & Services,"Equip,Furniture & Materials",Revenue
Walsall Council,http://opendatacommunities.org/id/metropolitan-district-council/walsall,WC108-57,30/09/2019,Resources and Transformation,A D T FIRE AND SECURITY PLC,11/09/2019,-834.47,73002-SECURITY-PRIV CONTRACTOR FEES,Third Party Payments,Private Contractor Fees,Revenue
Walsall Council,http://opendatacommunities.org/id/metropolitan-district-council/walsall,WC108-58,30/09/2019,Resources and Transformation,A D T FIRE AND SECURITY PLC,11/09/2019,-220.05,73002-SECURITY-PRIV CONTRACTOR FEES,Third Party Payments,Private Contractor Fees,Revenue
Walsall Council,http://opendatacommunities.org/id/metropolitan-district-council/walsall,WC108-59,30/09/2019,Resources and Transformation,A D T FIRE AND SECURITY PLC,11/09/2019,274.87,73002-SECURITY-PRIV CONTRACTOR FEES,Third Party Payments,Private Contractor Fees,Revenue
Walsall Council,http://opendatacommunities.org/id/metropolitan-district-council/walsall,WC108-60,30/09/2019,Resources and Transformation,A D T FIRE AND SECURITY PLC,11/09/2019,655.87,73002-SECURITY-PRIV CONTRACTOR FEES,Third Party Payments,Private Contractor Fees,Revenue
Walsall Council,http://opendatacommunities.org/id/metropolitan-district-council/walsall,WC108-61,30/09/2019,Economy & Environment,A D T FIRE AND SECURITY PLC,03/09/2019,666.22,60500-GENERAL MATERIALS,Supplies & Services,"Equip,Furniture & Materials",Revenue
Walsall Council,http://opendatacommunities.org/id/metropolitan-district-council/walsall,WC108-62,30/09/2019,Resources and Transformation,A D T FIRE AND SECURITY PLC,11/09/2019,690.92,73002-SECURITY-PRIV CONTRACTOR FEES,Third Party Payments,Private Contractor Fees,Revenue
Walsall Council,http://opendatacommunities.org/id/metropolitan-district-council/walsall,WC108-63,30/09/2019,Economy & Environment,A D T FIRE AND SECURITY PLC,26/09/2019,890.58,40000-OPERATIONAL MAINTENANCE,Premises,Premises-Repairs & Maintenance,Revenue
Walsall Council,http://opendatacommunities.org/id/metropolitan-district-council/walsall,WC108-64,30/09/2019,Resources and Transformation,A D T FIRE AND SECURITY PLC,11/09/2019,"1,083.04",73002-SECURITY-PRIV CONTRACTOR FEES,Third Party Payments,Private Contractor Fees,Revenue
Walsall Council,http://opendatacommunities.org/id/metropolitan-district-council/walsall,WC108-65,30/09/2019,Childrens,A D T FIRE AND SECURITY PLC,12/09/2019,"1,712.40",40000-OPERATIONAL MAINTENANCE,Premises,Premises-Repairs & Maintenance,Revenue
Walsall Council,http://opendatacommunities.org/id/metropolitan-district-council/walsall,WC108-66,30/09/2019,Economy & Environment,A F BLAKEMORE & SON LTD,06/09/2019,234.70,61008-CONFECTIONERY/SNACKS-PROVISIONS,Supplies & Services,Provisions,Revenue
Walsall Council,http://opendatacommunities.org/id/metropolitan-district-council/walsall,WC108-67,30/09/2019,Economy & Environment,A F BLAKEMORE & SON LTD,27/09/2019,241.40,61016-FOOD AND BEVERAGES-PROVISIONS,Supplies & Services,Provisions,Revenue
Walsall Council,http://opendatacommunities.org/id/metropolitan-district-council/walsall,WC108-68,30/09/2019,Economy & Environment,A F BLAKEMORE & SON LTD,01/09/2019,246.77,61002-DRY FOODS-PROVISIONS,Supplies & Services,Provisions,Revenue
Walsall Council,http://opendatacommunities.org/id/metropolitan-district-council/walsall,WC108-69,30/09/2019,Economy & Environment,A F BLAKEMORE & SON LTD,25/09/2019,288.86,61000-FOOD & DRINK SUPPLIES,Supplies & Services,Provisions,Revenue
Walsall Council,http://opendatacommunities.org/id/metropolitan-district-council/walsall,WC108-70,30/09/2019,Economy & Environment,A F BLAKEMORE & SON LTD,04/09/2019,338.79,61018-DRINKS-PROVISIONS,Supplies & Services,Provisions,Revenue
Walsall Council,http://opendatacommunities.org/id/metropolitan-district-council/walsall,WC108-71,30/09/2019,Economy & Environment,A F BLAKEMORE & SON LTD,02/09/2019,380.53,61018-DRINKS-PROVISIONS,Supplies & Services,Provisions,Revenue
Walsall Council,http://opendatacommunities.org/id/metropolitan-district-council/walsall,WC108-72,30/09/2019,Adult Social Care,A F BLAKEMORE & SON LTD,20/09/2019,400.74,61016-FOOD AND BEVERAGES-PROVISIONS,Supplies & Services,Provisions,Revenue
Walsall Council,http://opendatacommunities.org/id/metropolitan-district-council/walsall,WC108-73,30/09/2019,Adult Social Care,A F BLAKEMORE & SON LTD,09/09/2019,480.34,61016-FOOD AND BEVERAGES-PROVISIONS,Supplies & Services,Provisions,Revenue
Walsall Council,http://opendatacommunities.org/id/metropolitan-district-council/walsall,WC108-74,30/09/2019,Economy & Environment,A F BLAKEMORE & SON LTD,25/09/2019,489.12,61008-CONFECTIONERY/SNACKS-PROVISIONS,Supplies & Services,Provisions,Revenue
Walsall Council,http://opendatacommunities.org/id/metropolitan-district-council/walsall,WC108-75,30/09/2019,Economy & Environment,A F BLAKEMORE & SON LTD,23/09/2019,570.22,61018-DRINKS-PROVISIONS,Supplies & Services,Provisions,Revenue
Walsall Council,http://opendatacommunities.org/id/metropolitan-district-council/walsall,WC108-76,30/09/2019,Economy & Environment,A F BLAKEMORE & SON LTD,27/09/2019,"1,252.61",61000-FOOD & DRINK SUPPLIES,Supplies & Services,Provisions,Revenue
Walsall Council,http://opendatacommunities.org/id/metropolitan-district-council/walsall,WC108-77,30/09/2019,Economy & Environment,A F BLAKEMORE & SON LTD,25/09/2019,"1,258.51",61000-FOOD & DRINK SUPPLIES,Supplies & Services,Provisions,Revenue
Walsall Council,http://opendatacommunities.org/id/metropolitan-district-council/walsall,WC108-78,30/09/2019,Resources and Transformation,AAINA COMMUNITY HUB,11/09/2019,"4,725.00",66500-GRANTS TO OTHER ORGS,Third Party Payments,Grants to Other Orgs,Revenue
Walsall Council,http://opendatacommunities.org/id/metropolitan-district-council/walsall,WC108-79,30/09/2019,Childrens,REDACTED,10/09/2019,890.15,73506-DIRECT PAYMENT,Third Party Payments,Private Contractor Fees,Revenue
Walsall Council,http://opendatacommunities.org/id/metropolitan-district-council/walsall,WC108-80,30/09/2019,Adult Social Care,ABBEY COURT NURSING & RESIDEN,16/09/2019,"1,814.96",73500-RESIDENTIAL,Third Party Payments,Private Contractor Fees,Revenue
Walsall Council,http://opendatacommunities.org/id/metropolitan-district-council/walsall,WC108-81,30/09/2019,Adult Social Care,ABBEY COURT NURSING & RESIDEN,16/09/2019,"1,972.24",73501-RESIDENTIAL EMI,Third Party Payments,Private Contractor Fees,Revenue
Walsall Council,http://opendatacommunities.org/id/metropolitan-district-council/walsall,WC108-82,30/09/2019,Adult Social Care,ABBEY COURT NURSING & RESIDEN,16/09/2019,"1,972.24",73501-RESIDENTIAL EMI,Third Party Payments,Private Contractor Fees,Revenue
Walsall Council,http://opendatacommunities.org/id/metropolitan-district-council/walsall,WC108-83,30/09/2019,Adult Social Care,ABBEY COURT NURSING & RESIDEN,16/09/2019,"1,972.24",73501-RESIDENTIAL EMI,Third Party Payments,Private Contractor Fees,Revenue
Walsall Council,http://opendatacommunities.org/id/metropolitan-district-council/walsall,WC108-84,30/09/2019,Adult Social Care,ABBEY COURT NURSING & RESIDEN,16/09/2019,"2,358.08",73503-NURSING EMI,Third Party Payments,Private Contractor Fees,Revenue
Walsall Council,http://opendatacommunities.org/id/metropolitan-district-council/walsall,WC108-85,30/09/2019,Adult Social Care,ABBEY COURT NURSING & RESIDEN,16/09/2019,"2,383.72",73502-NURSING,Third Party Payments,Private Contractor Fees,Revenue
Walsall Council,http://opendatacommunities.org/id/metropolitan-district-council/walsall,WC108-86,30/09/2019,Adult Social Care,ABBEY HEALTHCARE HOMES LTD,16/09/2019,"1,515.00",73500-RESIDENTIAL,Third Party Payments,Private Contractor Fees,Revenue
Walsall Council,http://opendatacommunities.org/id/metropolitan-district-council/walsall,WC108-87,30/09/2019,Adult Social Care,ABBEY HEALTHCARE HOMES LTD,17/09/2019,"1,607.14",73500-RESIDENTIAL,Third Party Payments,Private Contractor Fees,Revenue
Walsall Council,http://opendatacommunities.org/id/metropolitan-district-council/walsall,WC108-88,30/09/2019,Adult Social Care,ABBEY HEALTHCARE HOMES LTD,16/09/2019,"2,317.04",73500-RESIDENTIAL,Third Party Payments,Private Contractor Fees,Revenue
Walsall Council,http://opendatacommunities.org/id/metropolitan-district-council/walsall,WC108-89,30/09/2019,Adult Social Care,ABBEY HEALTHCARE HOMES LTD,16/09/2019,"3,030.00",73500-RESIDENTIAL,Third Party Payments,Private Contractor Fees,Revenue
Walsall Council,http://opendatacommunities.org/id/metropolitan-district-council/walsall,WC108-90,30/09/2019,Adult Social Care,ABBEY HEALTHCARE HOMES LTD,16/09/2019,"3,030.00",73500-RESIDENTIAL,Third Party Payments,Private Contractor Fees,Revenue
Walsall Council,http://opendatacommunities.org/id/metropolitan-district-council/walsall,WC108-91,30/09/2019,Adult Social Care,ABBEY HEALTHCARE HOMES LTD,16/09/2019,"3,030.00",73500-RESIDENTIAL,Third Party Payments,Private Contractor Fees,Revenue
Walsall Council,http://opendatacommunities.org/id/metropolitan-district-council/walsall,WC108-92,30/09/2019,Adult Social Care,ABBEY HEALTHCARE HOMES LTD,16/09/2019,"3,434.00",73500-RESIDENTIAL,Third Party Payments,Private Contractor Fees,Revenue
Walsall Council,http://opendatacommunities.org/id/metropolitan-district-council/walsall,WC108-93,30/09/2019,Adult Social Care,ABBEY HEALTHCARE HOMES LTD,16/09/2019,"3,514.44",73503-NURSING EMI,Third Party Payments,Private Contractor Fees,Revenue
Walsall Council,http://opendatacommunities.org/id/metropolitan-district-council/walsall,WC108-94,30/09/2019,Childrens,ABC DAY NURSERY (WILLENHALL) LIMITED,03/09/2019,672.00,63120-CRECHE FACILITIES-SERVICES-FEES,Supplies & Services,Other Supplies & Services,Revenue
Walsall Council,http://opendatacommunities.org/id/metropolitan-district-council/walsall,WC108-95,30/09/2019,Childrens,ABC DAY NURSERY (WILLENHALL) LIMITED,01/09/2019,"11,554.20",66505-OTHER-GRANTS TO OTHER ORGS,Third Party Payments,Grants to Other Orgs,Revenue
Walsall Council,http://opendatacommunities.org/id/metropolitan-district-council/walsall,WC108-96,30/09/2019,Childrens,ABC DAY NURSERY (WILLENHALL) LIMITED,01/09/2019,"19,183.50",66505-OTHER-GRANTS TO OTHER ORGS,Third Party Payments,Grants to Other Orgs,Revenue
Walsall Council,http://opendatacommunities.org/id/metropolitan-district-council/walsall,WC108-97,30/09/2019,Adult Social Care,REDACTED,06/09/2019,"2,499.00",73506-DIRECT PAYMENT,Third Party Payments,Private Contractor Fees,Revenue
Walsall Council,http://opendatacommunities.org/id/metropolitan-district-council/walsall,WC108-98,30/09/2019,Childrens,ABU BAKR NURSERY,01/09/2019,"18,156.60",66505-OTHER-GRANTS TO OTHER ORGS,Third Party Payments,Grants to Other Orgs,Revenue
Walsall Council,http://opendatacommunities.org/id/metropolitan-district-council/walsall,WC108-99,30/09/2019,Childrens,ABU BAKR NURSERY,01/09/2019,"35,626.50",66505-OTHER-GRANTS TO OTHER ORGS,Third Party Payments,Grants to Other Orgs,Revenue
Walsall Council,http://opendatacommunities.org/id/metropolitan-district-council/walsall,WC108-100,30/09/2019,Adult Social Care,ACCORD HOUSING ASSOCIATION LTD#135,16/09/2019,267.12,73508-COMMUNITY SUPPORTED LIVING/SUPPORTED ACCOMMODATION,Third Party Payments,Private Contractor Fees,Revenue
Walsall Council,http://opendatacommunities.org/id/metropolitan-district-council/walsall,WC108-101,30/09/2019,Adult Social Care,ACCORD HOUSING ASSOCIATION LTD#135,16/09/2019,269.67,73508-COMMUNITY SUPPORTED LIVING/SUPPORTED ACCOMMODATION,Third Party Payments,Private Contractor Fees,Revenue
Walsall Council,http://opendatacommunities.org/id/metropolitan-district-council/walsall,WC108-102,30/09/2019,Adult Social Care,ACCORD HOUSING ASSOCIATION LTD#135,16/09/2019,281.58,73507-DOMICILIARY CARE,Third Party Payments,Private Contractor Fees,Revenue
Walsall Council,http://opendatacommunities.org/id/metropolitan-district-council/walsall,WC108-103,30/09/2019,Adult Social Care,ACCORD HOUSING ASSOCIATION LTD#135,16/09/2019,310.44,73508-COMMUNITY SUPPORTED LIVING/SUPPORTED ACCOMMODATION,Third Party Payments,Private Contractor Fees,Revenue
Walsall Council,http://opendatacommunities.org/id/metropolitan-district-council/walsall,WC108-104,30/09/2019,Adult Social Care,ACCORD HOUSING ASSOCIATION LTD#135,16/09/2019,317.31,73507-DOMICILIARY CARE,Third Party Payments,Private Contractor Fees,Revenue
Walsall Council,http://opendatacommunities.org/id/metropolitan-district-council/walsall,WC108-105,30/09/2019,Adult Social Care,ACCORD HOUSING ASSOCIATION LTD#135,16/09/2019,329.55,73507-DOMICILIARY CARE,Third Party Payments,Private Contractor Fees,Revenue
Walsall Council,http://opendatacommunities.org/id/metropolitan-district-council/walsall,WC108-106,30/09/2019,Adult Social Care,ACCORD HOUSING ASSOCIATION LTD#135,16/09/2019,331.66,73507-DOMICILIARY CARE,Third Party Payments,Private Contractor Fees,Revenue
Walsall Council,http://opendatacommunities.org/id/metropolitan-district-council/walsall,WC108-107,30/09/2019,Adult Social Care,ACCORD HOUSING ASSOCIATION LTD#135,16/09/2019,334.32,73507-DOMICILIARY CARE,Third Party Payments,Private Contractor Fees,Revenue
Walsall Council,http://opendatacommunities.org/id/metropolitan-district-council/walsall,WC108-108,30/09/2019,Adult Social Care,ACCORD HOUSING ASSOCIATION LTD#135,16/09/2019,334.32,73507-DOMICILIARY CARE,Third Party Payments,Private Contractor Fees,Revenue
Walsall Council,http://opendatacommunities.org/id/metropolitan-district-council/walsall,WC108-109,30/09/2019,Adult Social Care,ACCORD HOUSING ASSOCIATION LTD#135,16/09/2019,348.21,73507-DOMICILIARY CARE,Third Party Payments,Private Contractor Fees,Revenue
Walsall Council,http://opendatacommunities.org/id/metropolitan-district-council/walsall,WC108-110,30/09/2019,Adult Social Care,ACCORD HOUSING ASSOCIATION LTD#135,16/09/2019,362.76,73507-DOMICILIARY CARE,Third Party Payments,Private Contractor Fees,Revenue
Walsall Council,http://opendatacommunities.org/id/metropolitan-district-council/walsall,WC108-111,30/09/2019,Adult Social Care,ACCORD HOUSING ASSOCIATION LTD#135,16/09/2019,376.83,73507-DOMICILIARY CARE,Third Party Payments,Private Contractor Fees,Revenue
Walsall Council,http://opendatacommunities.org/id/metropolitan-district-council/walsall,WC108-112,30/09/2019,Adult Social Care,ACCORD HOUSING ASSOCIATION LTD#135,16/09/2019,400.68,73507-DOMICILIARY CARE,Third Party Payments,Private Contractor Fees,Revenue
Walsall Council,http://opendatacommunities.org/id/metropolitan-district-council/walsall,WC108-113,30/09/2019,Adult Social Care,ACCORD HOUSING ASSOCIATION LTD#135,16/09/2019,400.68,73507-DOMICILIARY CARE,Third Party Payments,Private Contractor Fees,Revenue
Walsall Council,http://opendatacommunities.org/id/metropolitan-district-council/walsall,WC108-114,30/09/2019,Adult Social Care,ACCORD HOUSING ASSOCIATION LTD#135,16/09/2019,405.90,73507-DOMICILIARY CARE,Third Party Payments,Private Contractor Fees,Revenue
Walsall Council,http://opendatacommunities.org/id/metropolitan-district-council/walsall,WC108-115,30/09/2019,Adult Social Care,ACCORD HOUSING ASSOCIATION LTD#135,16/09/2019,444.48,73507-DOMICILIARY CARE,Third Party Payments,Private Contractor Fees,Revenue
Walsall Council,http://opendatacommunities.org/id/metropolitan-district-council/walsall,WC108-116,30/09/2019,Adult Social Care,ACCORD HOUSING ASSOCIATION LTD#135,16/09/2019,448.80,73507-DOMICILIARY CARE,Third Party Payments,Private Contractor Fees,Revenue
Walsall Council,http://opendatacommunities.org/id/metropolitan-district-council/walsall,WC108-117,30/09/2019,Adult Social Care,ACCORD HOUSING ASSOCIATION LTD#135,16/09/2019,458.00,73507-DOMICILIARY CARE,Third Party Payments,Private Contractor Fees,Revenue
Walsall Council,http://opendatacommunities.org/id/metropolitan-district-council/walsall,WC108-118,30/09/2019,Adult Social Care,ACCORD HOUSING ASSOCIATION LTD#135,16/09/2019,501.76,73507-DOMICILIARY CARE,Third Party Payments,Private Contractor Fees,Revenue
Walsall Council,http://opendatacommunities.org/id/metropolitan-district-council/walsall,WC108-119,30/09/2019,Adult Social Care,ACCORD HOUSING ASSOCIATION LTD#135,16/09/2019,510.39,73507-DOMICILIARY CARE,Third Party Payments,Private Contractor Fees,Revenue
Walsall Council,http://opendatacommunities.org/id/metropolitan-district-council/walsall,WC108-120,30/09/2019,Adult Social Care,ACCORD HOUSING ASSOCIATION LTD#135,16/09/2019,563.35,73507-DOMICILIARY CARE,Third Party Payments,Private Contractor Fees,Revenue
Walsall Council,http://opendatacommunities.org/id/metropolitan-district-council/walsall,WC108-121,30/09/2019,Adult Social Care,ACCORD HOUSING ASSOCIATION LTD#135,16/09/2019,563.76,73507-DOMICILIARY CARE,Third Party Payments,Private Contractor Fees,Revenue
Walsall Council,http://opendatacommunities.org/id/metropolitan-district-council/walsall,WC108-122,30/09/2019,Adult Social Care,ACCORD HOUSING ASSOCIATION LTD#135,16/09/2019,601.44,73507-DOMICILIARY CARE,Third Party Payments,Private Contractor Fees,Revenue
Walsall Council,http://opendatacommunities.org/id/metropolitan-district-council/walsall,WC108-123,30/09/2019,Adult Social Care,ACCORD HOUSING ASSOCIATION LTD#135,16/09/2019,668.64,73507-DOMICILIARY CARE,Third Party Payments,Private Contractor Fees,Revenue
Walsall Council,http://opendatacommunities.org/id/metropolitan-district-council/walsall,WC108-124,30/09/2019,Adult Social Care,ACCORD HOUSING ASSOCIATION LTD#135,16/09/2019,730.72,73507-DOMICILIARY CARE,Third Party Payments,Private Contractor Fees,Revenue
Walsall Council,http://opendatacommunities.org/id/metropolitan-district-council/walsall,WC108-125,30/09/2019,Adult Social Care,ACCORD HOUSING ASSOCIATION LTD#135,16/09/2019,767.07,73508-COMMUNITY SUPPORTED LIVING/SUPPORTED ACCOMMODATION,Third Party Payments,Private Contractor Fees,Revenue
Walsall Council,http://opendatacommunities.org/id/metropolitan-district-council/walsall,WC108-126,30/09/2019,Adult Social Care,ACCORD HOUSING ASSOCIATION LTD#135,16/09/2019,864.72,73507-DOMICILIARY CARE,Third Party Payments,Private Contractor Fees,Revenue
Walsall Council,http://opendatacommunities.org/id/metropolitan-district-council/walsall,WC108-127,30/09/2019,Adult Social Care,ACCORD HOUSING ASSOCIATION LTD#135,16/09/2019,883.38,73507-DOMICILIARY CARE,Third Party Payments,Private Contractor Fees,Revenue
Walsall Council,http://opendatacommunities.org/id/metropolitan-district-council/walsall,WC108-128,30/09/2019,Adult Social Care,ACCORD HOUSING ASSOCIATION LTD#135,16/09/2019,903.28,73507-DOMICILIARY CARE,Third Party Payments,Private Contractor Fees,Revenue
Walsall Council,http://opendatacommunities.org/id/metropolitan-district-council/walsall,WC108-129,30/09/2019,Adult Social Care,ACCORD HOUSING ASSOCIATION LTD#135,16/09/2019,969.04,73507-DOMICILIARY CARE,Third Party Payments,Private Contractor Fees,Revenue
Walsall Council,http://opendatacommunities.org/id/metropolitan-district-council/walsall,WC108-130,30/09/2019,Adult Social Care,ACCORD HOUSING ASSOCIATION LTD#135,16/09/2019,"1,002.68",73507-DOMICILIARY CARE,Third Party Payments,Private Contractor Fees,Revenue
Walsall Council,http://opendatacommunities.org/id/metropolitan-district-council/walsall,WC108-131,30/09/2019,Adult Social Care,ACCORD HOUSING ASSOCIATION LTD#135,16/09/2019,"1,036.54",73507-DOMICILIARY CARE,Third Party Payments,Private Contractor Fees,Revenue
Walsall Council,http://opendatacommunities.org/id/metropolitan-district-council/walsall,WC108-132,30/09/2019,Adult Social Care,ACCORD HOUSING ASSOCIATION LTD#135,16/09/2019,"1,220.39",73507-DOMICILIARY CARE,Third Party Payments,Private Contractor Fees,Revenue
Walsall Council,http://opendatacommunities.org/id/metropolitan-district-council/walsall,WC108-133,30/09/2019,Adult Social Care,ACCORD HOUSING ASSOCIATION LTD#135,16/09/2019,"1,336.58",73507-DOMICILIARY CARE,Third Party Payments,Private Contractor Fees,Revenue
Walsall Council,http://opendatacommunities.org/id/metropolitan-district-council/walsall,WC108-134,30/09/2019,Adult Social Care,ACCORD HOUSING ASSOCIATION LTD#135,16/09/2019,"1,470.56",73507-DOMICILIARY CARE,Third Party Payments,Private Contractor Fees,Revenue
Walsall Council,http://opendatacommunities.org/id/metropolitan-district-council/walsall,WC108-135,30/09/2019,Adult Social Care,ACCORD HOUSING ASSOCIATION LTD#135,16/09/2019,"1,471.12",73507-DOMICILIARY CARE,Third Party Payments,Private Contractor Fees,Revenue
Walsall Council,http://opendatacommunities.org/id/metropolitan-district-council/walsall,WC108-136,30/09/2019,Adult Social Care,ACCORD HOUSING ASSOCIATION LTD#135,16/09/2019,"1,672.16",73507-DOMICILIARY CARE,Third Party Payments,Private Contractor Fees,Revenue
Walsall Council,http://opendatacommunities.org/id/metropolitan-district-council/walsall,WC108-137,30/09/2019,Adult Social Care,ACCORD HOUSING ASSOCIATION LTD#135,16/09/2019,"1,705.13",73507-DOMICILIARY CARE,Third Party Payments,Private Contractor Fees,Revenue
Walsall Council,http://opendatacommunities.org/id/metropolitan-district-council/walsall,WC108-138,30/09/2019,Adult Social Care,ACCORD HOUSING ASSOCIATION LTD#135,16/09/2019,"1,705.48",73507-DOMICILIARY CARE,Third Party Payments,Private Contractor Fees,Revenue
Walsall Council,http://opendatacommunities.org/id/metropolitan-district-council/walsall,WC108-139,30/09/2019,Adult Social Care,ACCORD HOUSING ASSOCIATION LTD#135,16/09/2019,"1,720.72",73507-DOMICILIARY CARE,Third Party Payments,Private Contractor Fees,Revenue
Walsall Council,http://opendatacommunities.org/id/metropolitan-district-council/walsall,WC108-140,30/09/2019,Adult Social Care,ACCORD HOUSING ASSOCIATION LTD#135,16/09/2019,"4,550.44",73500-RESIDENTIAL,Third Party Payments,Private Contractor Fees,Revenue
Walsall Council,http://opendatacommunities.org/id/metropolitan-district-council/walsall,WC108-141,30/09/2019,Adult Social Care,ACCORD HOUSING ASSOCIATION LTD#135,16/09/2019,"4,550.44",73500-RESIDENTIAL,Third Party Payments,Private Contractor Fees,Revenue
Walsall Council,http://opendatacommunities.org/id/metropolitan-district-council/walsall,WC108-142,30/09/2019,Adult Social Care,ACCORD HOUSING ASSOCIATION LTD#135,16/09/2019,"4,550.44",73500-RESIDENTIAL,Third Party Payments,Private Contractor Fees,Revenue
Walsall Council,http://opendatacommunities.org/id/metropolitan-district-council/walsall,WC108-143,30/09/2019,Adult Social Care,ACCORD HOUSING ASSOCIATION LTD#135,16/09/2019,"4,550.44",73500-RESIDENTIAL,Third Party Payments,Private Contractor Fees,Revenue
Walsall Council,http://opendatacommunities.org/id/metropolitan-district-council/walsall,WC108-144,30/09/2019,Adult Social Care,ACCORD HOUSING ASSOCIATION LTD#135,19/09/2019,"4,764.42",70000-SOCIAL SERVICES-FEES TO VOLUNTARY BODIES,Third Party Payments,Private Contractor Fees,Revenue
Walsall Council,http://opendatacommunities.org/id/metropolitan-district-council/walsall,WC108-145,30/09/2019,Adult Social Care,ACCORD HOUSING ASSOCIATION LTD#135,19/09/2019,"4,802.57",70000-SOCIAL SERVICES-FEES TO VOLUNTARY BODIES,Third Party Payments,Private Contractor Fees,Revenue
Walsall Council,http://opendatacommunities.org/id/metropolitan-district-council/walsall,WC108-146,30/09/2019,Adult Social Care,ACCORD HOUSING ASSOCIATION LTD#135,19/09/2019,"5,177.03",70000-SOCIAL SERVICES-FEES TO VOLUNTARY BODIES,Third Party Payments,Private Contractor Fees,Revenue
Walsall Council,http://opendatacommunities.org/id/metropolitan-district-council/walsall,WC108-147,30/09/2019,Adult Social Care,ACCORD HOUSING ASSOCIATION LTD#135,19/09/2019,"5,375.50",70000-SOCIAL SERVICES-FEES TO VOLUNTARY BODIES,Third Party Payments,Private Contractor Fees,Revenue
Walsall Council,http://opendatacommunities.org/id/metropolitan-district-council/walsall,WC108-148,30/09/2019,Adult Social Care,ACCORD HOUSING ASSOCIATION LTD#135,19/09/2019,"5,570.17",70000-SOCIAL SERVICES-FEES TO VOLUNTARY BODIES,Third Party Payments,Private Contractor Fees,Revenue
Walsall Council,http://opendatacommunities.org/id/metropolitan-district-council/walsall,WC108-149,30/09/2019,Adult Social Care,ACCORD HOUSING ASSOCIATION LTD#135,16/09/2019,"6,350.96",73500-RESIDENTIAL,Third Party Payments,Private Contractor Fees,Revenue
Walsall Council,http://opendatacommunities.org/id/metropolitan-district-council/walsall,WC108-150,30/09/2019,Adult Social Care,ACCORD HOUSING ASSOCIATION LTD#135,16/09/2019,"6,350.96",73500-RESIDENTIAL,Third Party Payments,Private Contractor Fees,Revenue
Walsall Council,http://opendatacommunities.org/id/metropolitan-district-council/walsall,WC108-151,30/09/2019,Resources and Transformation,ACCORD HOUSING ASSOCIATION LTD#135,02/09/2019,"21,144.92",63000-PROFESSIONAL FEES AND SERVICES,Supplies & Services,Services,Revenue
Walsall Council,http://opendatacommunities.org/id/metropolitan-district-council/walsall,WC108-152,30/09/2019,Resources and Transformation,ACCORD HOUSING ASSOCIATION LTD#135,20/09/2019,"21,144.92",63000-PROFESSIONAL FEES AND SERVICES,Supplies & Services,Services,Revenue
Walsall Council,http://opendatacommunities.org/id/metropolitan-district-council/walsall,WC108-153,30/09/2019,Adult Social Care,ACEPAY LTD (COTTAGE NUR HOME),16/09/2019,-765.61,73502-NURSING,Third Party Payments,Private Contractor Fees,Revenue
Walsall Council,http://opendatacommunities.org/id/metropolitan-district-council/walsall,WC108-154,30/09/2019,Adult Social Care,ACEPAY LTD (COTTAGE NUR HOME),16/09/2019,"1,774.96",73500-RESIDENTIAL,Third Party Payments,Private Contractor Fees,Revenue
Walsall Council,http://opendatacommunities.org/id/metropolitan-district-council/walsall,WC108-155,30/09/2019,Adult Social Care,ACEPAY LTD (COTTAGE NUR HOME),16/09/2019,"1,972.24",73501-RESIDENTIAL EMI,Third Party Payments,Private Contractor Fees,Revenue
Walsall Council,http://opendatacommunities.org/id/metropolitan-district-council/walsall,WC108-156,30/09/2019,Adult Social Care,ACEPAY LTD (COTTAGE NUR HOME),16/09/2019,"2,143.72",73502-NURSING,Third Party Payments,Private Contractor Fees,Revenue
Walsall Council,http://opendatacommunities.org/id/metropolitan-district-council/walsall,WC108-157,30/09/2019,Adult Social Care,ACEPAY LTD (COTTAGE NUR HOME),16/09/2019,"2,143.72",73502-NURSING,Third Party Payments,Private Contractor Fees,Revenue
Walsall Council,http://opendatacommunities.org/id/metropolitan-district-council/walsall,WC108-158,30/09/2019,Adult Social Care,ACEPAY LTD (COTTAGE NUR HOME),16/09/2019,"2,143.72",73502-NURSING,Third Party Payments,Private Contractor Fees,Revenue
Walsall Council,http://opendatacommunities.org/id/metropolitan-district-council/walsall,WC108-159,30/09/2019,Adult Social Care,ACEPAY LTD (COTTAGE NUR HOME),16/09/2019,"2,143.72",73502-NURSING,Third Party Payments,Private Contractor Fees,Revenue
Walsall Council,http://opendatacommunities.org/id/metropolitan-district-council/walsall,WC108-160,30/09/2019,Adult Social Care,ACEPAY LTD (COTTAGE NUR HOME),16/09/2019,"2,143.72",73502-NURSING,Third Party Payments,Private Contractor Fees,Revenue
Walsall Council,http://opendatacommunities.org/id/metropolitan-district-council/walsall,WC108-161,30/09/2019,Adult Social Care,ACEPAY LTD (COTTAGE NUR HOME),16/09/2019,"2,143.72",73502-NURSING,Third Party Payments,Private Contractor Fees,Revenue
Walsall Council,http://opendatacommunities.org/id/metropolitan-district-council/walsall,WC108-162,30/09/2019,Adult Social Care,ACEPAY LTD (COTTAGE NUR HOME),16/09/2019,"2,143.72",73502-NURSING,Third Party Payments,Private Contractor Fees,Revenue
Walsall Council,http://opendatacommunities.org/id/metropolitan-district-council/walsall,WC108-163,30/09/2019,Adult Social Care,ACEPAY LTD (COTTAGE NUR HOME),16/09/2019,"2,143.72",73502-NURSING,Third Party Payments,Private Contractor Fees,Revenue
Walsall Council,http://opendatacommunities.org/id/metropolitan-district-council/walsall,WC108-164,30/09/2019,Adult Social Care,ACEPAY LTD (COTTAGE NUR HOME),16/09/2019,"2,143.72",73502-NURSING,Third Party Payments,Private Contractor Fees,Revenue
Walsall Council,http://opendatacommunities.org/id/metropolitan-district-council/walsall,WC108-165,30/09/2019,Adult Social Care,ACEPAY LTD (COTTAGE NUR HOME),16/09/2019,"2,143.72",73502-NURSING,Third Party Payments,Private Contractor Fees,Revenue
Walsall Council,http://opendatacommunities.org/id/metropolitan-district-council/walsall,WC108-166,30/09/2019,Adult Social Care,ACEPAY LTD (COTTAGE NUR HOME),16/09/2019,"2,143.72",73502-NURSING,Third Party Payments,Private Contractor Fees,Revenue
Walsall Council,http://opendatacommunities.org/id/metropolitan-district-council/walsall,WC108-167,30/09/2019,Adult Social Care,ACEPAY LTD (COTTAGE NUR HOME),16/09/2019,"2,143.72",73502-NURSING,Third Party Payments,Private Contractor Fees,Revenue
Walsall Council,http://opendatacommunities.org/id/metropolitan-district-council/walsall,WC108-168,30/09/2019,Adult Social Care,ACEPAY LTD (COTTAGE NUR HOME),16/09/2019,"2,343.72",73502-NURSING,Third Party Payments,Private Contractor Fees,Revenue
Walsall Council,http://opendatacommunities.org/id/metropolitan-district-council/walsall,WC108-169,30/09/2019,Adult Social Care,ACORN REST HOME,16/09/2019,"1,774.96",73500-RESIDENTIAL,Third Party Payments,Private Contractor Fees,Revenue
Walsall Council,http://opendatacommunities.org/id/metropolitan-district-council/walsall,WC108-170,30/09/2019,Childrens,ACTIVE CARE SOLUTIONS LTD,06/09/2019,"2,786.80",74037-INDEPENDENT FOSTER CARE-OTH AGENCY PROVISION,Third Party Payments,Private Contractor Fees,Revenue
Walsall Council,http://opendatacommunities.org/id/metropolitan-district-council/walsall,WC108-171,30/09/2019,Childrens,ACTIVE CARE SOLUTIONS LTD,06/09/2019,"3,024.00",74037-INDEPENDENT FOSTER CARE-OTH AGENCY PROVISION,Third Party Payments,Private Contractor Fees,Revenue
Walsall Council,http://opendatacommunities.org/id/metropolitan-district-council/walsall,WC108-172,30/09/2019,Childrens,ACTIVE CARE SOLUTIONS LTD,06/09/2019,"3,024.00",74037-INDEPENDENT FOSTER CARE-OTH AGENCY PROVISION,Third Party Payments,Private Contractor Fees,Revenue
Walsall Council,http://opendatacommunities.org/id/metropolitan-district-council/walsall,WC108-173,30/09/2019,Childrens,ACTIVE CARE SOLUTIONS LTD,06/09/2019,"3,220.00",74037-INDEPENDENT FOSTER CARE-OTH AGENCY PROVISION,Third Party Payments,Private Contractor Fees,Revenue
Walsall Council,http://opendatacommunities.org/id/metropolitan-district-council/walsall,WC108-174,30/09/2019,Adult Social Care,REDACTED,06/09/2019,553.15,73506-DIRECT PAYMENT,Third Party Payments,Private Contractor Fees,Revenue
Walsall Council,http://opendatacommunities.org/id/metropolitan-district-council/walsall,WC108-175,30/09/2019,Adult Social Care,REDACTED,06/09/2019,"1,291.45",73506-DIRECT PAYMENT,Third Party Payments,Private Contractor Fees,Revenue
Walsall Council,http://opendatacommunities.org/id/metropolitan-district-council/walsall,WC108-176,30/09/2019,Childrens,ADMIRAL SELF STORAGE LTD,09/09/2019,"1,564.30",63000-PROFESSIONAL FEES AND SERVICES,Supplies & Services,Services,Revenue
Walsall Council,http://opendatacommunities.org/id/metropolitan-district-council/walsall,WC108-177,30/09/2019,Childrens,REDACTED,23/09/2019,333.12,74510-RESIDENTS ORDERS,Third Party Payments,Private Contractor Fees,Revenue
Walsall Council,http://opendatacommunities.org/id/metropolitan-district-council/walsall,WC108-178,30/09/2019,Childrens,REDACTED,23/09/2019,361.12,74510-RESIDENTS ORDERS,Third Party Payments,Private Contractor Fees,Revenue
Walsall Council,http://opendatacommunities.org/id/metropolitan-district-council/walsall,WC108-179,30/09/2019,Adult Social Care,REDACTED,06/09/2019,"2,604.00",73506-DIRECT PAYMENT,Third Party Payments,Private Contractor Fees,Revenue
Walsall Council,http://opendatacommunities.org/id/metropolitan-district-council/walsall,WC108-180,30/09/2019,Adult Social Care,ADVANCE HEALTH CARE (UK) LTD,24/09/2019,-293.77,73025-PROFESSIONAL SERVICES-PRIV CONTRACTOR & OTHER AGENCIES,Third Party Payments,Private Contractor Fees,Revenue
Walsall Council,http://opendatacommunities.org/id/metropolitan-district-council/walsall,WC108-181,30/09/2019,Adult Social Care,ADVANCE HEALTH CARE (UK) LTD,24/09/2019,-279.44,73025-PROFESSIONAL SERVICES-PRIV CONTRACTOR & OTHER AGENCIES,Third Party Payments,Private Contractor Fees,Revenue
Walsall Council,http://opendatacommunities.org/id/metropolitan-district-council/walsall,WC108-182,30/09/2019,Adult Social Care,ADVANCE HEALTH CARE (UK) LTD,06/09/2019,257.94,73025-PROFESSIONAL SERVICES-PRIV CONTRACTOR & OTHER AGENCIES,Third Party Payments,Private Contractor Fees,Revenue
Walsall Council,http://opendatacommunities.org/id/metropolitan-district-council/walsall,WC108-183,30/09/2019,Adult Social Care,ADVANCE HEALTH CARE (UK) LTD,09/09/2019,257.94,73025-PROFESSIONAL SERVICES-PRIV CONTRACTOR & OTHER AGENCIES,Third Party Payments,Private Contractor Fees,Revenue
Walsall Council,http://opendatacommunities.org/id/metropolitan-district-council/walsall,WC108-184,30/09/2019,Adult Social Care,ADVANCE HEALTH CARE (UK) LTD,23/09/2019,257.94,73025-PROFESSIONAL SERVICES-PRIV CONTRACTOR & OTHER AGENCIES,Third Party Payments,Private Contractor Fees,Revenue
Walsall Council,http://opendatacommunities.org/id/metropolitan-district-council/walsall,WC108-185,30/09/2019,Adult Social Care,ADVANCE HEALTH CARE (UK) LTD,12/09/2019,273.60,73507-DOMICILIARY CARE,Third Party Payments,Private Contractor Fees,Revenue
Walsall Council,http://opendatacommunities.org/id/metropolitan-district-council/walsall,WC108-186,30/09/2019,Adult Social Care,ADVANCE HEALTH CARE (UK) LTD,12/09/2019,296.36,73507-DOMICILIARY CARE,Third Party Payments,Private Contractor Fees,Revenue
Walsall Council,http://opendatacommunities.org/id/metropolitan-district-council/walsall,WC108-187,30/09/2019,Adult Social Care,ADVANCE HEALTH CARE (UK) LTD,12/09/2019,334.61,73507-DOMICILIARY CARE,Third Party Payments,Private Contractor Fees,Revenue
Walsall Council,http://opendatacommunities.org/id/metropolitan-district-council/walsall,WC108-188,30/09/2019,Adult Social Care,ADVANCE HEALTH CARE (UK) LTD,09/09/2019,351.09,73025-PROFESSIONAL SERVICES-PRIV CONTRACTOR & OTHER AGENCIES,Third Party Payments,Private Contractor Fees,Revenue
Walsall Council,http://opendatacommunities.org/id/metropolitan-district-council/walsall,WC108-189,30/09/2019,Adult Social Care,ADVANCE HEALTH CARE (UK) LTD,09/09/2019,351.09,73025-PROFESSIONAL SERVICES-PRIV CONTRACTOR & OTHER AGENCIES,Third Party Payments,Private Contractor Fees,Revenue
Walsall Council,http://opendatacommunities.org/id/metropolitan-district-council/walsall,WC108-190,30/09/2019,Adult Social Care,ADVANCE HEALTH CARE (UK) LTD,12/09/2019,401.52,73507-DOMICILIARY CARE,Third Party Payments,Private Contractor Fees,Revenue
Walsall Council,http://opendatacommunities.org/id/metropolitan-district-council/walsall,WC108-191,30/09/2019,Adult Social Care,ADVANCE HEALTH CARE (UK) LTD,12/09/2019,408.69,73507-DOMICILIARY CARE,Third Party Payments,Private Contractor Fees,Revenue
Walsall Council,http://opendatacommunities.org/id/metropolitan-district-council/walsall,WC108-192,30/09/2019,Adult Social Care,ADVANCE HEALTH CARE (UK) LTD,12/09/2019,414.55,73507-DOMICILIARY CARE,Third Party Payments,Private Contractor Fees,Revenue
Walsall Council,http://opendatacommunities.org/id/metropolitan-district-council/walsall,WC108-193,30/09/2019,Adult Social Care,ADVANCE HEALTH CARE (UK) LTD,12/09/2019,424.19,73507-DOMICILIARY CARE,Third Party Payments,Private Contractor Fees,Revenue
Walsall Council,http://opendatacommunities.org/id/metropolitan-district-council/walsall,WC108-194,30/09/2019,Adult Social Care,ADVANCE HEALTH CARE (UK) LTD,02/09/2019,451.40,73025-PROFESSIONAL SERVICES-PRIV CONTRACTOR & OTHER AGENCIES,Third Party Payments,Private Contractor Fees,Revenue
Walsall Council,http://opendatacommunities.org/id/metropolitan-district-council/walsall,WC108-195,30/09/2019,Adult Social Care,ADVANCE HEALTH CARE (UK) LTD,02/09/2019,451.40,73025-PROFESSIONAL SERVICES-PRIV CONTRACTOR & OTHER AGENCIES,Third Party Payments,Private Contractor Fees,Revenue
Walsall Council,http://opendatacommunities.org/id/metropolitan-district-council/walsall,WC108-196,30/09/2019,Adult Social Care,ADVANCE HEALTH CARE (UK) LTD,02/09/2019,451.40,73025-PROFESSIONAL SERVICES-PRIV CONTRACTOR & OTHER AGENCIES,Third Party Payments,Private Contractor Fees,Revenue
Walsall Council,http://opendatacommunities.org/id/metropolitan-district-council/walsall,WC108-197,30/09/2019,Adult Social Care,ADVANCE HEALTH CARE (UK) LTD,02/09/2019,451.40,73025-PROFESSIONAL SERVICES-PRIV CONTRACTOR & OTHER AGENCIES,Third Party Payments,Private Contractor Fees,Revenue
Walsall Council,http://opendatacommunities.org/id/metropolitan-district-council/walsall,WC108-198,30/09/2019,Adult Social Care,ADVANCE HEALTH CARE (UK) LTD,02/09/2019,451.40,73025-PROFESSIONAL SERVICES-PRIV CONTRACTOR & OTHER AGENCIES,Third Party Payments,Private Contractor Fees,Revenue
Walsall Council,http://opendatacommunities.org/id/metropolitan-district-council/walsall,WC108-199,30/09/2019,Adult Social Care,ADVANCE HEALTH CARE (UK) LTD,02/09/2019,451.40,73025-PROFESSIONAL SERVICES-PRIV CONTRACTOR & OTHER AGENCIES,Third Party Payments,Private Contractor Fees,Revenue
Walsall Council,http://opendatacommunities.org/id/metropolitan-district-council/walsall,WC108-200,30/09/2019,Adult Social Care,ADVANCE HEALTH CARE (UK) LTD,06/09/2019,451.40,73025-PROFESSIONAL SERVICES-PRIV CONTRACTOR & OTHER AGENCIES,Third Party Payments,Private Contractor Fees,Revenue
Walsall Council,http://opendatacommunities.org/id/metropolitan-district-council/walsall,WC108-201,30/09/2019,Adult Social Care,ADVANCE HEALTH CARE (UK) LTD,06/09/2019,451.40,73025-PROFESSIONAL SERVICES-PRIV CONTRACTOR & OTHER AGENCIES,Third Party Payments,Private Contractor Fees,Revenue
Walsall Council,http://opendatacommunities.org/id/metropolitan-district-council/walsall,WC108-202,30/09/2019,Adult Social Care,ADVANCE HEALTH CARE (UK) LTD,06/09/2019,451.40,73025-PROFESSIONAL SERVICES-PRIV CONTRACTOR & OTHER AGENCIES,Third Party Payments,Private Contractor Fees,Revenue
Walsall Council,http://opendatacommunities.org/id/metropolitan-district-council/walsall,WC108-203,30/09/2019,Adult Social Care,ADVANCE HEALTH CARE (UK) LTD,06/09/2019,451.40,73025-PROFESSIONAL SERVICES-PRIV CONTRACTOR & OTHER AGENCIES,Third Party Payments,Private Contractor Fees,Revenue
Walsall Council,http://opendatacommunities.org/id/metropolitan-district-council/walsall,WC108-204,30/09/2019,Adult Social Care,ADVANCE HEALTH CARE (UK) LTD,06/09/2019,451.40,73025-PROFESSIONAL SERVICES-PRIV CONTRACTOR & OTHER AGENCIES,Third Party Payments,Private Contractor Fees,Revenue
Walsall Council,http://opendatacommunities.org/id/metropolitan-district-council/walsall,WC108-205,30/09/2019,Adult Social Care,ADVANCE HEALTH CARE (UK) LTD,09/09/2019,451.40,73025-PROFESSIONAL SERVICES-PRIV CONTRACTOR & OTHER AGENCIES,Third Party Payments,Private Contractor Fees,Revenue
Walsall Council,http://opendatacommunities.org/id/metropolitan-district-council/walsall,WC108-206,30/09/2019,Adult Social Care,ADVANCE HEALTH CARE (UK) LTD,09/09/2019,451.40,73025-PROFESSIONAL SERVICES-PRIV CONTRACTOR & OTHER AGENCIES,Third Party Payments,Private Contractor Fees,Revenue
Walsall Council,http://opendatacommunities.org/id/metropolitan-district-council/walsall,WC108-207,30/09/2019,Adult Social Care,ADVANCE HEALTH CARE (UK) LTD,09/09/2019,451.40,73025-PROFESSIONAL SERVICES-PRIV CONTRACTOR & OTHER AGENCIES,Third Party Payments,Private Contractor Fees,Revenue
Walsall Council,http://opendatacommunities.org/id/metropolitan-district-council/walsall,WC108-208,30/09/2019,Adult Social Care,ADVANCE HEALTH CARE (UK) LTD,09/09/2019,451.40,73025-PROFESSIONAL SERVICES-PRIV CONTRACTOR & OTHER AGENCIES,Third Party Payments,Private Contractor Fees,Revenue
Walsall Council,http://opendatacommunities.org/id/metropolitan-district-council/walsall,WC108-209,30/09/2019,Adult Social Care,ADVANCE HEALTH CARE (UK) LTD,09/09/2019,451.40,73025-PROFESSIONAL SERVICES-PRIV CONTRACTOR & OTHER AGENCIES,Third Party Payments,Private Contractor Fees,Revenue
Walsall Council,http://opendatacommunities.org/id/metropolitan-district-council/walsall,WC108-210,30/09/2019,Adult Social Care,ADVANCE HEALTH CARE (UK) LTD,09/09/2019,451.40,73025-PROFESSIONAL SERVICES-PRIV CONTRACTOR & OTHER AGENCIES,Third Party Payments,Private Contractor Fees,Revenue
Walsall Council,http://opendatacommunities.org/id/metropolitan-district-council/walsall,WC108-211,30/09/2019,Adult Social Care,ADVANCE HEALTH CARE (UK) LTD,23/09/2019,451.40,73025-PROFESSIONAL SERVICES-PRIV CONTRACTOR & OTHER AGENCIES,Third Party Payments,Private Contractor Fees,Revenue
Walsall Council,http://opendatacommunities.org/id/metropolitan-district-council/walsall,WC108-212,30/09/2019,Adult Social Care,ADVANCE HEALTH CARE (UK) LTD,23/09/2019,451.40,73025-PROFESSIONAL SERVICES-PRIV CONTRACTOR & OTHER AGENCIES,Third Party Payments,Private Contractor Fees,Revenue
Walsall Council,http://opendatacommunities.org/id/metropolitan-district-council/walsall,WC108-213,30/09/2019,Adult Social Care,ADVANCE HEALTH CARE (UK) LTD,23/09/2019,451.40,73025-PROFESSIONAL SERVICES-PRIV CONTRACTOR & OTHER AGENCIES,Third Party Payments,Private Contractor Fees,Revenue
Walsall Council,http://opendatacommunities.org/id/metropolitan-district-council/walsall,WC108-214,30/09/2019,Adult Social Care,ADVANCE HEALTH CARE (UK) LTD,23/09/2019,451.40,73025-PROFESSIONAL SERVICES-PRIV CONTRACTOR & OTHER AGENCIES,Third Party Payments,Private Contractor Fees,Revenue
Walsall Council,http://opendatacommunities.org/id/metropolitan-district-council/walsall,WC108-215,30/09/2019,Adult Social Care,ADVANCE HEALTH CARE (UK) LTD,25/09/2019,451.40,73025-PROFESSIONAL SERVICES-PRIV CONTRACTOR & OTHER AGENCIES,Third Party Payments,Private Contractor Fees,Revenue
Walsall Council,http://opendatacommunities.org/id/metropolitan-district-council/walsall,WC108-216,30/09/2019,Adult Social Care,ADVANCE HEALTH CARE (UK) LTD,25/09/2019,451.40,73025-PROFESSIONAL SERVICES-PRIV CONTRACTOR & OTHER AGENCIES,Third Party Payments,Private Contractor Fees,Revenue
Walsall Council,http://opendatacommunities.org/id/metropolitan-district-council/walsall,WC108-217,30/09/2019,Adult Social Care,ADVANCE HEALTH CARE (UK) LTD,25/09/2019,451.40,73025-PROFESSIONAL SERVICES-PRIV CONTRACTOR & OTHER AGENCIES,Third Party Payments,Private Contractor Fees,Revenue
Walsall Council,http://opendatacommunities.org/id/metropolitan-district-council/walsall,WC108-218,30/09/2019,Adult Social Care,ADVANCE HEALTH CARE (UK) LTD,25/09/2019,451.40,73025-PROFESSIONAL SERVICES-PRIV CONTRACTOR & OTHER AGENCIES,Third Party Payments,Private Contractor Fees,Revenue
Walsall Council,http://opendatacommunities.org/id/metropolitan-district-council/walsall,WC108-219,30/09/2019,Adult Social Care,ADVANCE HEALTH CARE (UK) LTD,25/09/2019,451.40,73025-PROFESSIONAL SERVICES-PRIV CONTRACTOR & OTHER AGENCIES,Third Party Payments,Private Contractor Fees,Revenue
Walsall Council,http://opendatacommunities.org/id/metropolitan-district-council/walsall,WC108-220,30/09/2019,Adult Social Care,ADVANCE HEALTH CARE (UK) LTD,25/09/2019,451.40,73025-PROFESSIONAL SERVICES-PRIV CONTRACTOR & OTHER AGENCIES,Third Party Payments,Private Contractor Fees,Revenue
Walsall Council,http://opendatacommunities.org/id/metropolitan-district-council/walsall,WC108-221,30/09/2019,Adult Social Care,ADVANCE HEALTH CARE (UK) LTD,25/09/2019,451.40,73025-PROFESSIONAL SERVICES-PRIV CONTRACTOR & OTHER AGENCIES,Third Party Payments,Private Contractor Fees,Revenue
Walsall Council,http://opendatacommunities.org/id/metropolitan-district-council/walsall,WC108-222,30/09/2019,Adult Social Care,ADVANCE HEALTH CARE (UK) LTD,25/09/2019,451.40,73025-PROFESSIONAL SERVICES-PRIV CONTRACTOR & OTHER AGENCIES,Third Party Payments,Private Contractor Fees,Revenue
Walsall Council,http://opendatacommunities.org/id/metropolitan-district-council/walsall,WC108-223,30/09/2019,Adult Social Care,ADVANCE HEALTH CARE (UK) LTD,23/09/2019,458.56,73025-PROFESSIONAL SERVICES-PRIV CONTRACTOR & OTHER AGENCIES,Third Party Payments,Private Contractor Fees,Revenue
Walsall Council,http://opendatacommunities.org/id/metropolitan-district-council/walsall,WC108-224,30/09/2019,Adult Social Care,ADVANCE HEALTH CARE (UK) LTD,02/09/2019,465.73,73025-PROFESSIONAL SERVICES-PRIV CONTRACTOR & OTHER AGENCIES,Third Party Payments,Private Contractor Fees,Revenue
Walsall Council,http://opendatacommunities.org/id/metropolitan-district-council/walsall,WC108-225,30/09/2019,Adult Social Care,ADVANCE HEALTH CARE (UK) LTD,23/09/2019,465.73,73025-PROFESSIONAL SERVICES-PRIV CONTRACTOR & OTHER AGENCIES,Third Party Payments,Private Contractor Fees,Revenue
Walsall Council,http://opendatacommunities.org/id/metropolitan-district-council/walsall,WC108-226,30/09/2019,Adult Social Care,ADVANCE HEALTH CARE (UK) LTD,12/09/2019,477.99,73507-DOMICILIARY CARE,Third Party Payments,Private Contractor Fees,Revenue
Walsall Council,http://opendatacommunities.org/id/metropolitan-district-council/walsall,WC108-227,30/09/2019,Adult Social Care,ADVANCE HEALTH CARE (UK) LTD,12/09/2019,486.28,73507-DOMICILIARY CARE,Third Party Payments,Private Contractor Fees,Revenue
Walsall Council,http://opendatacommunities.org/id/metropolitan-district-council/walsall,WC108-228,30/09/2019,Adult Social Care,ADVANCE HEALTH CARE (UK) LTD,12/09/2019,500.57,73507-DOMICILIARY CARE,Third Party Payments,Private Contractor Fees,Revenue
Walsall Council,http://opendatacommunities.org/id/metropolitan-district-council/walsall,WC108-229,30/09/2019,Adult Social Care,ADVANCE HEALTH CARE (UK) LTD,02/09/2019,523.05,73025-PROFESSIONAL SERVICES-PRIV CONTRACTOR & OTHER AGENCIES,Third Party Payments,Private Contractor Fees,Revenue
Walsall Council,http://opendatacommunities.org/id/metropolitan-district-council/walsall,WC108-230,30/09/2019,Adult Social Care,ADVANCE HEALTH CARE (UK) LTD,12/09/2019,590.20,73507-DOMICILIARY CARE,Third Party Payments,Private Contractor Fees,Revenue
Walsall Council,http://opendatacommunities.org/id/metropolitan-district-council/walsall,WC108-231,30/09/2019,Adult Social Care,ADVANCE HEALTH CARE (UK) LTD,12/09/2019,622.55,73507-DOMICILIARY CARE,Third Party Payments,Private Contractor Fees,Revenue
Walsall Council,http://opendatacommunities.org/id/metropolitan-district-council/walsall,WC108-232,30/09/2019,Adult Social Care,ADVANCE HEALTH CARE (UK) LTD,18/09/2019,626.94,73025-PROFESSIONAL SERVICES-PRIV CONTRACTOR & OTHER AGENCIES,Third Party Payments,Private Contractor Fees,Revenue
Walsall Council,http://opendatacommunities.org/id/metropolitan-district-council/walsall,WC108-233,30/09/2019,Adult Social Care,ADVANCE HEALTH CARE (UK) LTD,12/09/2019,642.87,73507-DOMICILIARY CARE,Third Party Payments,Private Contractor Fees,Revenue
Walsall Council,http://opendatacommunities.org/id/metropolitan-district-council/walsall,WC108-234,30/09/2019,Adult Social Care,ADVANCE HEALTH CARE (UK) LTD,12/09/2019,648.83,73507-DOMICILIARY CARE,Third Party Payments,Private Contractor Fees,Revenue
Walsall Council,http://opendatacommunities.org/id/metropolitan-district-council/walsall,WC108-235,30/09/2019,Adult Social Care,ADVANCE HEALTH CARE (UK) LTD,12/09/2019,795.87,73507-DOMICILIARY CARE,Third Party Payments,Private Contractor Fees,Revenue
Walsall Council,http://opendatacommunities.org/id/metropolitan-district-council/walsall,WC108-236,30/09/2019,Adult Social Care,ADVANCE HEALTH CARE (UK) LTD,12/09/2019,803.01,73507-DOMICILIARY CARE,Third Party Payments,Private Contractor Fees,Revenue
Walsall Council,http://opendatacommunities.org/id/metropolitan-district-council/walsall,WC108-237,30/09/2019,Adult Social Care,ADVANCE HEALTH CARE (UK) LTD,12/09/2019,814.93,73507-DOMICILIARY CARE,Third Party Payments,Private Contractor Fees,Revenue
Walsall Council,http://opendatacommunities.org/id/metropolitan-district-council/walsall,WC108-238,30/09/2019,Adult Social Care,ADVANCE HEALTH CARE (UK) LTD,12/09/2019,826.85,73507-DOMICILIARY CARE,Third Party Payments,Private Contractor Fees,Revenue
Walsall Council,http://opendatacommunities.org/id/metropolitan-district-council/walsall,WC108-239,30/09/2019,Adult Social Care,ADVANCE HEALTH CARE (UK) LTD,12/09/2019,857.86,73507-DOMICILIARY CARE,Third Party Payments,Private Contractor Fees,Revenue
Walsall Council,http://opendatacommunities.org/id/metropolitan-district-council/walsall,WC108-240,30/09/2019,Adult Social Care,ADVANCE HEALTH CARE (UK) LTD,12/09/2019,866.37,73507-DOMICILIARY CARE,Third Party Payments,Private Contractor Fees,Revenue
Walsall Council,http://opendatacommunities.org/id/metropolitan-district-council/walsall,WC108-241,30/09/2019,Adult Social Care,ADVANCE HEALTH CARE (UK) LTD,12/09/2019,870.96,73507-DOMICILIARY CARE,Third Party Payments,Private Contractor Fees,Revenue
Walsall Council,http://opendatacommunities.org/id/metropolitan-district-council/walsall,WC108-242,30/09/2019,Adult Social Care,ADVANCE HEALTH CARE (UK) LTD,12/09/2019,881.91,73507-DOMICILIARY CARE,Third Party Payments,Private Contractor Fees,Revenue
Walsall Council,http://opendatacommunities.org/id/metropolitan-district-council/walsall,WC108-243,30/09/2019,Adult Social Care,ADVANCE HEALTH CARE (UK) LTD,12/09/2019,882.97,73507-DOMICILIARY CARE,Third Party Payments,Private Contractor Fees,Revenue
Walsall Council,http://opendatacommunities.org/id/metropolitan-district-council/walsall,WC108-244,30/09/2019,Adult Social Care,ADVANCE HEALTH CARE (UK) LTD,12/09/2019,896.14,73507-DOMICILIARY CARE,Third Party Payments,Private Contractor Fees,Revenue
Walsall Council,http://opendatacommunities.org/id/metropolitan-district-council/walsall,WC108-245,30/09/2019,Adult Social Care,ADVANCE HEALTH CARE (UK) LTD,12/09/2019,"1,011.91",73507-DOMICILIARY CARE,Third Party Payments,Private Contractor Fees,Revenue
Walsall Council,http://opendatacommunities.org/id/metropolitan-district-council/walsall,WC108-246,30/09/2019,Adult Social Care,ADVANCE HEALTH CARE (UK) LTD,12/09/2019,"1,026.20",73507-DOMICILIARY CARE,Third Party Payments,Private Contractor Fees,Revenue
Walsall Council,http://opendatacommunities.org/id/metropolitan-district-council/walsall,WC108-247,30/09/2019,Adult Social Care,ADVANCE HEALTH CARE (UK) LTD,12/09/2019,"1,199.81",73507-DOMICILIARY CARE,Third Party Payments,Private Contractor Fees,Revenue
Walsall Council,http://opendatacommunities.org/id/metropolitan-district-council/walsall,WC108-248,30/09/2019,Adult Social Care,ADVANCE HEALTH CARE (UK) LTD,12/09/2019,"1,211.71",73507-DOMICILIARY CARE,Third Party Payments,Private Contractor Fees,Revenue
Walsall Council,http://opendatacommunities.org/id/metropolitan-district-council/walsall,WC108-249,30/09/2019,Adult Social Care,ADVANCE HEALTH CARE (UK) LTD,12/09/2019,"1,248.66",73507-DOMICILIARY CARE,Third Party Payments,Private Contractor Fees,Revenue
Walsall Council,http://opendatacommunities.org/id/metropolitan-district-council/walsall,WC108-250,30/09/2019,Adult Social Care,ADVANCE HEALTH CARE (UK) LTD,12/09/2019,"1,410.86",73507-DOMICILIARY CARE,Third Party Payments,Private Contractor Fees,Revenue
Walsall Council,http://opendatacommunities.org/id/metropolitan-district-council/walsall,WC108-251,30/09/2019,Adult Social Care,ADVANCE HEALTH CARE (UK) LTD,12/09/2019,"1,414.78",73507-DOMICILIARY CARE,Third Party Payments,Private Contractor Fees,Revenue
Walsall Council,http://opendatacommunities.org/id/metropolitan-district-council/walsall,WC108-252,30/09/2019,Adult Social Care,ADVANCE HEALTH CARE (UK) LTD,12/09/2019,"1,540.86",73507-DOMICILIARY CARE,Third Party Payments,Private Contractor Fees,Revenue
Walsall Council,http://opendatacommunities.org/id/metropolitan-district-council/walsall,WC108-253,30/09/2019,Adult Social Care,ADVANCE HEALTH CARE (UK) LTD,12/09/2019,"1,598.91",73507-DOMICILIARY CARE,Third Party Payments,Private Contractor Fees,Revenue
Walsall Council,http://opendatacommunities.org/id/metropolitan-district-council/walsall,WC108-254,30/09/2019,Adult Social Care,ADVANCE HEALTH CARE (UK) LTD,12/09/2019,"1,602.49",73507-DOMICILIARY CARE,Third Party Payments,Private Contractor Fees,Revenue
Walsall Council,http://opendatacommunities.org/id/metropolitan-district-council/walsall,WC108-255,30/09/2019,Adult Social Care,ADVANCE HEALTH CARE (UK) LTD,12/09/2019,"1,627.51",73507-DOMICILIARY CARE,Third Party Payments,Private Contractor Fees,Revenue
Walsall Council,http://opendatacommunities.org/id/metropolitan-district-council/walsall,WC108-256,30/09/2019,Adult Social Care,ADVANCE HEALTH CARE (UK) LTD,12/09/2019,"1,645.34",73507-DOMICILIARY CARE,Third Party Payments,Private Contractor Fees,Revenue
Walsall Council,http://opendatacommunities.org/id/metropolitan-district-council/walsall,WC108-257,30/09/2019,Adult Social Care,ADVANCE HEALTH CARE (UK) LTD,12/09/2019,"1,662.20",73507-DOMICILIARY CARE,Third Party Payments,Private Contractor Fees,Revenue
Walsall Council,http://opendatacommunities.org/id/metropolitan-district-council/walsall,WC108-258,30/09/2019,Adult Social Care,ADVANCE HEALTH CARE (UK) LTD,12/09/2019,"1,670.61",73507-DOMICILIARY CARE,Third Party Payments,Private Contractor Fees,Revenue
Walsall Council,http://opendatacommunities.org/id/metropolitan-district-council/walsall,WC108-259,30/09/2019,Adult Social Care,ADVANCE HEALTH CARE (UK) LTD,12/09/2019,"1,678.68",73507-DOMICILIARY CARE,Third Party Payments,Private Contractor Fees,Revenue
Walsall Council,http://opendatacommunities.org/id/metropolitan-district-council/walsall,WC108-260,30/09/2019,Adult Social Care,ADVANCE HEALTH CARE (UK) LTD,12/09/2019,"1,685.93",73507-DOMICILIARY CARE,Third Party Payments,Private Contractor Fees,Revenue
Walsall Council,http://opendatacommunities.org/id/metropolitan-district-council/walsall,WC108-261,30/09/2019,Adult Social Care,ADVANCE HEALTH CARE (UK) LTD,12/09/2019,"1,694.51",73507-DOMICILIARY CARE,Third Party Payments,Private Contractor Fees,Revenue
Walsall Council,http://opendatacommunities.org/id/metropolitan-district-council/walsall,WC108-262,30/09/2019,Adult Social Care,ADVANCE HEALTH CARE (UK) LTD,12/09/2019,"1,725.47",73507-DOMICILIARY CARE,Third Party Payments,Private Contractor Fees,Revenue
Walsall Council,http://opendatacommunities.org/id/metropolitan-district-council/walsall,WC108-263,30/09/2019,Adult Social Care,ADVANCE HEALTH CARE (UK) LTD,12/09/2019,"1,727.31",73507-DOMICILIARY CARE,Third Party Payments,Private Contractor Fees,Revenue
Walsall Council,http://opendatacommunities.org/id/metropolitan-district-council/walsall,WC108-264,30/09/2019,Adult Social Care,ADVANCE HEALTH CARE (UK) LTD,12/09/2019,"1,740.88",73507-DOMICILIARY CARE,Third Party Payments,Private Contractor Fees,Revenue
Walsall Council,http://opendatacommunities.org/id/metropolitan-district-council/walsall,WC108-265,30/09/2019,Adult Social Care,ADVANCE HEALTH CARE (UK) LTD,12/09/2019,"1,780.55",73507-DOMICILIARY CARE,Third Party Payments,Private Contractor Fees,Revenue
Walsall Council,http://opendatacommunities.org/id/metropolitan-district-council/walsall,WC108-266,30/09/2019,Adult Social Care,ADVANCE HEALTH CARE (UK) LTD,12/09/2019,"1,788.86",73507-DOMICILIARY CARE,Third Party Payments,Private Contractor Fees,Revenue
Walsall Council,http://opendatacommunities.org/id/metropolitan-district-council/walsall,WC108-267,30/09/2019,Adult Social Care,ADVANCE HEALTH CARE (UK) LTD,12/09/2019,"1,804.17",73507-DOMICILIARY CARE,Third Party Payments,Private Contractor Fees,Revenue
Walsall Council,http://opendatacommunities.org/id/metropolitan-district-council/walsall,WC108-268,30/09/2019,Adult Social Care,ADVANCE HEALTH CARE (UK) LTD,12/09/2019,"1,804.17",73507-DOMICILIARY CARE,Third Party Payments,Private Contractor Fees,Revenue
Walsall Council,http://opendatacommunities.org/id/metropolitan-district-council/walsall,WC108-269,30/09/2019,Adult Social Care,ADVANCE HEALTH CARE (UK) LTD,12/09/2019,"1,806.56",73507-DOMICILIARY CARE,Third Party Payments,Private Contractor Fees,Revenue
Walsall Council,http://opendatacommunities.org/id/metropolitan-district-council/walsall,WC108-270,30/09/2019,Adult Social Care,ADVANCE HEALTH CARE (UK) LTD,12/09/2019,"1,812.51",73507-DOMICILIARY CARE,Third Party Payments,Private Contractor Fees,Revenue
Walsall Council,http://opendatacommunities.org/id/metropolitan-district-council/walsall,WC108-271,30/09/2019,Adult Social Care,ADVANCE HEALTH CARE (UK) LTD,12/09/2019,"1,816.08",73507-DOMICILIARY CARE,Third Party Payments,Private Contractor Fees,Revenue
Walsall Council,http://opendatacommunities.org/id/metropolitan-district-council/walsall,WC108-272,30/09/2019,Adult Social Care,ADVANCE HEALTH CARE (UK) LTD,12/09/2019,"1,816.40",73507-DOMICILIARY CARE,Third Party Payments,Private Contractor Fees,Revenue
Walsall Council,http://opendatacommunities.org/id/metropolitan-district-council/walsall,WC108-273,30/09/2019,Adult Social Care,ADVANCE HEALTH CARE (UK) LTD,12/09/2019,"1,818.60",73507-DOMICILIARY CARE,Third Party Payments,Private Contractor Fees,Revenue
Walsall Council,http://opendatacommunities.org/id/metropolitan-district-council/walsall,WC108-274,30/09/2019,Adult Social Care,ADVANCE HEALTH CARE (UK) LTD,12/09/2019,"1,832.81",73507-DOMICILIARY CARE,Third Party Payments,Private Contractor Fees,Revenue
Walsall Council,http://opendatacommunities.org/id/metropolitan-district-council/walsall,WC108-275,30/09/2019,Adult Social Care,ADVANCE HEALTH CARE (UK) LTD,12/09/2019,"1,838.80",73507-DOMICILIARY CARE,Third Party Payments,Private Contractor Fees,Revenue
Walsall Council,http://opendatacommunities.org/id/metropolitan-district-council/walsall,WC108-276,30/09/2019,Adult Social Care,ADVANCE HEALTH CARE (UK) LTD,12/09/2019,"1,875.76",73507-DOMICILIARY CARE,Third Party Payments,Private Contractor Fees,Revenue
Walsall Council,http://opendatacommunities.org/id/metropolitan-district-council/walsall,WC108-277,30/09/2019,Adult Social Care,ADVANCE HEALTH CARE (UK) LTD,12/09/2019,"1,904.52",73507-DOMICILIARY CARE,Third Party Payments,Private Contractor Fees,Revenue
Walsall Council,http://opendatacommunities.org/id/metropolitan-district-council/walsall,WC108-278,30/09/2019,Adult Social Care,ADVANCE HEALTH CARE (UK) LTD,12/09/2019,"2,081.52",73507-DOMICILIARY CARE,Third Party Payments,Private Contractor Fees,Revenue
Walsall Council,http://opendatacommunities.org/id/metropolitan-district-council/walsall,WC108-279,30/09/2019,Adult Social Care,ADVANCE HEALTH CARE (UK) LTD,12/09/2019,"2,081.60",73507-DOMICILIARY CARE,Third Party Payments,Private Contractor Fees,Revenue
Walsall Council,http://opendatacommunities.org/id/metropolitan-district-council/walsall,WC108-280,30/09/2019,Adult Social Care,ADVANCE HEALTH CARE (UK) LTD,12/09/2019,"2,114.44",73507-DOMICILIARY CARE,Third Party Payments,Private Contractor Fees,Revenue
Walsall Council,http://opendatacommunities.org/id/metropolitan-district-council/walsall,WC108-281,30/09/2019,Adult Social Care,ADVANCE HEALTH CARE (UK) LTD,12/09/2019,"2,198.35",73507-DOMICILIARY CARE,Third Party Payments,Private Contractor Fees,Revenue
Walsall Council,http://opendatacommunities.org/id/metropolitan-district-council/walsall,WC108-282,30/09/2019,Adult Social Care,ADVANCE HEALTH CARE (UK) LTD,12/09/2019,"2,515.12",73507-DOMICILIARY CARE,Third Party Payments,Private Contractor Fees,Revenue
Walsall Council,http://opendatacommunities.org/id/metropolitan-district-council/walsall,WC108-283,30/09/2019,Adult Social Care,ADVANCE HEALTH CARE (UK) LTD,12/09/2019,"2,524.45",73507-DOMICILIARY CARE,Third Party Payments,Private Contractor Fees,Revenue
Walsall Council,http://opendatacommunities.org/id/metropolitan-district-council/walsall,WC108-284,30/09/2019,Adult Social Care,ADVANCE HEALTH CARE (UK) LTD,12/09/2019,"3,208.65",73507-DOMICILIARY CARE,Third Party Payments,Private Contractor Fees,Revenue
Walsall Council,http://opendatacommunities.org/id/metropolitan-district-council/walsall,WC108-285,30/09/2019,Adult Social Care,ADVANCE HEALTH CARE (UK) LTD,12/09/2019,"4,807.71",73507-DOMICILIARY CARE,Third Party Payments,Private Contractor Fees,Revenue
Walsall Council,http://opendatacommunities.org/id/metropolitan-district-council/walsall,WC108-286,30/09/2019,Economy & Environment,ADVANCE PHARMA LTD T/A PLECK PHARMACY,09/09/2019,"1,238.30",63253-PAYMENT TO CONTRACTOR,Third Party Payments,Private Contractor Fees,Revenue
Walsall Council,http://opendatacommunities.org/id/metropolitan-district-council/walsall,WC108-287,30/09/2019,Childrens,ADVANCED CONTRACTS (MIDLANDS) LTD,23/09/2019,984.00,01006-SITE WORKS MAIN CONTRACTORS,Capital,Capital,Capital
Walsall Council,http://opendatacommunities.org/id/metropolitan-district-council/walsall,WC108-288,30/09/2019,Childrens,ADVANCED CONTRACTS (MIDLANDS) LTD,04/09/2019,"2,835.00",01006-SITE WORKS MAIN CONTRACTORS,Capital,Capital,Capital
Walsall Council,http://opendatacommunities.org/id/metropolitan-district-council/walsall,WC108-289,30/09/2019,Childrens,ADVANCED CONTRACTS (MIDLANDS) LTD,12/09/2019,"4,835.00",01006-SITE WORKS MAIN CONTRACTORS,Capital,Capital,Capital
Walsall Council,http://opendatacommunities.org/id/metropolitan-district-council/walsall,WC108-290,30/09/2019,Childrens,ADVENTURELAND DAY NURSERY,06/09/2019,255.45,66505-OTHER-GRANTS TO OTHER ORGS,Third Party Payments,Grants to Other Orgs,Revenue
Walsall Council,http://opendatacommunities.org/id/metropolitan-district-council/walsall,WC108-291,30/09/2019,Childrens,ADVENTURELAND DAY NURSERY,06/09/2019,"7,427.70",66505-OTHER-GRANTS TO OTHER ORGS,Third Party Payments,Grants to Other Orgs,Revenue
Walsall Council,http://opendatacommunities.org/id/metropolitan-district-council/walsall,WC108-292,30/09/2019,Childrens,ADVENTURELAND DAY NURSERY,06/09/2019,"10,276.88",66505-OTHER-GRANTS TO OTHER ORGS,Third Party Payments,Grants to Other Orgs,Revenue
Walsall Council,http://opendatacommunities.org/id/metropolitan-district-council/walsall,WC108-293,30/09/2019,Economy & Environment,AEBI SCHMIDT UK LIMITED,24/09/2019,335.34,73025-PROFESSIONAL SERVICES-PRIV CONTRACTOR & OTHER AGENCIES,Third Party Payments,Private Contractor Fees,Revenue
Walsall Council,http://opendatacommunities.org/id/metropolitan-district-council/walsall,WC108-294,30/09/2019,Economy & Environment,AEBI SCHMIDT UK LIMITED,03/09/2019,625.65,60500-GENERAL MATERIALS,Supplies & Services,"Equip,Furniture & Materials",Revenue
Walsall Council,http://opendatacommunities.org/id/metropolitan-district-council/walsall,WC108-295,30/09/2019,Economy & Environment,AEBI SCHMIDT UK LIMITED,09/09/2019,895.07,60500-GENERAL MATERIALS,Supplies & Services,"Equip,Furniture & Materials",Revenue
Walsall Council,http://opendatacommunities.org/id/metropolitan-district-council/walsall,WC108-296,30/09/2019,Economy & Environment,AECOM LIMITED,11/09/2019,"3,783.00",01001-OTHER CONSULTANTS FEES,Capital,Capital,Capital
Walsall Council,http://opendatacommunities.org/id/metropolitan-district-council/walsall,WC108-297,30/09/2019,Economy & Environment,AECOM LIMITED,11/09/2019,"5,173.75",01001-OTHER CONSULTANTS FEES,Capital,Capital,Capital
Walsall Council,http://opendatacommunities.org/id/metropolitan-district-council/walsall,WC108-298,30/09/2019,Economy & Environment,AECOM LIMITED,11/09/2019,"11,141.85",01001-OTHER CONSULTANTS FEES,Capital,Capital,Capital
Walsall Council,http://opendatacommunities.org/id/metropolitan-district-council/walsall,WC108-299,30/09/2019,Economy & Environment,AGILE APPLICATIONS LIMITED,20/09/2019,"3,000.00",01044-PURCHASE OF FURNITURE & EQUIPMENT,Capital,Capital,Capital
Walsall Council,http://opendatacommunities.org/id/metropolitan-district-council/walsall,WC108-300,30/09/2019,Economy & Environment,AGILE APPLICATIONS LIMITED,20/09/2019,"3,000.00",63800-COMPUTER EQUIPMENT AND SUPPLIES,Supplies & Services,Communications & Computing,Revenue
Walsall Council,http://opendatacommunities.org/id/metropolitan-district-council/walsall,WC108-301,30/09/2019,Adult Social Care,REDACTED,06/09/2019,"2,907.00",73506-DIRECT PAYMENT,Third Party Payments,Private Contractor Fees,Revenue
Walsall Council,http://opendatacommunities.org/id/metropolitan-district-council/walsall,WC108-302,30/09/2019,Economy & Environment,AIRQUEE,06/09/2019,"3,615.00",60006-NEW-FURNITURE & EQUIPMENT,Supplies & Services,"Equip,Furniture & Materials",Revenue
Walsall Council,http://opendatacommunities.org/id/metropolitan-district-council/walsall,WC108-303,30/09/2019,Childrens,ALBRIGHTON CARE LTD,24/09/2019,546.00,52000-WITH DRIVER-HIRE OF VEHICLES,Transport,Hire,Revenue
Walsall Council,http://opendatacommunities.org/id/metropolitan-district-council/walsall,WC108-304,30/09/2019,Childrens,ALBRIGHTON CARE LTD,24/09/2019,"1,638.00",52000-WITH DRIVER-HIRE OF VEHICLES,Transport,Hire,Revenue
Walsall Council,http://opendatacommunities.org/id/metropolitan-district-council/walsall,WC108-305,30/09/2019,Childrens,ALBRIGHTON CARE LTD,24/09/2019,"1,848.00",52000-WITH DRIVER-HIRE OF VEHICLES,Transport,Hire,Revenue
Walsall Council,http://opendatacommunities.org/id/metropolitan-district-council/walsall,WC108-306,30/09/2019,Childrens,ALBRIGHTON CARE LTD,06/09/2019,"9,980.00",74036-EXTERNAL RESIDENTIAL CARE-OTH AGENCY PROVISION,Third Party Payments,Private Contractor Fees,Revenue
Walsall Council,http://opendatacommunities.org/id/metropolitan-district-council/walsall,WC108-307,30/09/2019,Economy & Environment,ALDERBROOK HEALTHCARE LTD,24/09/2019,"2,665.00",63000-PROFESSIONAL FEES AND SERVICES,Supplies & Services,Services,Revenue
Walsall Council,http://opendatacommunities.org/id/metropolitan-district-council/walsall,WC108-308,30/09/2019,Adult Social Care,ALDERGROVE MANOR LTD,16/09/2019,"1,972.24",73501-RESIDENTIAL EMI,Third Party Payments,Private Contractor Fees,Revenue
Walsall Council,http://opendatacommunities.org/id/metropolitan-district-council/walsall,WC108-309,30/09/2019,Adult Social Care,ALDERGROVE MANOR LTD,16/09/2019,"1,972.24",73501-RESIDENTIAL EMI,Third Party Payments,Private Contractor Fees,Revenue
Walsall Council,http://opendatacommunities.org/id/metropolitan-district-council/walsall,WC108-310,30/09/2019,Adult Social Care,ALDERGROVE MANOR LTD,16/09/2019,"2,107.92",73501-RESIDENTIAL EMI,Third Party Payments,Private Contractor Fees,Revenue
Walsall Council,http://opendatacommunities.org/id/metropolitan-district-council/walsall,WC108-311,30/09/2019,Adult Social Care,ALDERGROVE MANOR LTD,16/09/2019,"2,132.24",73501-RESIDENTIAL EMI,Third Party Payments,Private Contractor Fees,Revenue
Walsall Council,http://opendatacommunities.org/id/metropolitan-district-council/walsall,WC108-312,30/09/2019,Adult Social Care,ALDERGROVE MANOR LTD,16/09/2019,"2,143.72",73502-NURSING,Third Party Payments,Private Contractor Fees,Revenue
Walsall Council,http://opendatacommunities.org/id/metropolitan-district-council/walsall,WC108-313,30/09/2019,Adult Social Care,REDACTED,06/09/2019,"1,686.00",73506-DIRECT PAYMENT,Third Party Payments,Private Contractor Fees,Revenue
Walsall Council,http://opendatacommunities.org/id/metropolitan-district-council/walsall,WC108-314,30/09/2019,Adult Social Care,ALEXANDRA HOUSE CARE SERVICES LTD T/A STONEBRIDGE NURSING HOME,16/09/2019,"7,188.60",73500-RESIDENTIAL,Third Party Payments,Private Contractor Fees,Revenue
Walsall Council,http://opendatacommunities.org/id/metropolitan-district-council/walsall,WC108-315,30/09/2019,Adult Social Care,REDACTED,06/09/2019,"2,258.20",73506-DIRECT PAYMENT,Third Party Payments,Private Contractor Fees,Revenue
Walsall Council,http://opendatacommunities.org/id/metropolitan-district-council/walsall,WC108-316,30/09/2019,Adult Social Care,REDACTED,06/09/2019,"1,122.00",73506-DIRECT PAYMENT,Third Party Payments,Private Contractor Fees,Revenue
Walsall Council,http://opendatacommunities.org/id/metropolitan-district-council/walsall,WC108-317,30/09/2019,Adult Social Care,REDACTED,06/09/2019,"5,925.30",73506-DIRECT PAYMENT,Third Party Payments,Private Contractor Fees,Revenue
Walsall Council,http://opendatacommunities.org/id/metropolitan-district-council/walsall,WC108-318,30/09/2019,Adult Social Care,REDACTED,06/09/2019,"1,627.05",73510-SHARED LIVES,Third Party Payments,Private Contractor Fees,Revenue
Walsall Council,http://opendatacommunities.org/id/metropolitan-district-council/walsall,WC108-319,30/09/2019,Childrens,REDACTED,23/09/2019,312.24,74509-SPECIAL GUARDIANSHIP ORDERS,Transfer Payments,Transfer Payments,Revenue
Walsall Council,http://opendatacommunities.org/id/metropolitan-district-council/walsall,WC108-320,30/09/2019,Economy & Environment,ALL CLEAR SERVICES LTD.,19/09/2019,550.00,60500-GENERAL MATERIALS,Supplies & Services,"Equip,Furniture & Materials",Revenue
Walsall Council,http://opendatacommunities.org/id/metropolitan-district-council/walsall,WC108-321,30/09/2019,Childrens,ALL SAINTS NATIONAL ACADEMY #1,01/09/2019,"3,925.39",66502-TOP UP FUNDING -GRANTS TO SCHOOLS,Third Party Payments,Grants to Other Orgs,Revenue
Walsall Council,http://opendatacommunities.org/id/metropolitan-district-council/walsall,WC108-322,30/09/2019,Adult Social Care,REDACTED,06/09/2019,"2,007.60",73506-DIRECT PAYMENT,Third Party Payments,Private Contractor Fees,Revenue
Walsall Council,http://opendatacommunities.org/id/metropolitan-district-council/walsall,WC108-323,30/09/2019,Adult Social Care,ALLIED PUBLICITY SERVICES (MANCHESTER) LIMITED T/A APS GROUP,16/09/2019,"1,398.88",63000-PROFESSIONAL FEES AND SERVICES,Supplies & Services,Services,Revenue
Walsall Council,http://opendatacommunities.org/id/metropolitan-district-council/walsall,WC108-324,30/09/2019,Adult Social Care,ALMA COURT,16/09/2019,"6,400.00",73500-RESIDENTIAL,Third Party Payments,Private Contractor Fees,Revenue
Walsall Council,http://opendatacommunities.org/id/metropolitan-district-council/walsall,WC108-325,30/09/2019,Childrens,ALMOZENE NURSERY & CHILDRENS CENTRE,01/09/2019,"3,301.20",66505-OTHER-GRANTS TO OTHER ORGS,Third Party Payments,Grants to Other Orgs,Revenue
Walsall Council,http://opendatacommunities.org/id/metropolitan-district-council/walsall,WC108-326,30/09/2019,Childrens,ALMOZENE NURSERY & CHILDRENS CENTRE,01/09/2019,"9,591.75",66505-OTHER-GRANTS TO OTHER ORGS,Third Party Payments,Grants to Other Orgs,Revenue
Walsall Council,http://opendatacommunities.org/id/metropolitan-district-council/walsall,WC108-327,30/09/2019,Adult Social Care,ALPHA HEALTH CARE LTD,16/09/2019,"1,774.96",73500-RESIDENTIAL,Third Party Payments,Private Contractor Fees,Revenue
Walsall Council,http://opendatacommunities.org/id/metropolitan-district-council/walsall,WC108-328,30/09/2019,Adult Social Care,ALPHA HEALTH CARE LTD,16/09/2019,"1,955.54",73503-NURSING EMI,Third Party Payments,Private Contractor Fees,Revenue
Walsall Council,http://opendatacommunities.org/id/metropolitan-district-council/walsall,WC108-329,30/09/2019,Adult Social Care,ALPHA HEALTH CARE LTD,16/09/2019,"1,972.24",73501-RESIDENTIAL EMI,Third Party Payments,Private Contractor Fees,Revenue
Walsall Council,http://opendatacommunities.org/id/metropolitan-district-council/walsall,WC108-330,30/09/2019,Adult Social Care,ALPHA HEALTH CARE LTD,16/09/2019,"2,143.72",73502-NURSING,Third Party Payments,Private Contractor Fees,Revenue
Walsall Council,http://opendatacommunities.org/id/metropolitan-district-council/walsall,WC108-331,30/09/2019,Adult Social Care,ALPHA HEALTH CARE LTD,16/09/2019,"2,255.72",73501-RESIDENTIAL EMI,Third Party Payments,Private Contractor Fees,Revenue
Walsall Council,http://opendatacommunities.org/id/metropolitan-district-council/walsall,WC108-332,30/09/2019,Adult Social Care,ALPHA HEALTH CARE LTD,16/09/2019,"2,358.08",73503-NURSING EMI,Third Party Payments,Private Contractor Fees,Revenue
Walsall Council,http://opendatacommunities.org/id/metropolitan-district-council/walsall,WC108-333,30/09/2019,Adult Social Care,ALPHA HEALTH CARE LTD,16/09/2019,"2,358.08",73503-NURSING EMI,Third Party Payments,Private Contractor Fees,Revenue
Walsall Council,http://opendatacommunities.org/id/metropolitan-district-council/walsall,WC108-334,30/09/2019,Adult Social Care,ALPHA HEALTH CARE LTD,16/09/2019,"2,358.08",73503-NURSING EMI,Third Party Payments,Private Contractor Fees,Revenue
Walsall Council,http://opendatacommunities.org/id/metropolitan-district-council/walsall,WC108-335,30/09/2019,Adult Social Care,ALPHA HEALTH CARE LTD,16/09/2019,"2,495.72",73501-RESIDENTIAL EMI,Third Party Payments,Private Contractor Fees,Revenue
Walsall Council,http://opendatacommunities.org/id/metropolitan-district-council/walsall,WC108-336,30/09/2019,Adult Social Care,ALPHA HEALTH CARE LTD,16/09/2019,"2,558.08",73503-NURSING EMI,Third Party Payments,Private Contractor Fees,Revenue
Walsall Council,http://opendatacommunities.org/id/metropolitan-district-council/walsall,WC108-337,30/09/2019,Adult Social Care,ALPHA HEALTH CARE LTD,16/09/2019,"2,837.76",73503-NURSING EMI,Third Party Payments,Private Contractor Fees,Revenue
Walsall Council,http://opendatacommunities.org/id/metropolitan-district-council/walsall,WC108-338,30/09/2019,Adult Social Care,ALPHA HEALTH CARE LTD,16/09/2019,"2,881.80",73503-NURSING EMI,Third Party Payments,Private Contractor Fees,Revenue
Walsall Council,http://opendatacommunities.org/id/metropolitan-district-council/walsall,WC108-339,30/09/2019,Adult Social Care,ALPHA HEALTH CARE LTD,16/09/2019,"2,881.80",73503-NURSING EMI,Third Party Payments,Private Contractor Fees,Revenue
Walsall Council,http://opendatacommunities.org/id/metropolitan-district-council/walsall,WC108-340,30/09/2019,Adult Social Care,ALPHA HEALTH CARE LTD,16/09/2019,"2,881.80",73503-NURSING EMI,Third Party Payments,Private Contractor Fees,Revenue
Walsall Council,http://opendatacommunities.org/id/metropolitan-district-council/walsall,WC108-341,30/09/2019,Adult Social Care,ALPHA HEALTH CARE LTD,16/09/2019,"2,881.80",73503-NURSING EMI,Third Party Payments,Private Contractor Fees,Revenue
Walsall Council,http://opendatacommunities.org/id/metropolitan-district-council/walsall,WC108-342,30/09/2019,Adult Social Care,ALPHA HEALTH CARE LTD,16/09/2019,"2,881.84",73503-NURSING EMI,Third Party Payments,Private Contractor Fees,Revenue
Walsall Council,http://opendatacommunities.org/id/metropolitan-district-council/walsall,WC108-343,30/09/2019,Adult Social Care,ALPHA HEALTH CARE LTD,16/09/2019,"2,937.88",73503-NURSING EMI,Third Party Payments,Private Contractor Fees,Revenue
Walsall Council,http://opendatacommunities.org/id/metropolitan-district-council/walsall,WC108-344,30/09/2019,Adult Social Care,ALPHA HEALTH CARE LTD,16/09/2019,"3,035.72",73501-RESIDENTIAL EMI,Third Party Payments,Private Contractor Fees,Revenue
Walsall Council,http://opendatacommunities.org/id/metropolitan-district-council/walsall,WC108-345,30/09/2019,Adult Social Care,ALPHA HEALTH CARE LTD,16/09/2019,"3,035.72",73501-RESIDENTIAL EMI,Third Party Payments,Private Contractor Fees,Revenue
Walsall Council,http://opendatacommunities.org/id/metropolitan-district-council/walsall,WC108-346,30/09/2019,Adult Social Care,ALPHA HEALTH CARE LTD,16/09/2019,"3,290.36",73503-NURSING EMI,Third Party Payments,Private Contractor Fees,Revenue
Walsall Council,http://opendatacommunities.org/id/metropolitan-district-council/walsall,WC108-347,30/09/2019,Adult Social Care,ALPHA HEALTH CARE LTD,16/09/2019,"3,514.44",73503-NURSING EMI,Third Party Payments,Private Contractor Fees,Revenue
Walsall Council,http://opendatacommunities.org/id/metropolitan-district-council/walsall,WC108-348,30/09/2019,Adult Social Care,ALPHA HEALTH CARE LTD,23/09/2019,"5,722.77",73025-PROFESSIONAL SERVICES-PRIV CONTRACTOR & OTHER AGENCIES,Third Party Payments,Private Contractor Fees,Revenue
Walsall Council,http://opendatacommunities.org/id/metropolitan-district-council/walsall,WC108-349,30/09/2019,Adult Social Care,ALPHA HEALTH CARE LTD,16/09/2019,"18,250.00",73506-DIRECT PAYMENT,Third Party Payments,Private Contractor Fees,Revenue
Walsall Council,http://opendatacommunities.org/id/metropolitan-district-council/walsall,WC108-350,30/09/2019,Childrens,ALTERNATIVE COMMUNICATIONS SYSTEMS LTD,25/09/2019,305.00,01006-SITE WORKS MAIN CONTRACTORS,Capital,Capital,Capital
Walsall Council,http://opendatacommunities.org/id/metropolitan-district-council/walsall,WC108-351,30/09/2019,Childrens,ALTERNATIVE COMMUNICATIONS SYSTEMS LTD,16/09/2019,340.00,01006-SITE WORKS MAIN CONTRACTORS,Capital,Capital,Capital
Walsall Council,http://opendatacommunities.org/id/metropolitan-district-council/walsall,WC108-352,30/09/2019,Resources and Transformation,ALTULA LTD,11/09/2019,"4,563.90",63800-COMPUTER EQUIPMENT AND SUPPLIES,Supplies & Services,Communications & Computing,Revenue
Walsall Council,http://opendatacommunities.org/id/metropolitan-district-council/walsall,WC108-353,30/09/2019,Childrens,REDACTED,10/09/2019,255.00,73506-DIRECT PAYMENT,Third Party Payments,Private Contractor Fees,Revenue
Walsall Council,http://opendatacommunities.org/id/metropolitan-district-council/walsall,WC108-354,30/09/2019,Childrens,AMAH NURSERIES LIMITED T/A BANANA MOON WALSALL,01/09/2019,"13,017.38",66505-OTHER-GRANTS TO OTHER ORGS,Third Party Payments,Grants to Other Orgs,Revenue
Walsall Council,http://opendatacommunities.org/id/metropolitan-district-council/walsall,WC108-355,30/09/2019,Childrens,AMAH NURSERIES LIMITED T/A BANANA MOON WALSALL,01/09/2019,"13,204.80",66505-OTHER-GRANTS TO OTHER ORGS,Third Party Payments,Grants to Other Orgs,Revenue
Walsall Council,http://opendatacommunities.org/id/metropolitan-district-council/walsall,WC108-356,30/09/2019,Childrens,REDACTED,23/09/2019,318.08,74510-RESIDENTS ORDERS,Third Party Payments,Private Contractor Fees,Revenue
Walsall Council,http://opendatacommunities.org/id/metropolitan-district-council/walsall,WC108-357,30/09/2019,Childrens,REDACTED,23/09/2019,370.28,74510-RESIDENTS ORDERS,Third Party Payments,Private Contractor Fees,Revenue
Walsall Council,http://opendatacommunities.org/id/metropolitan-district-council/walsall,WC108-358,30/09/2019,Adult Social Care,REDACTED,06/09/2019,"1,410.95",73506-DIRECT PAYMENT,Third Party Payments,Private Contractor Fees,Revenue
Walsall Council,http://opendatacommunities.org/id/metropolitan-district-council/walsall,WC108-359,30/09/2019,Childrens,REDACTED,23/09/2019,808.04,74009-ADOPTION ALLOWANCE,Transfer Payments,Transfer Payments,Revenue
Walsall Council,http://opendatacommunities.org/id/metropolitan-district-council/walsall,WC108-360,30/09/2019,Childrens,REDACTED,06/09/2019,276.38,74506-TRAVEL-FOSTER CARERS,Transfer Payments,Transfer Payments,Revenue
Walsall Council,http://opendatacommunities.org/id/metropolitan-district-council/walsall,WC108-361,30/09/2019,Childrens,REDACTED,06/09/2019,557.14,74501-MAINTENANCE ALLOWANCE-FOSTER CARERS,Transfer Payments,Transfer Payments,Revenue
Walsall Council,http://opendatacommunities.org/id/metropolitan-district-council/walsall,WC108-362,30/09/2019,Childrens,REDACTED,06/09/2019,"1,000.00",74508-INTERNAL FOSTER CARERS-CARER FEES,Transfer Payments,Transfer Payments,Revenue
Walsall Council,http://opendatacommunities.org/id/metropolitan-district-council/walsall,WC108-363,30/09/2019,Adult Social Care,REDACTED,06/09/2019,"1,268.10",73506-DIRECT PAYMENT,Third Party Payments,Private Contractor Fees,Revenue
Walsall Council,http://opendatacommunities.org/id/metropolitan-district-council/walsall,WC108-364,30/09/2019,Economy & Environment,AMEY LG LIMITED,13/09/2019,"2,527.88",01002-PROJECT FEES,Capital,Capital,Capital
Walsall Council,http://opendatacommunities.org/id/metropolitan-district-council/walsall,WC108-365,30/09/2019,Economy & Environment,AMEY LG LIMITED,05/09/2019,"12,376.67",73025-PROFESSIONAL SERVICES-PRIV CONTRACTOR & OTHER AGENCIES,Third Party Payments,Private Contractor Fees,Revenue
Walsall Council,http://opendatacommunities.org/id/metropolitan-district-council/walsall,WC108-366,30/09/2019,Adult Social Care,AMG NURSING CARE SERVICES,20/09/2019,"3,632.42",73508-COMMUNITY SUPPORTED LIVING/SUPPORTED ACCOMMODATION,Third Party Payments,Private Contractor Fees,Revenue
Walsall Council,http://opendatacommunities.org/id/metropolitan-district-council/walsall,WC108-367,30/09/2019,Adult Social Care,AMG NURSING CARE SERVICES,20/09/2019,"10,711.68",73508-COMMUNITY SUPPORTED LIVING/SUPPORTED ACCOMMODATION,Third Party Payments,Private Contractor Fees,Revenue
Walsall Council,http://opendatacommunities.org/id/metropolitan-district-council/walsall,WC108-368,30/09/2019,Adult Social Care,REDACTED,06/09/2019,"1,445.15",73506-DIRECT PAYMENT,Third Party Payments,Private Contractor Fees,Revenue
Walsall Council,http://opendatacommunities.org/id/metropolitan-district-council/walsall,WC108-369,30/09/2019,Childrens,REDACTED,23/09/2019,340.00,74508-INTERNAL FOSTER CARERS-CARER FEES,Transfer Payments,Transfer Payments,Revenue
Walsall Council,http://opendatacommunities.org/id/metropolitan-district-council/walsall,WC108-370,30/09/2019,Childrens,REDACTED,23/09/2019,600.00,74501-MAINTENANCE ALLOWANCE-FOSTER CARERS,Transfer Payments,Transfer Payments,Revenue
Walsall Council,http://opendatacommunities.org/id/metropolitan-district-council/walsall,WC108-371,30/09/2019,Childrens,REDACTED,23/09/2019,425.08,74510-RESIDENTS ORDERS,Third Party Payments,Private Contractor Fees,Revenue
Walsall Council,http://opendatacommunities.org/id/metropolitan-district-council/walsall,WC108-372,30/09/2019,Adult Social Care,ANCHOR,16/09/2019,"-1,338.31",73501-RESIDENTIAL EMI,Third Party Payments,Private Contractor Fees,Revenue
Walsall Council,http://opendatacommunities.org/id/metropolitan-district-council/walsall,WC108-373,30/09/2019,Adult Social Care,ANCHOR,16/09/2019,697.31,73500-RESIDENTIAL,Third Party Payments,Private Contractor Fees,Revenue
Walsall Council,http://opendatacommunities.org/id/metropolitan-district-council/walsall,WC108-374,30/09/2019,Adult Social Care,ANCHOR,16/09/2019,"1,774.96",73500-RESIDENTIAL,Third Party Payments,Private Contractor Fees,Revenue
Walsall Council,http://opendatacommunities.org/id/metropolitan-district-council/walsall,WC108-375,30/09/2019,Adult Social Care,ANCHOR,16/09/2019,"1,774.96",73500-RESIDENTIAL,Third Party Payments,Private Contractor Fees,Revenue
Walsall Council,http://opendatacommunities.org/id/metropolitan-district-council/walsall,WC108-376,30/09/2019,Adult Social Care,ANCHOR,16/09/2019,"1,774.96",73500-RESIDENTIAL,Third Party Payments,Private Contractor Fees,Revenue
Walsall Council,http://opendatacommunities.org/id/metropolitan-district-council/walsall,WC108-377,30/09/2019,Adult Social Care,ANCHOR,16/09/2019,"1,774.96",73500-RESIDENTIAL,Third Party Payments,Private Contractor Fees,Revenue
Walsall Council,http://opendatacommunities.org/id/metropolitan-district-council/walsall,WC108-378,30/09/2019,Adult Social Care,ANCHOR,16/09/2019,"1,774.96",73500-RESIDENTIAL,Third Party Payments,Private Contractor Fees,Revenue
Walsall Council,http://opendatacommunities.org/id/metropolitan-district-council/walsall,WC108-379,30/09/2019,Adult Social Care,ANCHOR,16/09/2019,"1,774.96",73500-RESIDENTIAL,Third Party Payments,Private Contractor Fees,Revenue
Walsall Council,http://opendatacommunities.org/id/metropolitan-district-council/walsall,WC108-380,30/09/2019,Adult Social Care,ANCHOR,16/09/2019,"1,834.96",73500-RESIDENTIAL,Third Party Payments,Private Contractor Fees,Revenue
Walsall Council,http://opendatacommunities.org/id/metropolitan-district-council/walsall,WC108-381,30/09/2019,Adult Social Care,ANCHOR,16/09/2019,"1,926.12",73500-RESIDENTIAL,Third Party Payments,Private Contractor Fees,Revenue
Walsall Council,http://opendatacommunities.org/id/metropolitan-district-council/walsall,WC108-382,30/09/2019,Adult Social Care,ANCHOR,16/09/2019,"1,934.96",73500-RESIDENTIAL,Third Party Payments,Private Contractor Fees,Revenue
Walsall Council,http://opendatacommunities.org/id/metropolitan-district-council/walsall,WC108-383,30/09/2019,Adult Social Care,ANCHOR,16/09/2019,"1,935.72",73501-RESIDENTIAL EMI,Third Party Payments,Private Contractor Fees,Revenue
Walsall Council,http://opendatacommunities.org/id/metropolitan-district-council/walsall,WC108-384,30/09/2019,Adult Social Care,ANCHOR,16/09/2019,"1,972.24",73501-RESIDENTIAL EMI,Third Party Payments,Private Contractor Fees,Revenue
Walsall Council,http://opendatacommunities.org/id/metropolitan-district-council/walsall,WC108-385,30/09/2019,Adult Social Care,ANCHOR,16/09/2019,"1,972.24",73501-RESIDENTIAL EMI,Third Party Payments,Private Contractor Fees,Revenue
Walsall Council,http://opendatacommunities.org/id/metropolitan-district-council/walsall,WC108-386,30/09/2019,Adult Social Care,ANCHOR,16/09/2019,"1,972.24",73501-RESIDENTIAL EMI,Third Party Payments,Private Contractor Fees,Revenue
Walsall Council,http://opendatacommunities.org/id/metropolitan-district-council/walsall,WC108-387,30/09/2019,Adult Social Care,ANCHOR,16/09/2019,"1,972.24",73501-RESIDENTIAL EMI,Third Party Payments,Private Contractor Fees,Revenue
Walsall Council,http://opendatacommunities.org/id/metropolitan-district-council/walsall,WC108-388,30/09/2019,Adult Social Care,ANCHOR,16/09/2019,"1,972.24",73501-RESIDENTIAL EMI,Third Party Payments,Private Contractor Fees,Revenue
Walsall Council,http://opendatacommunities.org/id/metropolitan-district-council/walsall,WC108-389,30/09/2019,Adult Social Care,ANCHOR,16/09/2019,"1,972.24",73501-RESIDENTIAL EMI,Third Party Payments,Private Contractor Fees,Revenue
Walsall Council,http://opendatacommunities.org/id/metropolitan-district-council/walsall,WC108-390,30/09/2019,Adult Social Care,ANCHOR,16/09/2019,"1,972.24",73501-RESIDENTIAL EMI,Third Party Payments,Private Contractor Fees,Revenue
Walsall Council,http://opendatacommunities.org/id/metropolitan-district-council/walsall,WC108-391,30/09/2019,Adult Social Care,ANCHOR,16/09/2019,"1,972.24",73501-RESIDENTIAL EMI,Third Party Payments,Private Contractor Fees,Revenue
Walsall Council,http://opendatacommunities.org/id/metropolitan-district-council/walsall,WC108-392,30/09/2019,Adult Social Care,ANCHOR,16/09/2019,"1,972.24",73501-RESIDENTIAL EMI,Third Party Payments,Private Contractor Fees,Revenue
Walsall Council,http://opendatacommunities.org/id/metropolitan-district-council/walsall,WC108-393,30/09/2019,Adult Social Care,ANCHOR,16/09/2019,"1,972.24",73501-RESIDENTIAL EMI,Third Party Payments,Private Contractor Fees,Revenue
Walsall Council,http://opendatacommunities.org/id/metropolitan-district-council/walsall,WC108-394,30/09/2019,Adult Social Care,ANCHOR,16/09/2019,"1,972.24",73501-RESIDENTIAL EMI,Third Party Payments,Private Contractor Fees,Revenue
Walsall Council,http://opendatacommunities.org/id/metropolitan-district-council/walsall,WC108-395,30/09/2019,Adult Social Care,ANCHOR,16/09/2019,"2,054.96",73500-RESIDENTIAL,Third Party Payments,Private Contractor Fees,Revenue
Walsall Council,http://opendatacommunities.org/id/metropolitan-district-council/walsall,WC108-396,30/09/2019,Adult Social Care,ANCHOR,16/09/2019,"2,094.96",73500-RESIDENTIAL,Third Party Payments,Private Contractor Fees,Revenue
Walsall Council,http://opendatacommunities.org/id/metropolitan-district-council/walsall,WC108-397,30/09/2019,Adult Social Care,ANCHOR,16/09/2019,"2,094.96",73500-RESIDENTIAL,Third Party Payments,Private Contractor Fees,Revenue
Walsall Council,http://opendatacommunities.org/id/metropolitan-district-council/walsall,WC108-398,30/09/2019,Adult Social Care,ANCHOR,16/09/2019,"2,114.96",73500-RESIDENTIAL,Third Party Payments,Private Contractor Fees,Revenue
Walsall Council,http://opendatacommunities.org/id/metropolitan-district-council/walsall,WC108-399,30/09/2019,Adult Social Care,ANCHOR,16/09/2019,"2,144.56",73501-RESIDENTIAL EMI,Third Party Payments,Private Contractor Fees,Revenue
Walsall Council,http://opendatacommunities.org/id/metropolitan-district-council/walsall,WC108-400,30/09/2019,Adult Social Care,ANCHOR,16/09/2019,"2,175.72",73501-RESIDENTIAL EMI,Third Party Payments,Private Contractor Fees,Revenue
Walsall Council,http://opendatacommunities.org/id/metropolitan-district-council/walsall,WC108-401,30/09/2019,Adult Social Care,ANCHOR,16/09/2019,"2,266.12",73500-RESIDENTIAL,Third Party Payments,Private Contractor Fees,Revenue
Walsall Council,http://opendatacommunities.org/id/metropolitan-district-council/walsall,WC108-402,30/09/2019,Adult Social Care,ANCHOR,16/09/2019,"2,292.24",73501-RESIDENTIAL EMI,Third Party Payments,Private Contractor Fees,Revenue
Walsall Council,http://opendatacommunities.org/id/metropolitan-district-council/walsall,WC108-403,30/09/2019,Adult Social Care,ANCHOR,16/09/2019,"2,292.24",73501-RESIDENTIAL EMI,Third Party Payments,Private Contractor Fees,Revenue
Walsall Council,http://opendatacommunities.org/id/metropolitan-district-council/walsall,WC108-404,30/09/2019,Adult Social Care,ANCHOR,16/09/2019,"2,312.24",73501-RESIDENTIAL EMI,Third Party Payments,Private Contractor Fees,Revenue
Walsall Council,http://opendatacommunities.org/id/metropolitan-district-council/walsall,WC108-405,30/09/2019,Adult Social Care,ANCHOR,16/09/2019,"2,312.24",73501-RESIDENTIAL EMI,Third Party Payments,Private Contractor Fees,Revenue
Walsall Council,http://opendatacommunities.org/id/metropolitan-district-council/walsall,WC108-406,30/09/2019,Adult Social Care,ANCHOR,16/09/2019,"2,312.24",73501-RESIDENTIAL EMI,Third Party Payments,Private Contractor Fees,Revenue
Walsall Council,http://opendatacommunities.org/id/metropolitan-district-council/walsall,WC108-407,30/09/2019,Adult Social Care,ANCHOR,16/09/2019,"2,312.24",73501-RESIDENTIAL EMI,Third Party Payments,Private Contractor Fees,Revenue
Walsall Council,http://opendatacommunities.org/id/metropolitan-district-council/walsall,WC108-408,30/09/2019,Adult Social Care,ANCHOR,16/09/2019,"2,332.24",73501-RESIDENTIAL EMI,Third Party Payments,Private Contractor Fees,Revenue
Walsall Council,http://opendatacommunities.org/id/metropolitan-district-council/walsall,WC108-409,30/09/2019,Adult Social Care,ANCHOR,16/09/2019,"2,332.24",73501-RESIDENTIAL EMI,Third Party Payments,Private Contractor Fees,Revenue
Walsall Council,http://opendatacommunities.org/id/metropolitan-district-council/walsall,WC108-410,30/09/2019,Adult Social Care,ANCHOR,16/09/2019,"2,332.24",73501-RESIDENTIAL EMI,Third Party Payments,Private Contractor Fees,Revenue
Walsall Council,http://opendatacommunities.org/id/metropolitan-district-council/walsall,WC108-411,30/09/2019,Adult Social Care,ANCHOR,16/09/2019,"2,332.24",73501-RESIDENTIAL EMI,Third Party Payments,Private Contractor Fees,Revenue
Walsall Council,http://opendatacommunities.org/id/metropolitan-district-council/walsall,WC108-412,30/09/2019,Adult Social Care,ANCHOR CAREHOMES LTD - HARDEN HALL,25/09/2019,"1,882.73",73025-PROFESSIONAL SERVICES-PRIV CONTRACTOR & OTHER AGENCIES,Third Party Payments,Private Contractor Fees,Revenue
Walsall Council,http://opendatacommunities.org/id/metropolitan-district-council/walsall,WC108-413,30/09/2019,Adult Social Care,ANCHOR CAREHOMES LTD - HARDEN HALL,25/09/2019,"2,008.84",73025-PROFESSIONAL SERVICES-PRIV CONTRACTOR & OTHER AGENCIES,Third Party Payments,Private Contractor Fees,Revenue
Walsall Council,http://opendatacommunities.org/id/metropolitan-district-council/walsall,WC108-414,30/09/2019,Adult Social Care,ANCHOR CAREHOMES LTD - HARDEN HALL,25/09/2019,"2,196.52",73025-PROFESSIONAL SERVICES-PRIV CONTRACTOR & OTHER AGENCIES,Third Party Payments,Private Contractor Fees,Revenue
Walsall Council,http://opendatacommunities.org/id/metropolitan-district-council/walsall,WC108-415,30/09/2019,Adult Social Care,ANCHOR CAREHOMES LTD - HARDEN HALL,26/09/2019,"2,196.52",73025-PROFESSIONAL SERVICES-PRIV CONTRACTOR & OTHER AGENCIES,Third Party Payments,Private Contractor Fees,Revenue
Walsall Council,http://opendatacommunities.org/id/metropolitan-district-council/walsall,WC108-416,30/09/2019,Childrens,REDACTED,23/09/2019,312.24,74509-SPECIAL GUARDIANSHIP ORDERS,Transfer Payments,Transfer Payments,Revenue
Walsall Council,http://opendatacommunities.org/id/metropolitan-district-council/walsall,WC108-417,30/09/2019,Childrens,REDACTED,06/09/2019,720.00,74501-MAINTENANCE ALLOWANCE-FOSTER CARERS,Transfer Payments,Transfer Payments,Revenue
Walsall Council,http://opendatacommunities.org/id/metropolitan-district-council/walsall,WC108-418,30/09/2019,Childrens,REDACTED,06/09/2019,"1,000.00",74508-INTERNAL FOSTER CARERS-CARER FEES,Transfer Payments,Transfer Payments,Revenue
Walsall Council,http://opendatacommunities.org/id/metropolitan-district-council/walsall,WC108-419,30/09/2019,Adult Social Care,REDACTED,06/09/2019,774.05,73506-DIRECT PAYMENT,Third Party Payments,Private Contractor Fees,Revenue
Walsall Council,http://opendatacommunities.org/id/metropolitan-district-council/walsall,WC108-420,30/09/2019,Adult Social Care,REDACTED,06/09/2019,"3,118.00",73506-DIRECT PAYMENT,Third Party Payments,Private Contractor Fees,Revenue
Walsall Council,http://opendatacommunities.org/id/metropolitan-district-council/walsall,WC108-421,30/09/2019,Childrens,REDACTED,23/09/2019,368.76,74509-SPECIAL GUARDIANSHIP ORDERS,Transfer Payments,Transfer Payments,Revenue
Walsall Council,http://opendatacommunities.org/id/metropolitan-district-council/walsall,WC108-422,30/09/2019,Childrens,REDACTED,23/09/2019,368.76,74509-SPECIAL GUARDIANSHIP ORDERS,Transfer Payments,Transfer Payments,Revenue
Walsall Council,http://opendatacommunities.org/id/metropolitan-district-council/walsall,WC108-423,30/09/2019,Childrens,REDACTED,23/09/2019,500.16,74509-SPECIAL GUARDIANSHIP ORDERS,Transfer Payments,Transfer Payments,Revenue
Walsall Council,http://opendatacommunities.org/id/metropolitan-district-council/walsall,WC108-424,30/09/2019,Childrens,REDACTED,23/09/2019,312.04,74509-SPECIAL GUARDIANSHIP ORDERS,Transfer Payments,Transfer Payments,Revenue
Walsall Council,http://opendatacommunities.org/id/metropolitan-district-council/walsall,WC108-425,30/09/2019,Childrens,ANGELS AND BUTTERFLIES CHILDMINDING,12/09/2019,685.13,66505-OTHER-GRANTS TO OTHER ORGS,Third Party Payments,Grants to Other Orgs,Revenue
Walsall Council,http://opendatacommunities.org/id/metropolitan-district-council/walsall,WC108-426,30/09/2019,Childrens,ANGELS AND BUTTERFLIES CHILDMINDING,12/09/2019,"1,650.60",66505-OTHER-GRANTS TO OTHER ORGS,Third Party Payments,Grants to Other Orgs,Revenue
Walsall Council,http://opendatacommunities.org/id/metropolitan-district-council/walsall,WC108-427,30/09/2019,Childrens,ANIMALTASTIC,18/09/2019,250.00,63120-CRECHE FACILITIES-SERVICES-FEES,Supplies & Services,Other Supplies & Services,Revenue
Walsall Council,http://opendatacommunities.org/id/metropolitan-district-council/walsall,WC108-428,30/09/2019,Adult Social Care,REDACTED,03/09/2019,881.45,73510-SHARED LIVES,Third Party Payments,Private Contractor Fees,Revenue
Walsall Council,http://opendatacommunities.org/id/metropolitan-district-council/walsall,WC108-429,30/09/2019,Adult Social Care,REDACTED,06/09/2019,"1,469.00",73506-DIRECT PAYMENT,Third Party Payments,Private Contractor Fees,Revenue
Walsall Council,http://opendatacommunities.org/id/metropolitan-district-council/walsall,WC108-430,30/09/2019,Adult Social Care,ANSON COURT RESIDENTIAL HOME,16/09/2019,387.90,73501-RESIDENTIAL EMI,Third Party Payments,Private Contractor Fees,Revenue
Walsall Council,http://opendatacommunities.org/id/metropolitan-district-council/walsall,WC108-431,30/09/2019,Adult Social Care,ANSON COURT RESIDENTIAL HOME,23/09/2019,"1,861.92",73025-PROFESSIONAL SERVICES-PRIV CONTRACTOR & OTHER AGENCIES,Third Party Payments,Private Contractor Fees,Revenue
Walsall Council,http://opendatacommunities.org/id/metropolitan-district-council/walsall,WC108-432,30/09/2019,Adult Social Care,ANSON COURT RESIDENTIAL HOME,16/09/2019,"1,972.24",73501-RESIDENTIAL EMI,Third Party Payments,Private Contractor Fees,Revenue
Walsall Council,http://opendatacommunities.org/id/metropolitan-district-council/walsall,WC108-433,30/09/2019,Adult Social Care,ANSON COURT RESIDENTIAL HOME,16/09/2019,"1,972.24",73501-RESIDENTIAL EMI,Third Party Payments,Private Contractor Fees,Revenue
Walsall Council,http://opendatacommunities.org/id/metropolitan-district-council/walsall,WC108-434,30/09/2019,Adult Social Care,ANSON COURT RESIDENTIAL HOME,16/09/2019,"1,972.24",73501-RESIDENTIAL EMI,Third Party Payments,Private Contractor Fees,Revenue
Walsall Council,http://opendatacommunities.org/id/metropolitan-district-council/walsall,WC108-435,30/09/2019,Adult Social Care,ANSON COURT RESIDENTIAL HOME,16/09/2019,"1,972.24",73501-RESIDENTIAL EMI,Third Party Payments,Private Contractor Fees,Revenue
Walsall Council,http://opendatacommunities.org/id/metropolitan-district-council/walsall,WC108-436,30/09/2019,Adult Social Care,ANSON COURT RESIDENTIAL HOME,16/09/2019,"1,972.24",73501-RESIDENTIAL EMI,Third Party Payments,Private Contractor Fees,Revenue
Walsall Council,http://opendatacommunities.org/id/metropolitan-district-council/walsall,WC108-437,30/09/2019,Adult Social Care,ANSON COURT RESIDENTIAL HOME,16/09/2019,"1,972.24",73501-RESIDENTIAL EMI,Third Party Payments,Private Contractor Fees,Revenue
Walsall Council,http://opendatacommunities.org/id/metropolitan-district-council/walsall,WC108-438,30/09/2019,Adult Social Care,ANSON COURT RESIDENTIAL HOME,16/09/2019,"1,972.24",73501-RESIDENTIAL EMI,Third Party Payments,Private Contractor Fees,Revenue
Walsall Council,http://opendatacommunities.org/id/metropolitan-district-council/walsall,WC108-439,30/09/2019,Adult Social Care,ANSON COURT RESIDENTIAL HOME,16/09/2019,"1,972.24",73501-RESIDENTIAL EMI,Third Party Payments,Private Contractor Fees,Revenue
Walsall Council,http://opendatacommunities.org/id/metropolitan-district-council/walsall,WC108-440,30/09/2019,Adult Social Care,ANSON COURT RESIDENTIAL HOME,16/09/2019,"1,972.24",73501-RESIDENTIAL EMI,Third Party Payments,Private Contractor Fees,Revenue
Walsall Council,http://opendatacommunities.org/id/metropolitan-district-council/walsall,WC108-441,30/09/2019,Adult Social Care,ANSON COURT RESIDENTIAL HOME,16/09/2019,"1,972.24",73501-RESIDENTIAL EMI,Third Party Payments,Private Contractor Fees,Revenue
Walsall Council,http://opendatacommunities.org/id/metropolitan-district-council/walsall,WC108-442,30/09/2019,Adult Social Care,ANSON COURT RESIDENTIAL HOME,16/09/2019,"1,972.24",73501-RESIDENTIAL EMI,Third Party Payments,Private Contractor Fees,Revenue
Walsall Council,http://opendatacommunities.org/id/metropolitan-district-council/walsall,WC108-443,30/09/2019,Adult Social Care,ANSON COURT RESIDENTIAL HOME,16/09/2019,"1,972.24",73501-RESIDENTIAL EMI,Third Party Payments,Private Contractor Fees,Revenue
Walsall Council,http://opendatacommunities.org/id/metropolitan-district-council/walsall,WC108-444,30/09/2019,Adult Social Care,ANSON COURT RESIDENTIAL HOME,16/09/2019,"2,052.24",73501-RESIDENTIAL EMI,Third Party Payments,Private Contractor Fees,Revenue
Walsall Council,http://opendatacommunities.org/id/metropolitan-district-council/walsall,WC108-445,30/09/2019,Adult Social Care,ANSON COURT RESIDENTIAL HOME,16/09/2019,"2,052.24",73501-RESIDENTIAL EMI,Third Party Payments,Private Contractor Fees,Revenue
Walsall Council,http://opendatacommunities.org/id/metropolitan-district-council/walsall,WC108-446,30/09/2019,Adult Social Care,ANSON COURT RESIDENTIAL HOME,16/09/2019,"2,052.24",73501-RESIDENTIAL EMI,Third Party Payments,Private Contractor Fees,Revenue
Walsall Council,http://opendatacommunities.org/id/metropolitan-district-council/walsall,WC108-447,30/09/2019,Adult Social Care,ANSON COURT RESIDENTIAL HOME,16/09/2019,"2,092.24",73501-RESIDENTIAL EMI,Third Party Payments,Private Contractor Fees,Revenue
Walsall Council,http://opendatacommunities.org/id/metropolitan-district-council/walsall,WC108-448,30/09/2019,Adult Social Care,ANSON COURT RESIDENTIAL HOME,16/09/2019,"2,092.24",73501-RESIDENTIAL EMI,Third Party Payments,Private Contractor Fees,Revenue
Walsall Council,http://opendatacommunities.org/id/metropolitan-district-council/walsall,WC108-449,30/09/2019,Adult Social Care,ANSON COURT RESIDENTIAL HOME,16/09/2019,"2,092.24",73501-RESIDENTIAL EMI,Third Party Payments,Private Contractor Fees,Revenue
Walsall Council,http://opendatacommunities.org/id/metropolitan-district-council/walsall,WC108-450,30/09/2019,Adult Social Care,ANSON COURT RESIDENTIAL HOME,16/09/2019,"2,092.24",73501-RESIDENTIAL EMI,Third Party Payments,Private Contractor Fees,Revenue
Walsall Council,http://opendatacommunities.org/id/metropolitan-district-council/walsall,WC108-451,30/09/2019,Adult Social Care,ANSON COURT RESIDENTIAL HOME,16/09/2019,"2,172.24",73501-RESIDENTIAL EMI,Third Party Payments,Private Contractor Fees,Revenue
Walsall Council,http://opendatacommunities.org/id/metropolitan-district-council/walsall,WC108-452,30/09/2019,Childrens,ANSPEAR LTD,16/09/2019,"3,800.00",63000-PROFESSIONAL FEES AND SERVICES,Supplies & Services,Services,Revenue
Walsall Council,http://opendatacommunities.org/id/metropolitan-district-council/walsall,WC108-453,30/09/2019,Childrens,REDACTED,23/09/2019,604.00,74510-RESIDENTS ORDERS,Third Party Payments,Private Contractor Fees,Revenue
Walsall Council,http://opendatacommunities.org/id/metropolitan-district-council/walsall,WC108-454,30/09/2019,Childrens,ANTI-PEST PEST CONTROL SERVICES,23/09/2019,230.00,73025-PROFESSIONAL SERVICES-PRIV CONTRACTOR & OTHER AGENCIES,Third Party Payments,Private Contractor Fees,Revenue
Walsall Council,http://opendatacommunities.org/id/metropolitan-district-council/walsall,WC108-455,30/09/2019,Childrens,REDACTED,23/09/2019,333.12,74509-SPECIAL GUARDIANSHIP ORDERS,Transfer Payments,Transfer Payments,Revenue
Walsall Council,http://opendatacommunities.org/id/metropolitan-district-council/walsall,WC108-456,30/09/2019,Economy & Environment,APCOA PARKING SERVICES (UK) LTD,11/09/2019,"54,988.36",73025-PROFESSIONAL SERVICES-PRIV CONTRACTOR & OTHER AGENCIES,Third Party Payments,Private Contractor Fees,Revenue
Walsall Council,http://opendatacommunities.org/id/metropolitan-district-council/walsall,WC108-457,30/09/2019,Resources and Transformation,APP CARZ,13/09/2019,334.50,52000-WITH DRIVER-HIRE OF VEHICLES,Transport,Hire,Revenue
Walsall Council,http://opendatacommunities.org/id/metropolitan-district-council/walsall,WC108-458,30/09/2019,Resources and Transformation,APP CARZ,06/09/2019,751.00,52000-WITH DRIVER-HIRE OF VEHICLES,Transport,Hire,Revenue
Walsall Council,http://opendatacommunities.org/id/metropolitan-district-council/walsall,WC108-459,30/09/2019,Economy & Environment,AQUAMO LTD,20/09/2019,359.92,60008-REPAIR & MAINTENANCE OF FURNITURE & EQUIPMENT,Supplies & Services,"Equip,Furniture & Materials",Revenue
Walsall Council,http://opendatacommunities.org/id/metropolitan-district-council/walsall,WC108-460,30/09/2019,Adult Social Care,ARBORETUM NURSING HOME.,16/09/2019,"1,051.01",73502-NURSING,Third Party Payments,Private Contractor Fees,Revenue
Walsall Council,http://opendatacommunities.org/id/metropolitan-district-council/walsall,WC108-461,30/09/2019,Adult Social Care,ARBORETUM NURSING HOME.,16/09/2019,"1,151.86",73502-NURSING,Third Party Payments,Private Contractor Fees,Revenue
Walsall Council,http://opendatacommunities.org/id/metropolitan-district-council/walsall,WC108-462,30/09/2019,Adult Social Care,ARBORETUM NURSING HOME.,16/09/2019,"2,143.72",73502-NURSING,Third Party Payments,Private Contractor Fees,Revenue
Walsall Council,http://opendatacommunities.org/id/metropolitan-district-council/walsall,WC108-463,30/09/2019,Adult Social Care,ARBORETUM NURSING HOME.,16/09/2019,"2,143.72",73502-NURSING,Third Party Payments,Private Contractor Fees,Revenue
Walsall Council,http://opendatacommunities.org/id/metropolitan-district-council/walsall,WC108-464,30/09/2019,Adult Social Care,ARBORETUM NURSING HOME.,16/09/2019,"2,143.72",73502-NURSING,Third Party Payments,Private Contractor Fees,Revenue
Walsall Council,http://opendatacommunities.org/id/metropolitan-district-council/walsall,WC108-465,30/09/2019,Adult Social Care,ARBORETUM NURSING HOME.,16/09/2019,"2,143.72",73502-NURSING,Third Party Payments,Private Contractor Fees,Revenue
Walsall Council,http://opendatacommunities.org/id/metropolitan-district-council/walsall,WC108-466,30/09/2019,Adult Social Care,ARBORETUM NURSING HOME.,16/09/2019,"2,223.72",73502-NURSING,Third Party Payments,Private Contractor Fees,Revenue
Walsall Council,http://opendatacommunities.org/id/metropolitan-district-council/walsall,WC108-467,30/09/2019,Adult Social Care,ARBORETUM NURSING HOME.,16/09/2019,"2,243.72",73502-NURSING,Third Party Payments,Private Contractor Fees,Revenue
Walsall Council,http://opendatacommunities.org/id/metropolitan-district-council/walsall,WC108-468,30/09/2019,Adult Social Care,ARBORETUM NURSING HOME.,16/09/2019,"2,263.72",73502-NURSING,Third Party Payments,Private Contractor Fees,Revenue
Walsall Council,http://opendatacommunities.org/id/metropolitan-district-council/walsall,WC108-469,30/09/2019,Adult Social Care,ARBORETUM NURSING HOME.,16/09/2019,"2,263.72",73502-NURSING,Third Party Payments,Private Contractor Fees,Revenue
Walsall Council,http://opendatacommunities.org/id/metropolitan-district-council/walsall,WC108-470,30/09/2019,Adult Social Care,ARBORETUM NURSING HOME.,16/09/2019,"2,263.72",73502-NURSING,Third Party Payments,Private Contractor Fees,Revenue
Walsall Council,http://opendatacommunities.org/id/metropolitan-district-council/walsall,WC108-471,30/09/2019,Adult Social Care,ARBORETUM NURSING HOME.,16/09/2019,"2,303.72",73502-NURSING,Third Party Payments,Private Contractor Fees,Revenue
Walsall Council,http://opendatacommunities.org/id/metropolitan-district-council/walsall,WC108-472,30/09/2019,Adult Social Care,ARBORETUM NURSING HOME.,16/09/2019,"2,303.72",73502-NURSING,Third Party Payments,Private Contractor Fees,Revenue
Walsall Council,http://opendatacommunities.org/id/metropolitan-district-council/walsall,WC108-473,30/09/2019,Adult Social Care,ARBORETUM NURSING HOME.,16/09/2019,"2,478.08",73503-NURSING EMI,Third Party Payments,Private Contractor Fees,Revenue
Walsall Council,http://opendatacommunities.org/id/metropolitan-district-council/walsall,WC108-474,30/09/2019,Economy & Environment,ARCHWAY TCS LTD,20/09/2019,707.50,60537-VEHICLE WASH PLANT-MATERIALS,Supplies & Services,"Equip,Furniture & Materials",Revenue
Walsall Council,http://opendatacommunities.org/id/metropolitan-district-council/walsall,WC108-475,30/09/2019,Economy & Environment,ARCO GROUP,04/09/2019,133.80,60500-GENERAL MATERIALS,Supplies & Services,"Equip,Furniture & Materials",Revenue
Walsall Council,http://opendatacommunities.org/id/metropolitan-district-council/walsall,WC108-476,30/09/2019,Economy & Environment,ARCO GROUP,04/09/2019,133.81,60500-GENERAL MATERIALS,Supplies & Services,"Equip,Furniture & Materials",Revenue
Walsall Council,http://opendatacommunities.org/id/metropolitan-district-council/walsall,WC108-477,30/09/2019,Resources and Transformation,ARISTI LTD,12/09/2019,845.00,30030-EXTERNAL TRAINING,Employees,Training,Revenue
Walsall Council,http://opendatacommunities.org/id/metropolitan-district-council/walsall,WC108-478,30/09/2019,Childrens,ARJO UK LTD,11/09/2019,"2,717.00",60006-NEW-FURNITURE & EQUIPMENT,Supplies & Services,"Equip,Furniture & Materials",Revenue
Walsall Council,http://opendatacommunities.org/id/metropolitan-district-council/walsall,WC108-479,30/09/2019,Economy & Environment,REDACTED,11/09/2019,500.00,62523-EVENTS AND VISUAL ARTS,Supplies & Services,Other Supplies & Services,Revenue
Walsall Council,http://opendatacommunities.org/id/metropolitan-district-council/walsall,WC108-480,30/09/2019,Resources and Transformation,ASCENDANT SOLUTIONS LTD,23/09/2019,"7,000.00",63800-COMPUTER EQUIPMENT AND SUPPLIES,Supplies & Services,Communications & Computing,Revenue
Walsall Council,http://opendatacommunities.org/id/metropolitan-district-council/walsall,WC108-481,30/09/2019,Adult Social Care,ASH GRANGE CARE HOME,11/09/2019,40.28,73500-RESIDENTIAL,Third Party Payments,Private Contractor Fees,Revenue
Walsall Council,http://opendatacommunities.org/id/metropolitan-district-council/walsall,WC108-482,30/09/2019,Adult Social Care,ASH GRANGE CARE HOME,11/09/2019,291.38,73025-PROFESSIONAL SERVICES-PRIV CONTRACTOR & OTHER AGENCIES,Third Party Payments,Private Contractor Fees,Revenue
Walsall Council,http://opendatacommunities.org/id/metropolitan-district-council/walsall,WC108-483,30/09/2019,Adult Social Care,ASH GRANGE CARE HOME,11/09/2019,532.29,73504-SHORT STAY RESIDENTIAL,Third Party Payments,Private Contractor Fees,Revenue
Walsall Council,http://opendatacommunities.org/id/metropolitan-district-council/walsall,WC108-484,30/09/2019,Adult Social Care,ASH GRANGE CARE HOME,05/09/2019,642.86,73025-PROFESSIONAL SERVICES-PRIV CONTRACTOR & OTHER AGENCIES,Third Party Payments,Private Contractor Fees,Revenue
Walsall Council,http://opendatacommunities.org/id/metropolitan-district-council/walsall,WC108-485,30/09/2019,Adult Social Care,ASH GRANGE CARE HOME,05/09/2019,750.00,73025-PROFESSIONAL SERVICES-PRIV CONTRACTOR & OTHER AGENCIES,Third Party Payments,Private Contractor Fees,Revenue
Walsall Council,http://opendatacommunities.org/id/metropolitan-district-council/walsall,WC108-486,30/09/2019,Adult Social Care,ASH GRANGE CARE HOME,05/09/2019,"1,714.29",73025-PROFESSIONAL SERVICES-PRIV CONTRACTOR & OTHER AGENCIES,Third Party Payments,Private Contractor Fees,Revenue
Walsall Council,http://opendatacommunities.org/id/metropolitan-district-council/walsall,WC108-487,30/09/2019,Adult Social Care,ASH GRANGE CARE HOME,16/09/2019,"1,774.96",73500-RESIDENTIAL,Third Party Payments,Private Contractor Fees,Revenue
Walsall Council,http://opendatacommunities.org/id/metropolitan-district-council/walsall,WC108-488,30/09/2019,Adult Social Care,ASH GRANGE CARE HOME,16/09/2019,"1,774.96",73500-RESIDENTIAL,Third Party Payments,Private Contractor Fees,Revenue
Walsall Council,http://opendatacommunities.org/id/metropolitan-district-council/walsall,WC108-489,30/09/2019,Adult Social Care,ASH GRANGE CARE HOME,16/09/2019,"2,143.72",73502-NURSING,Third Party Payments,Private Contractor Fees,Revenue
Walsall Council,http://opendatacommunities.org/id/metropolitan-district-council/walsall,WC108-490,30/09/2019,Adult Social Care,ASH GRANGE CARE HOME,16/09/2019,"2,143.72",73502-NURSING,Third Party Payments,Private Contractor Fees,Revenue
Walsall Council,http://opendatacommunities.org/id/metropolitan-district-council/walsall,WC108-491,30/09/2019,Adult Social Care,ASH GRANGE CARE HOME,16/09/2019,"2,143.72",73502-NURSING,Third Party Payments,Private Contractor Fees,Revenue
Walsall Council,http://opendatacommunities.org/id/metropolitan-district-council/walsall,WC108-492,30/09/2019,Adult Social Care,ASH GRANGE CARE HOME,16/09/2019,"2,143.72",73502-NURSING,Third Party Payments,Private Contractor Fees,Revenue
Walsall Council,http://opendatacommunities.org/id/metropolitan-district-council/walsall,WC108-493,30/09/2019,Adult Social Care,ASH GRANGE CARE HOME,16/09/2019,"2,143.72",73502-NURSING,Third Party Payments,Private Contractor Fees,Revenue
Walsall Council,http://opendatacommunities.org/id/metropolitan-district-council/walsall,WC108-494,30/09/2019,Adult Social Care,ASH GRANGE CARE HOME,16/09/2019,"2,143.72",73502-NURSING,Third Party Payments,Private Contractor Fees,Revenue
Walsall Council,http://opendatacommunities.org/id/metropolitan-district-council/walsall,WC108-495,30/09/2019,Adult Social Care,ASH GRANGE CARE HOME,16/09/2019,"2,143.72",73502-NURSING,Third Party Payments,Private Contractor Fees,Revenue
Walsall Council,http://opendatacommunities.org/id/metropolitan-district-council/walsall,WC108-496,30/09/2019,Adult Social Care,ASH GRANGE CARE HOME,16/09/2019,"2,143.72",73502-NURSING,Third Party Payments,Private Contractor Fees,Revenue
Walsall Council,http://opendatacommunities.org/id/metropolitan-district-council/walsall,WC108-497,30/09/2019,Adult Social Care,ASH GRANGE CARE HOME,16/09/2019,"2,143.72",73502-NURSING,Third Party Payments,Private Contractor Fees,Revenue
Walsall Council,http://opendatacommunities.org/id/metropolitan-district-council/walsall,WC108-498,30/09/2019,Adult Social Care,ASH GRANGE CARE HOME,16/09/2019,"2,143.72",73502-NURSING,Third Party Payments,Private Contractor Fees,Revenue
Walsall Council,http://opendatacommunities.org/id/metropolitan-district-council/walsall,WC108-499,30/09/2019,Adult Social Care,ASH GRANGE CARE HOME,16/09/2019,"2,143.72",73502-NURSING,Third Party Payments,Private Contractor Fees,Revenue
Walsall Council,http://opendatacommunities.org/id/metropolitan-district-council/walsall,WC108-500,30/09/2019,Adult Social Care,ASH GRANGE CARE HOME,16/09/2019,"2,143.72",73502-NURSING,Third Party Payments,Private Contractor Fees,Revenue
Walsall Council,http://opendatacommunities.org/id/metropolitan-district-council/walsall,WC108-501,30/09/2019,Adult Social Care,ASH GRANGE CARE HOME,16/09/2019,"2,143.72",73502-NURSING,Third Party Payments,Private Contractor Fees,Revenue
Walsall Council,http://opendatacommunities.org/id/metropolitan-district-council/walsall,WC108-502,30/09/2019,Adult Social Care,ASH GRANGE CARE HOME,16/09/2019,"2,143.72",73502-NURSING,Third Party Payments,Private Contractor Fees,Revenue
Walsall Council,http://opendatacommunities.org/id/metropolitan-district-council/walsall,WC108-503,30/09/2019,Adult Social Care,ASH GRANGE CARE HOME,16/09/2019,"2,143.72",73502-NURSING,Third Party Payments,Private Contractor Fees,Revenue
Walsall Council,http://opendatacommunities.org/id/metropolitan-district-council/walsall,WC108-504,30/09/2019,Adult Social Care,ASH GRANGE CARE HOME,16/09/2019,"2,143.72",73502-NURSING,Third Party Payments,Private Contractor Fees,Revenue
Walsall Council,http://opendatacommunities.org/id/metropolitan-district-council/walsall,WC108-505,30/09/2019,Adult Social Care,ASH GRANGE CARE HOME,16/09/2019,"2,263.72",73502-NURSING,Third Party Payments,Private Contractor Fees,Revenue
Walsall Council,http://opendatacommunities.org/id/metropolitan-district-council/walsall,WC108-506,30/09/2019,Adult Social Care,ASH GRANGE CARE HOME,16/09/2019,"2,303.72",73502-NURSING,Third Party Payments,Private Contractor Fees,Revenue
Walsall Council,http://opendatacommunities.org/id/metropolitan-district-council/walsall,WC108-507,30/09/2019,Adult Social Care,ASH GRANGE CARE HOME,16/09/2019,"2,303.72",73502-NURSING,Third Party Payments,Private Contractor Fees,Revenue
Walsall Council,http://opendatacommunities.org/id/metropolitan-district-council/walsall,WC108-508,30/09/2019,Adult Social Care,ASH GRANGE CARE HOME,16/09/2019,"2,343.72",73502-NURSING,Third Party Payments,Private Contractor Fees,Revenue
Walsall Council,http://opendatacommunities.org/id/metropolitan-district-council/walsall,WC108-509,30/09/2019,Adult Social Care,ASH GRANGE CARE HOME,16/09/2019,"2,358.08",73503-NURSING EMI,Third Party Payments,Private Contractor Fees,Revenue
Walsall Council,http://opendatacommunities.org/id/metropolitan-district-council/walsall,WC108-510,30/09/2019,Adult Social Care,ASH GRANGE CARE HOME,16/09/2019,"2,358.08",73503-NURSING EMI,Third Party Payments,Private Contractor Fees,Revenue
Walsall Council,http://opendatacommunities.org/id/metropolitan-district-council/walsall,WC108-511,30/09/2019,Adult Social Care,ASH GRANGE CARE HOME,16/09/2019,"2,423.72",73502-NURSING,Third Party Payments,Private Contractor Fees,Revenue
Walsall Council,http://opendatacommunities.org/id/metropolitan-district-council/walsall,WC108-512,30/09/2019,Adult Social Care,ASH GRANGE CARE HOME,16/09/2019,"2,423.72",73502-NURSING,Third Party Payments,Private Contractor Fees,Revenue
Walsall Council,http://opendatacommunities.org/id/metropolitan-district-council/walsall,WC108-513,30/09/2019,Adult Social Care,ASH GRANGE CARE HOME,16/09/2019,"2,463.72",73502-NURSING,Third Party Payments,Private Contractor Fees,Revenue
Walsall Council,http://opendatacommunities.org/id/metropolitan-district-council/walsall,WC108-514,30/09/2019,Adult Social Care,ASH GRANGE CARE HOME,16/09/2019,"2,520.68",73500-RESIDENTIAL,Third Party Payments,Private Contractor Fees,Revenue
Walsall Council,http://opendatacommunities.org/id/metropolitan-district-council/walsall,WC108-515,30/09/2019,Adult Social Care,ASH GRANGE CARE HOME,16/09/2019,"2,594.44",73503-NURSING EMI,Third Party Payments,Private Contractor Fees,Revenue
Walsall Council,http://opendatacommunities.org/id/metropolitan-district-council/walsall,WC108-516,30/09/2019,Adult Social Care,ASH GRANGE CARE HOME,05/09/2019,"2,678.57",73025-PROFESSIONAL SERVICES-PRIV CONTRACTOR & OTHER AGENCIES,Third Party Payments,Private Contractor Fees,Revenue
Walsall Council,http://opendatacommunities.org/id/metropolitan-district-council/walsall,WC108-517,30/09/2019,Adult Social Care,ASH GRANGE CARE HOME,16/09/2019,"2,752.04",73502-NURSING,Third Party Payments,Private Contractor Fees,Revenue
Walsall Council,http://opendatacommunities.org/id/metropolitan-district-council/walsall,WC108-518,30/09/2019,Adult Social Care,REDACTED,06/09/2019,"1,527.00",73506-DIRECT PAYMENT,Third Party Payments,Private Contractor Fees,Revenue
Walsall Council,http://opendatacommunities.org/id/metropolitan-district-council/walsall,WC108-519,30/09/2019,Economy & Environment,ASHTON ENGINEERING CO LTD,05/09/2019,448.82,60006-NEW-FURNITURE & EQUIPMENT,Supplies & Services,"Equip,Furniture & Materials",Revenue
Walsall Council,http://opendatacommunities.org/id/metropolitan-district-council/walsall,WC108-520,30/09/2019,Economy & Environment,ASKEWS AND HOLTS LIBRARY SERVICES LTD,11/09/2019,475.00,60501-LIBRARY BOOKS,Supplies & Services,"Equip,Furniture & Materials",Revenue
Walsall Council,http://opendatacommunities.org/id/metropolitan-district-council/walsall,WC108-521,30/09/2019,Economy & Environment,ASKEWS AND HOLTS LIBRARY SERVICES LTD,01/09/2019,675.98,60501-LIBRARY BOOKS,Supplies & Services,"Equip,Furniture & Materials",Revenue
Walsall Council,http://opendatacommunities.org/id/metropolitan-district-council/walsall,WC108-522,30/09/2019,Economy & Environment,ASKEWS AND HOLTS LIBRARY SERVICES LTD,11/09/2019,950.81,60501-LIBRARY BOOKS,Supplies & Services,"Equip,Furniture & Materials",Revenue
Walsall Council,http://opendatacommunities.org/id/metropolitan-district-council/walsall,WC108-523,30/09/2019,Economy & Environment,ASKEWS AND HOLTS LIBRARY SERVICES LTD,12/09/2019,958.39,60501-LIBRARY BOOKS,Supplies & Services,"Equip,Furniture & Materials",Revenue
Walsall Council,http://opendatacommunities.org/id/metropolitan-district-council/walsall,WC108-524,30/09/2019,Economy & Environment,ASKEWS AND HOLTS LIBRARY SERVICES LTD,09/09/2019,"1,443.53",60501-LIBRARY BOOKS,Supplies & Services,"Equip,Furniture & Materials",Revenue
Walsall Council,http://opendatacommunities.org/id/metropolitan-district-council/walsall,WC108-525,30/09/2019,Economy & Environment,ASKEWS AND HOLTS LIBRARY SERVICES LTD,11/09/2019,"3,258.52",60501-LIBRARY BOOKS,Supplies & Services,"Equip,Furniture & Materials",Revenue
Walsall Council,http://opendatacommunities.org/id/metropolitan-district-council/walsall,WC108-526,30/09/2019,Economy & Environment,ASKEWS AND HOLTS LIBRARY SERVICES LTD,11/09/2019,"3,994.50",60501-LIBRARY BOOKS,Supplies & Services,"Equip,Furniture & Materials",Revenue
Walsall Council,http://opendatacommunities.org/id/metropolitan-district-council/walsall,WC108-527,30/09/2019,Adult Social Care,REDACTED,06/09/2019,969.00,73506-DIRECT PAYMENT,Third Party Payments,Private Contractor Fees,Revenue
Walsall Council,http://opendatacommunities.org/id/metropolitan-district-council/walsall,WC108-528,30/09/2019,Adult Social Care,ASSURED HEALTHCARE SOLUTIONS (PARK FARM LODGE),16/09/2019,"2,034.44",73500-RESIDENTIAL,Third Party Payments,Private Contractor Fees,Revenue
Walsall Council,http://opendatacommunities.org/id/metropolitan-district-council/walsall,WC108-529,30/09/2019,Economy & Environment,ATKINS LIMITED,26/09/2019,"3,099.48",01001-OTHER CONSULTANTS FEES,Capital,Capital,Capital
Walsall Council,http://opendatacommunities.org/id/metropolitan-district-council/walsall,WC108-530,30/09/2019,Adult Social Care,AUTISM WEST MIDLANDS,16/09/2019,"7,172.48",73500-RESIDENTIAL,Third Party Payments,Private Contractor Fees,Revenue
Walsall Council,http://opendatacommunities.org/id/metropolitan-district-council/walsall,WC108-531,30/09/2019,Adult Social Care,AUTISM WEST MIDLANDS 001,16/09/2019,"4,794.44",73500-RESIDENTIAL,Third Party Payments,Private Contractor Fees,Revenue
Walsall Council,http://opendatacommunities.org/id/metropolitan-district-council/walsall,WC108-532,30/09/2019,Economy & Environment,AUTO EXTRACT SYSTEMS LTD,03/09/2019,720.00,73025-PROFESSIONAL SERVICES-PRIV CONTRACTOR & OTHER AGENCIES,Third Party Payments,Private Contractor Fees,Revenue
Walsall Council,http://opendatacommunities.org/id/metropolitan-district-council/walsall,WC108-533,30/09/2019,Economy & Environment,AUTOBITS,09/09/2019,250.00,73005-LANDFILL PTYS-PRIV CONTRACTOR FEES,Third Party Payments,Private Contractor Fees,Revenue
Walsall Council,http://opendatacommunities.org/id/metropolitan-district-council/walsall,WC108-534,30/09/2019,Economy & Environment,AUTORITE INDUSTRIES (WILLENHALL)LTD,03/09/2019,220.00,62515-MISCELLANEOUS SUPPLIES,Supplies & Services,Other Supplies & Services,Revenue
Walsall Council,http://opendatacommunities.org/id/metropolitan-district-council/walsall,WC108-535,30/09/2019,Adult Social Care,REDACTED,06/09/2019,"3,978.00",73506-DIRECT PAYMENT,Third Party Payments,Private Contractor Fees,Revenue
Walsall Council,http://opendatacommunities.org/id/metropolitan-district-council/walsall,WC108-536,30/09/2019,Resources and Transformation,AZTEC CONSTRUCTION (MIDLANDS) LTD,09/09/2019,"28,926.00",01045-PRIVATE GRANTS,Capital,Capital,Capital
Walsall Council,http://opendatacommunities.org/id/metropolitan-district-council/walsall,WC108-537,30/09/2019,Childrens,REDACTED,11/09/2019,464.00,76000-TRANSFER PAYMENTS - SOCIAL SERVICES CLIENTS,Transfer Payments,Transfer Payments,Revenue
Walsall Council,http://opendatacommunities.org/id/metropolitan-district-council/walsall,WC108-538,30/09/2019,Childrens,REDACTED,25/09/2019,464.00,76000-TRANSFER PAYMENTS - SOCIAL SERVICES CLIENTS,Transfer Payments,Transfer Payments,Revenue
Walsall Council,http://opendatacommunities.org/id/metropolitan-district-council/walsall,WC108-539,30/09/2019,Economy & Environment,BAART HARRIES NEWALL,04/09/2019,939.00,01006-SITE WORKS MAIN CONTRACTORS,Capital,Capital,Capital
Walsall Council,http://opendatacommunities.org/id/metropolitan-district-council/walsall,WC108-540,30/09/2019,Resources and Transformation,BAILY GARNER LLP,24/09/2019,"1,250.00",01006-SITE WORKS MAIN CONTRACTORS,Capital,Capital,Capital
Walsall Council,http://opendatacommunities.org/id/metropolitan-district-council/walsall,WC108-541,30/09/2019,Resources and Transformation,BAILY GARNER LLP,24/09/2019,"3,250.00",01006-SITE WORKS MAIN CONTRACTORS,Capital,Capital,Capital
Walsall Council,http://opendatacommunities.org/id/metropolitan-district-council/walsall,WC108-542,30/09/2019,Economy & Environment,BAKER HALL PARTNERSHIP,23/09/2019,"1,076.00",63000-PROFESSIONAL FEES AND SERVICES,Supplies & Services,Services,Revenue
Walsall Council,http://opendatacommunities.org/id/metropolitan-district-council/walsall,WC108-543,30/09/2019,Adult Social Care,REDACTED,06/09/2019,"4,481.55",73506-DIRECT PAYMENT,Third Party Payments,Private Contractor Fees,Revenue
Walsall Council,http://opendatacommunities.org/id/metropolitan-district-council/walsall,WC108-544,30/09/2019,Adult Social Care,BALTIMORE CONSULTING LTD,03/09/2019,"4,107.50",63102-CONSULTANTS FEES - CORPORATE,Supplies & Services,Services,Revenue
Walsall Council,http://opendatacommunities.org/id/metropolitan-district-council/walsall,WC108-545,30/09/2019,Adult Social Care,BALTIMORE CONSULTING LTD,09/09/2019,"4,107.50",63102-CONSULTANTS FEES - CORPORATE,Supplies & Services,Services,Revenue
Walsall Council,http://opendatacommunities.org/id/metropolitan-district-council/walsall,WC108-546,30/09/2019,Adult Social Care,BALTIMORE CONSULTING LTD,12/09/2019,"4,107.50",63102-CONSULTANTS FEES - CORPORATE,Supplies & Services,Services,Revenue
Walsall Council,http://opendatacommunities.org/id/metropolitan-district-council/walsall,WC108-547,30/09/2019,Childrens,BALTIMORE CONSULTING LTD,25/09/2019,"4,563.00",34305-AGENCY STAFF-EMPLOYEES,Employees,Agency,Revenue
Walsall Council,http://opendatacommunities.org/id/metropolitan-district-council/walsall,WC108-548,30/09/2019,Adult Social Care,REDACTED,06/09/2019,"1,978.60",73506-DIRECT PAYMENT,Third Party Payments,Private Contractor Fees,Revenue
Walsall Council,http://opendatacommunities.org/id/metropolitan-district-council/walsall,WC108-549,30/09/2019,Childrens,REDACTED,23/09/2019,340.00,74508-INTERNAL FOSTER CARERS-CARER FEES,Transfer Payments,Transfer Payments,Revenue
Walsall Council,http://opendatacommunities.org/id/metropolitan-district-council/walsall,WC108-550,30/09/2019,Childrens,REDACTED,23/09/2019,540.00,74501-MAINTENANCE ALLOWANCE-FOSTER CARERS,Transfer Payments,Transfer Payments,Revenue
Walsall Council,http://opendatacommunities.org/id/metropolitan-district-council/walsall,WC108-551,30/09/2019,Economy & Environment,BARBOUR LOGIC LIMITED,10/09/2019,"6,562.50",73025-PROFESSIONAL SERVICES-PRIV CONTRACTOR & OTHER AGENCIES,Third Party Payments,Private Contractor Fees,Revenue
Walsall Council,http://opendatacommunities.org/id/metropolitan-district-council/walsall,WC108-552,30/09/2019,Adult Social Care,BARCHESTER HEALTHCARE HOMES LTD (EDGBASTON BEAUMONT),17/09/2019,"2,600.00",73502-NURSING,Third Party Payments,Private Contractor Fees,Revenue
Walsall Council,http://opendatacommunities.org/id/metropolitan-district-council/walsall,WC108-553,30/09/2019,Childrens,BARNARDOS SERVICES LTD,01/09/2019,622.00,63000-PROFESSIONAL FEES AND SERVICES,Supplies & Services,Services,Revenue
Walsall Council,http://opendatacommunities.org/id/metropolitan-district-council/walsall,WC108-554,30/09/2019,Childrens,BARNARDOS SERVICES LTD,01/09/2019,"1,347.67",63000-PROFESSIONAL FEES AND SERVICES,Supplies & Services,Services,Revenue
Walsall Council,http://opendatacommunities.org/id/metropolitan-district-council/walsall,WC108-555,30/09/2019,Childrens,BARNARDOS SERVICES LTD,06/09/2019,"3,116.40",74037-INDEPENDENT FOSTER CARE-OTH AGENCY PROVISION,Third Party Payments,Private Contractor Fees,Revenue
Walsall Council,http://opendatacommunities.org/id/metropolitan-district-council/walsall,WC108-556,30/09/2019,Childrens,BARR BEACON SCHOOL TRUST,01/09/2019,"14,081.22",66502-TOP UP FUNDING -GRANTS TO SCHOOLS,Third Party Payments,Grants to Other Orgs,Revenue
Walsall Council,http://opendatacommunities.org/id/metropolitan-district-council/walsall,WC108-557,30/09/2019,Adult Social Care,BARTHOLAMEW LODGE CARE HOME,16/09/2019,"2,937.88",73503-NURSING EMI,Third Party Payments,Private Contractor Fees,Revenue
Walsall Council,http://opendatacommunities.org/id/metropolitan-district-council/walsall,WC108-558,30/09/2019,Economy & Environment,BAT FABRICATIONS LTD,24/09/2019,320.00,60000-FURNITURE & EQUIPMENT,Supplies & Services,"Equip,Furniture & Materials",Revenue
Walsall Council,http://opendatacommunities.org/id/metropolitan-district-council/walsall,WC108-559,30/09/2019,Economy & Environment,BAT FABRICATIONS LTD,24/09/2019,330.00,60000-FURNITURE & EQUIPMENT,Supplies & Services,"Equip,Furniture & Materials",Revenue
Walsall Council,http://opendatacommunities.org/id/metropolitan-district-council/walsall,WC108-560,30/09/2019,Economy & Environment,BAT FABRICATIONS LTD,24/09/2019,685.00,60000-FURNITURE & EQUIPMENT,Supplies & Services,"Equip,Furniture & Materials",Revenue
Walsall Council,http://opendatacommunities.org/id/metropolitan-district-council/walsall,WC108-561,30/09/2019,Childrens,BAT FABRICATIONS LTD,11/09/2019,"1,500.00",01006-SITE WORKS MAIN CONTRACTORS,Capital,Capital,Capital
Walsall Council,http://opendatacommunities.org/id/metropolitan-district-council/walsall,WC108-562,30/09/2019,Childrens,BAT FABRICATIONS LTD,24/09/2019,"2,400.00",01006-SITE WORKS MAIN CONTRACTORS,Capital,Capital,Capital
Walsall Council,http://opendatacommunities.org/id/metropolitan-district-council/walsall,WC108-563,30/09/2019,Resources and Transformation,BATLEYS,04/09/2019,"1,163.39",61016-FOOD AND BEVERAGES-PROVISIONS,Supplies & Services,Provisions,Revenue
Walsall Council,http://opendatacommunities.org/id/metropolitan-district-council/walsall,WC108-564,30/09/2019,Economy & Environment,BAUER CORPORATE SERVICES - BAUER RADIO LTD,01/09/2019,"6,200.00",63253-PAYMENT TO CONTRACTOR,Third Party Payments,Private Contractor Fees,Revenue
Walsall Council,http://opendatacommunities.org/id/metropolitan-district-council/walsall,WC108-565,30/09/2019,Childrens,BEADEN POWERLEC LIMITED,04/09/2019,"1,539.00",01006-SITE WORKS MAIN CONTRACTORS,Capital,Capital,Capital
Walsall Council,http://opendatacommunities.org/id/metropolitan-district-council/walsall,WC108-566,30/09/2019,Childrens,BEADEN POWERLEC LIMITED,17/09/2019,"2,147.00",01006-SITE WORKS MAIN CONTRACTORS,Capital,Capital,Capital
Walsall Council,http://opendatacommunities.org/id/metropolitan-district-council/walsall,WC108-567,30/09/2019,Childrens,BEADEN POWERLEC LIMITED,17/09/2019,"2,847.00",01006-SITE WORKS MAIN CONTRACTORS,Capital,Capital,Capital
Walsall Council,http://opendatacommunities.org/id/metropolitan-district-council/walsall,WC108-568,30/09/2019,Childrens,BECKIE'S CHILDMINDING,12/09/2019,825.30,66505-OTHER-GRANTS TO OTHER ORGS,Third Party Payments,Grants to Other Orgs,Revenue
Walsall Council,http://opendatacommunities.org/id/metropolitan-district-council/walsall,WC108-569,30/09/2019,Childrens,BECKIE'S CHILDMINDING,12/09/2019,"1,233.23",66505-OTHER-GRANTS TO OTHER ORGS,Third Party Payments,Grants to Other Orgs,Revenue
Walsall Council,http://opendatacommunities.org/id/metropolitan-district-council/walsall,WC108-570,30/09/2019,Childrens,BECKYS CHILDMINDING SERVICE,12/09/2019,"1,370.25",66505-OTHER-GRANTS TO OTHER ORGS,Third Party Payments,Grants to Other Orgs,Revenue
Walsall Council,http://opendatacommunities.org/id/metropolitan-district-council/walsall,WC108-571,30/09/2019,Childrens,BECKYS CHILDMINDING SERVICE,12/09/2019,"3,301.20",66505-OTHER-GRANTS TO OTHER ORGS,Third Party Payments,Grants to Other Orgs,Revenue
Walsall Council,http://opendatacommunities.org/id/metropolitan-district-council/walsall,WC108-572,30/09/2019,Adult Social Care,BELVIDERE COURT,11/09/2019,"-6,507.72",73502-NURSING,Third Party Payments,Private Contractor Fees,Revenue
Walsall Council,http://opendatacommunities.org/id/metropolitan-district-council/walsall,WC108-573,30/09/2019,Adult Social Care,BELVIDERE COURT,16/09/2019,"2,104.04",73502-NURSING,Third Party Payments,Private Contractor Fees,Revenue
Walsall Council,http://opendatacommunities.org/id/metropolitan-district-council/walsall,WC108-574,30/09/2019,Adult Social Care,BELVIDERE COURT,16/09/2019,"2,143.72",73502-NURSING,Third Party Payments,Private Contractor Fees,Revenue
Walsall Council,http://opendatacommunities.org/id/metropolitan-district-council/walsall,WC108-575,30/09/2019,Adult Social Care,BELVIDERE COURT,16/09/2019,"2,314.44",73503-NURSING EMI,Third Party Payments,Private Contractor Fees,Revenue
Walsall Council,http://opendatacommunities.org/id/metropolitan-district-council/walsall,WC108-576,30/09/2019,Adult Social Care,BELVIDERE COURT,16/09/2019,"2,314.44",73503-NURSING EMI,Third Party Payments,Private Contractor Fees,Revenue
Walsall Council,http://opendatacommunities.org/id/metropolitan-district-council/walsall,WC108-577,30/09/2019,Adult Social Care,BELVIDERE COURT,11/09/2019,"8,400.00",73500-RESIDENTIAL,Third Party Payments,Private Contractor Fees,Revenue
Walsall Council,http://opendatacommunities.org/id/metropolitan-district-council/walsall,WC108-578,30/09/2019,Adult Social Care,REDACTED,06/09/2019,"3,212.05",73506-DIRECT PAYMENT,Third Party Payments,Private Contractor Fees,Revenue
Walsall Council,http://opendatacommunities.org/id/metropolitan-district-council/walsall,WC108-579,30/09/2019,Adult Social Care,BENTLEY COURT PRIORY,16/09/2019,-757.95,73503-NURSING EMI,Third Party Payments,Private Contractor Fees,Revenue
Walsall Council,http://opendatacommunities.org/id/metropolitan-district-council/walsall,WC108-580,30/09/2019,Adult Social Care,BENTLEY COURT PRIORY,16/09/2019,673.74,73503-NURSING EMI,Third Party Payments,Private Contractor Fees,Revenue
Walsall Council,http://opendatacommunities.org/id/metropolitan-district-council/walsall,WC108-581,30/09/2019,Adult Social Care,BENTLEY COURT PRIORY,16/09/2019,"2,143.72",73502-NURSING,Third Party Payments,Private Contractor Fees,Revenue
Walsall Council,http://opendatacommunities.org/id/metropolitan-district-council/walsall,WC108-582,30/09/2019,Adult Social Care,BENTLEY COURT PRIORY,16/09/2019,"2,358.08",73503-NURSING EMI,Third Party Payments,Private Contractor Fees,Revenue
Walsall Council,http://opendatacommunities.org/id/metropolitan-district-council/walsall,WC108-583,30/09/2019,Adult Social Care,BENTLEY COURT PRIORY,16/09/2019,"2,358.08",73503-NURSING EMI,Third Party Payments,Private Contractor Fees,Revenue
Walsall Council,http://opendatacommunities.org/id/metropolitan-district-council/walsall,WC108-584,30/09/2019,Adult Social Care,BENTLEY COURT PRIORY,16/09/2019,"2,358.08",73503-NURSING EMI,Third Party Payments,Private Contractor Fees,Revenue
Walsall Council,http://opendatacommunities.org/id/metropolitan-district-council/walsall,WC108-585,30/09/2019,Adult Social Care,BENTLEY COURT PRIORY,16/09/2019,"2,358.08",73503-NURSING EMI,Third Party Payments,Private Contractor Fees,Revenue
Walsall Council,http://opendatacommunities.org/id/metropolitan-district-council/walsall,WC108-586,30/09/2019,Adult Social Care,BENTLEY COURT PRIORY,16/09/2019,"2,358.08",73503-NURSING EMI,Third Party Payments,Private Contractor Fees,Revenue
Walsall Council,http://opendatacommunities.org/id/metropolitan-district-council/walsall,WC108-587,30/09/2019,Adult Social Care,BENTLEY COURT PRIORY,16/09/2019,"2,358.08",73503-NURSING EMI,Third Party Payments,Private Contractor Fees,Revenue
Walsall Council,http://opendatacommunities.org/id/metropolitan-district-council/walsall,WC108-588,30/09/2019,Adult Social Care,BENTLEY COURT PRIORY,16/09/2019,"2,358.08",73503-NURSING EMI,Third Party Payments,Private Contractor Fees,Revenue
Walsall Council,http://opendatacommunities.org/id/metropolitan-district-council/walsall,WC108-589,30/09/2019,Childrens,REDACTED,12/09/2019,825.30,66505-OTHER-GRANTS TO OTHER ORGS,Third Party Payments,Grants to Other Orgs,Revenue
Walsall Council,http://opendatacommunities.org/id/metropolitan-district-council/walsall,WC108-590,30/09/2019,Childrens,REDACTED,20/09/2019,"1,370.25",66505-OTHER-GRANTS TO OTHER ORGS,Third Party Payments,Grants to Other Orgs,Revenue
Walsall Council,http://opendatacommunities.org/id/metropolitan-district-council/walsall,WC108-591,30/09/2019,Holding Accounts,BERRYMANS LACE MAWER LLP,25/09/2019,"1,027.00",67001-MISC INSURANCES - PAYMENT OF CLAIMS,Supplies & Services,Other Supplies & Services,Revenue
Walsall Council,http://opendatacommunities.org/id/metropolitan-district-council/walsall,WC108-592,30/09/2019,Adult Social Care,REDACTED,06/09/2019,"2,222.40",73506-DIRECT PAYMENT,Third Party Payments,Private Contractor Fees,Revenue
Walsall Council,http://opendatacommunities.org/id/metropolitan-district-council/walsall,WC108-593,30/09/2019,Adult Social Care,REDACTED,06/09/2019,"2,467.50",73506-DIRECT PAYMENT,Third Party Payments,Private Contractor Fees,Revenue
Walsall Council,http://opendatacommunities.org/id/metropolitan-district-council/walsall,WC108-594,30/09/2019,Economy & Environment,BESCOT STADIUM SUNDAY MARKET LTD,03/09/2019,"2,600.00",73025-PROFESSIONAL SERVICES-PRIV CONTRACTOR & OTHER AGENCIES,Third Party Payments,Private Contractor Fees,Revenue
Walsall Council,http://opendatacommunities.org/id/metropolitan-district-council/walsall,WC108-595,30/09/2019,Economy & Environment,BESCOT STADIUM SUNDAY MARKET LTD,26/09/2019,"3,250.00",73025-PROFESSIONAL SERVICES-PRIV CONTRACTOR & OTHER AGENCIES,Third Party Payments,Private Contractor Fees,Revenue
Walsall Council,http://opendatacommunities.org/id/metropolitan-district-council/walsall,WC108-596,30/09/2019,Adult Social Care,BETHPHAGE.,16/09/2019,-0.24,73508-COMMUNITY SUPPORTED LIVING/SUPPORTED ACCOMMODATION,Third Party Payments,Private Contractor Fees,Revenue
Walsall Council,http://opendatacommunities.org/id/metropolitan-district-council/walsall,WC108-597,30/09/2019,Adult Social Care,BETHPHAGE.,16/09/2019,581.20,73507-DOMICILIARY CARE,Third Party Payments,Private Contractor Fees,Revenue
Walsall Council,http://opendatacommunities.org/id/metropolitan-district-council/walsall,WC108-598,30/09/2019,Adult Social Care,BETHPHAGE.,16/09/2019,581.20,73507-DOMICILIARY CARE,Third Party Payments,Private Contractor Fees,Revenue
Walsall Council,http://opendatacommunities.org/id/metropolitan-district-council/walsall,WC108-599,30/09/2019,Adult Social Care,BETHPHAGE.,16/09/2019,581.44,73507-DOMICILIARY CARE,Third Party Payments,Private Contractor Fees,Revenue
Walsall Council,http://opendatacommunities.org/id/metropolitan-district-council/walsall,WC108-600,30/09/2019,Adult Social Care,BETHPHAGE.,16/09/2019,616.20,73507-DOMICILIARY CARE,Third Party Payments,Private Contractor Fees,Revenue
Walsall Council,http://opendatacommunities.org/id/metropolitan-district-council/walsall,WC108-601,30/09/2019,Adult Social Care,BETHPHAGE.,16/09/2019,900.88,73508-COMMUNITY SUPPORTED LIVING/SUPPORTED ACCOMMODATION,Third Party Payments,Private Contractor Fees,Revenue
Walsall Council,http://opendatacommunities.org/id/metropolitan-district-council/walsall,WC108-602,30/09/2019,Adult Social Care,BETHPHAGE.,16/09/2019,"1,322.24",73507-DOMICILIARY CARE,Third Party Payments,Private Contractor Fees,Revenue
Walsall Council,http://opendatacommunities.org/id/metropolitan-district-council/walsall,WC108-603,30/09/2019,Adult Social Care,BETHPHAGE.,16/09/2019,"1,336.76",73507-DOMICILIARY CARE,Third Party Payments,Private Contractor Fees,Revenue
Walsall Council,http://opendatacommunities.org/id/metropolitan-district-council/walsall,WC108-604,30/09/2019,Adult Social Care,BETHPHAGE.,16/09/2019,"3,109.44",73507-DOMICILIARY CARE,Third Party Payments,Private Contractor Fees,Revenue
Walsall Council,http://opendatacommunities.org/id/metropolitan-district-council/walsall,WC108-605,30/09/2019,Adult Social Care,BETHPHAGE.,16/09/2019,"5,805.64",73508-COMMUNITY SUPPORTED LIVING/SUPPORTED ACCOMMODATION,Third Party Payments,Private Contractor Fees,Revenue
Walsall Council,http://opendatacommunities.org/id/metropolitan-district-council/walsall,WC108-606,30/09/2019,Adult Social Care,REDACTED,06/09/2019,"1,186.90",73506-DIRECT PAYMENT,Third Party Payments,Private Contractor Fees,Revenue
Walsall Council,http://opendatacommunities.org/id/metropolitan-district-council/walsall,WC108-607,30/09/2019,Holding Accounts,REDACTED,24/09/2019,"3,000.00",67001-MISC INSURANCES - PAYMENT OF CLAIMS,Supplies & Services,Other Supplies & Services,Revenue
Walsall Council,http://opendatacommunities.org/id/metropolitan-district-council/walsall,WC108-608,30/09/2019,Economy & Environment,BHR PHARMACEUTICALS LTD,12/09/2019,260.00,63253-PAYMENT TO CONTRACTOR,Third Party Payments,Private Contractor Fees,Revenue
Walsall Council,http://opendatacommunities.org/id/metropolitan-district-council/walsall,WC108-609,30/09/2019,Childrens,REDACTED,10/09/2019,647.40,73506-DIRECT PAYMENT,Third Party Payments,Private Contractor Fees,Revenue
Walsall Council,http://opendatacommunities.org/id/metropolitan-district-council/walsall,WC108-610,30/09/2019,Childrens,REDACTED,10/09/2019,"1,020.00",73506-DIRECT PAYMENT,Third Party Payments,Private Contractor Fees,Revenue
Walsall Council,http://opendatacommunities.org/id/metropolitan-district-council/walsall,WC108-611,30/09/2019,Childrens,BIRCHILLS C OF E COMMUNITY ACADEMY,02/09/2019,988.50,52000-WITH DRIVER-HIRE OF VEHICLES,Transport,Hire,Revenue
Walsall Council,http://opendatacommunities.org/id/metropolitan-district-council/walsall,WC108-612,30/09/2019,Childrens,BIRCHILLS C OF E COMMUNITY ACADEMY,01/09/2019,"17,283.47",66502-TOP UP FUNDING -GRANTS TO SCHOOLS,Third Party Payments,Grants to Other Orgs,Revenue
Walsall Council,http://opendatacommunities.org/id/metropolitan-district-council/walsall,WC108-613,30/09/2019,Childrens,BIRCHILLS C OF E COMMUNITY ACADEMY,01/09/2019,"36,540.00",66505-OTHER-GRANTS TO OTHER ORGS,Third Party Payments,Grants to Other Orgs,Revenue
Walsall Council,http://opendatacommunities.org/id/metropolitan-district-council/walsall,WC108-614,30/09/2019,Childrens,BIRMINGHAM CITY COUNCIL,06/09/2019,"1,956.16",74037-INDEPENDENT FOSTER CARE-OTH AGENCY PROVISION,Third Party Payments,Private Contractor Fees,Revenue
Walsall Council,http://opendatacommunities.org/id/metropolitan-district-council/walsall,WC108-615,30/09/2019,Economy & Environment,BLACK COUNTRY CONSORTIUM LIMITED,23/09/2019,"16,200.00",65500-GRANTS TO ASSOCIATIONS,Third Party Payments,Grants to Other Orgs,Revenue
Walsall Council,http://opendatacommunities.org/id/metropolitan-district-council/walsall,WC108-616,30/09/2019,Economy & Environment,BLACK COUNTRY CONSORTIUM LIMITED,23/09/2019,"101,752.91",65500-GRANTS TO ASSOCIATIONS,Third Party Payments,Grants to Other Orgs,Revenue
Walsall Council,http://opendatacommunities.org/id/metropolitan-district-council/walsall,WC108-617,30/09/2019,Economy & Environment,BLACK COUNTRY CONSORTIUM LIMITED,03/09/2019,"146,611.57",65500-GRANTS TO ASSOCIATIONS,Third Party Payments,Grants to Other Orgs,Revenue
Walsall Council,http://opendatacommunities.org/id/metropolitan-district-council/walsall,WC108-618,30/09/2019,Resources and Transformation,BLACK COUNTRY INNOVATE CIC,27/09/2019,"15,000.00",73025-PROFESSIONAL SERVICES-PRIV CONTRACTOR & OTHER AGENCIES,Third Party Payments,Private Contractor Fees,Revenue
Walsall Council,http://opendatacommunities.org/id/metropolitan-district-council/walsall,WC108-619,30/09/2019,Childrens,BLACK COUNTRY WOMENS AID,05/09/2019,"18,466.27",63000-PROFESSIONAL FEES AND SERVICES,Supplies & Services,Services,Revenue
Walsall Council,http://opendatacommunities.org/id/metropolitan-district-council/walsall,WC108-620,30/09/2019,Childrens,BLACK COUNTRY WOMENS AID,13/09/2019,"18,466.27",63000-PROFESSIONAL FEES AND SERVICES,Supplies & Services,Services,Revenue
Walsall Council,http://opendatacommunities.org/id/metropolitan-district-council/walsall,WC108-621,30/09/2019,Childrens,BLAKENALL HEATH JMI SCHOOL,06/09/2019,"3,461.54",66502-TOP UP FUNDING -GRANTS TO SCHOOLS,Third Party Payments,Grants to Other Orgs,Revenue
Walsall Council,http://opendatacommunities.org/id/metropolitan-district-council/walsall,WC108-622,30/09/2019,Childrens,BLOSSOMS ON THE COMMON DAY NURSERY LTD,03/09/2019,685.13,66505-OTHER-GRANTS TO OTHER ORGS,Third Party Payments,Grants to Other Orgs,Revenue
Walsall Council,http://opendatacommunities.org/id/metropolitan-district-council/walsall,WC108-623,30/09/2019,Childrens,BLOSSOMS ON THE COMMON DAY NURSERY LTD,03/09/2019,"8,685.30",66505-OTHER-GRANTS TO OTHER ORGS,Third Party Payments,Grants to Other Orgs,Revenue
Walsall Council,http://opendatacommunities.org/id/metropolitan-district-council/walsall,WC108-624,30/09/2019,Childrens,BLOSSOMS ON THE COMMON DAY NURSERY LTD,03/09/2019,"11,554.20",66505-OTHER-GRANTS TO OTHER ORGS,Third Party Payments,Grants to Other Orgs,Revenue
Walsall Council,http://opendatacommunities.org/id/metropolitan-district-council/walsall,WC108-625,30/09/2019,Childrens,BLOXWICH ACADEMY,01/09/2019,"6,445.39",66502-TOP UP FUNDING -GRANTS TO SCHOOLS,Third Party Payments,Grants to Other Orgs,Revenue
Walsall Council,http://opendatacommunities.org/id/metropolitan-district-council/walsall,WC108-626,30/09/2019,Childrens,BLOXWICH ACADEMY,01/09/2019,"6,621.84",66502-TOP UP FUNDING -GRANTS TO SCHOOLS,Third Party Payments,Grants to Other Orgs,Revenue
Walsall Council,http://opendatacommunities.org/id/metropolitan-district-council/walsall,WC108-627,30/09/2019,Childrens,BLOXWICH ACADEMY,01/09/2019,"37,454.00",66505-OTHER-GRANTS TO OTHER ORGS,Third Party Payments,Grants to Other Orgs,Revenue
Walsall Council,http://opendatacommunities.org/id/metropolitan-district-council/walsall,WC108-628,30/09/2019,Resources and Transformation,BLOXWICH COMMUNITY PARTNERSHIP.,24/09/2019,"2,000.00",66500-GRANTS TO OTHER ORGS,Third Party Payments,Grants to Other Orgs,Revenue
Walsall Council,http://opendatacommunities.org/id/metropolitan-district-council/walsall,WC108-629,30/09/2019,Childrens,BLUE COAT CHURCH OF ENGLAND ACADEMY,01/09/2019,"19,764.90",66502-TOP UP FUNDING -GRANTS TO SCHOOLS,Third Party Payments,Grants to Other Orgs,Revenue
Walsall Council,http://opendatacommunities.org/id/metropolitan-district-council/walsall,WC108-630,30/09/2019,Childrens,BLUE GIRAFFE CHILDCARE,06/09/2019,"8,221.50",66505-OTHER-GRANTS TO OTHER ORGS,Third Party Payments,Grants to Other Orgs,Revenue
Walsall Council,http://opendatacommunities.org/id/metropolitan-district-council/walsall,WC108-631,30/09/2019,Childrens,BLUE GIRAFFE CHILDCARE,06/09/2019,"11,554.20",66505-OTHER-GRANTS TO OTHER ORGS,Third Party Payments,Grants to Other Orgs,Revenue
Walsall Council,http://opendatacommunities.org/id/metropolitan-district-council/walsall,WC108-632,30/09/2019,Economy & Environment,BME UNITED LTD,16/09/2019,"4,915.38",66500-GRANTS TO OTHER ORGS,Third Party Payments,Grants to Other Orgs,Revenue
Walsall Council,http://opendatacommunities.org/id/metropolitan-district-council/walsall,WC108-633,30/09/2019,Economy & Environment,BME UNITED LTD,25/09/2019,"11,279.80",63253-PAYMENT TO CONTRACTOR,Third Party Payments,Private Contractor Fees,Revenue
Walsall Council,http://opendatacommunities.org/id/metropolitan-district-council/walsall,WC108-634,30/09/2019,Childrens,REDACTED,10/09/2019,"1,836.00",73506-DIRECT PAYMENT,Third Party Payments,Private Contractor Fees,Revenue
Walsall Council,http://opendatacommunities.org/id/metropolitan-district-council/walsall,WC108-635,30/09/2019,Resources and Transformation,BORSHCH LTD,03/09/2019,237.49,60000-FURNITURE & EQUIPMENT,Supplies & Services,"Equip,Furniture & Materials",Revenue
Walsall Council,http://opendatacommunities.org/id/metropolitan-district-council/walsall,WC108-636,30/09/2019,Resources and Transformation,BORSHCH LTD,10/09/2019,237.49,60000-FURNITURE & EQUIPMENT,Supplies & Services,"Equip,Furniture & Materials",Revenue
Walsall Council,http://opendatacommunities.org/id/metropolitan-district-council/walsall,WC108-637,30/09/2019,Resources and Transformation,BORSHCH LTD,18/09/2019,254.17,60000-FURNITURE & EQUIPMENT,Supplies & Services,"Equip,Furniture & Materials",Revenue
Walsall Council,http://opendatacommunities.org/id/metropolitan-district-council/walsall,WC108-638,30/09/2019,Resources and Transformation,BORSHCH LTD,01/09/2019,291.66,60000-FURNITURE & EQUIPMENT,Supplies & Services,"Equip,Furniture & Materials",Revenue
Walsall Council,http://opendatacommunities.org/id/metropolitan-district-council/walsall,WC108-639,30/09/2019,Resources and Transformation,BORSHCH LTD,09/09/2019,291.66,60000-FURNITURE & EQUIPMENT,Supplies & Services,"Equip,Furniture & Materials",Revenue
Walsall Council,http://opendatacommunities.org/id/metropolitan-district-council/walsall,WC108-640,30/09/2019,Resources and Transformation,BORSHCH LTD,12/09/2019,291.66,60000-FURNITURE & EQUIPMENT,Supplies & Services,"Equip,Furniture & Materials",Revenue
Walsall Council,http://opendatacommunities.org/id/metropolitan-district-council/walsall,WC108-641,30/09/2019,Resources and Transformation,BORSHCH LTD,18/09/2019,291.66,60000-FURNITURE & EQUIPMENT,Supplies & Services,"Equip,Furniture & Materials",Revenue
Walsall Council,http://opendatacommunities.org/id/metropolitan-district-council/walsall,WC108-642,30/09/2019,Resources and Transformation,BORSHCH LTD,23/09/2019,291.66,60000-FURNITURE & EQUIPMENT,Supplies & Services,"Equip,Furniture & Materials",Revenue
Walsall Council,http://opendatacommunities.org/id/metropolitan-district-council/walsall,WC108-643,30/09/2019,Resources and Transformation,BORSHCH LTD,23/09/2019,291.66,60000-FURNITURE & EQUIPMENT,Supplies & Services,"Equip,Furniture & Materials",Revenue
Walsall Council,http://opendatacommunities.org/id/metropolitan-district-council/walsall,WC108-644,30/09/2019,Resources and Transformation,BORSHCH LTD,23/09/2019,295.83,60000-FURNITURE & EQUIPMENT,Supplies & Services,"Equip,Furniture & Materials",Revenue
Walsall Council,http://opendatacommunities.org/id/metropolitan-district-council/walsall,WC108-645,30/09/2019,Resources and Transformation,BORSHCH LTD,09/09/2019,354.16,60000-FURNITURE & EQUIPMENT,Supplies & Services,"Equip,Furniture & Materials",Revenue
Walsall Council,http://opendatacommunities.org/id/metropolitan-district-council/walsall,WC108-646,30/09/2019,Resources and Transformation,BORSHCH LTD,25/09/2019,354.16,60000-FURNITURE & EQUIPMENT,Supplies & Services,"Equip,Furniture & Materials",Revenue
Walsall Council,http://opendatacommunities.org/id/metropolitan-district-council/walsall,WC108-647,30/09/2019,Resources and Transformation,BORSHCH LTD,23/09/2019,408.33,60000-FURNITURE & EQUIPMENT,Supplies & Services,"Equip,Furniture & Materials",Revenue
Walsall Council,http://opendatacommunities.org/id/metropolitan-district-council/walsall,WC108-648,30/09/2019,Resources and Transformation,BORSHCH LTD,04/09/2019,425.00,60000-FURNITURE & EQUIPMENT,Supplies & Services,"Equip,Furniture & Materials",Revenue
Walsall Council,http://opendatacommunities.org/id/metropolitan-district-council/walsall,WC108-649,30/09/2019,Resources and Transformation,BORSHCH LTD,01/09/2019,433.33,60000-FURNITURE & EQUIPMENT,Supplies & Services,"Equip,Furniture & Materials",Revenue
Walsall Council,http://opendatacommunities.org/id/metropolitan-district-council/walsall,WC108-650,30/09/2019,Resources and Transformation,BORSHCH LTD,03/09/2019,433.33,60000-FURNITURE & EQUIPMENT,Supplies & Services,"Equip,Furniture & Materials",Revenue
Walsall Council,http://opendatacommunities.org/id/metropolitan-district-council/walsall,WC108-651,30/09/2019,Resources and Transformation,BORSHCH LTD,03/09/2019,433.33,60000-FURNITURE & EQUIPMENT,Supplies & Services,"Equip,Furniture & Materials",Revenue
Walsall Council,http://opendatacommunities.org/id/metropolitan-district-council/walsall,WC108-652,30/09/2019,Resources and Transformation,BORSHCH LTD,18/09/2019,433.33,60000-FURNITURE & EQUIPMENT,Supplies & Services,"Equip,Furniture & Materials",Revenue
Walsall Council,http://opendatacommunities.org/id/metropolitan-district-council/walsall,WC108-653,30/09/2019,Resources and Transformation,BORSHCH LTD,18/09/2019,433.33,60000-FURNITURE & EQUIPMENT,Supplies & Services,"Equip,Furniture & Materials",Revenue
Walsall Council,http://opendatacommunities.org/id/metropolitan-district-council/walsall,WC108-654,30/09/2019,Resources and Transformation,BORSHCH LTD,23/09/2019,433.33,60000-FURNITURE & EQUIPMENT,Supplies & Services,"Equip,Furniture & Materials",Revenue
Walsall Council,http://opendatacommunities.org/id/metropolitan-district-council/walsall,WC108-655,30/09/2019,Resources and Transformation,BORSHCH LTD,23/09/2019,433.33,60000-FURNITURE & EQUIPMENT,Supplies & Services,"Equip,Furniture & Materials",Revenue
Walsall Council,http://opendatacommunities.org/id/metropolitan-district-council/walsall,WC108-656,30/09/2019,Resources and Transformation,BORSHCH LTD,10/09/2019,487.50,60000-FURNITURE & EQUIPMENT,Supplies & Services,"Equip,Furniture & Materials",Revenue
Walsall Council,http://opendatacommunities.org/id/metropolitan-district-council/walsall,WC108-657,30/09/2019,Resources and Transformation,BORSHCH LTD,01/09/2019,562.50,60000-FURNITURE & EQUIPMENT,Supplies & Services,"Equip,Furniture & Materials",Revenue
Walsall Council,http://opendatacommunities.org/id/metropolitan-district-council/walsall,WC108-658,30/09/2019,Adult Social Care,BOWDEN DERRA PARK,16/09/2019,"11,151.52",73500-RESIDENTIAL,Third Party Payments,Private Contractor Fees,Revenue
Walsall Council,http://opendatacommunities.org/id/metropolitan-district-council/walsall,WC108-659,30/09/2019,Economy & Environment,BRADVALE LTD T/A INSPIRE HEALTHCARE SERVICES,26/09/2019,283.65,60500-GENERAL MATERIALS,Supplies & Services,"Equip,Furniture & Materials",Revenue
Walsall Council,http://opendatacommunities.org/id/metropolitan-district-council/walsall,WC108-660,30/09/2019,Economy & Environment,BRADVALE LTD T/A INSPIRE HEALTHCARE SERVICES,26/09/2019,622.31,60500-GENERAL MATERIALS,Supplies & Services,"Equip,Furniture & Materials",Revenue
Walsall Council,http://opendatacommunities.org/id/metropolitan-district-council/walsall,WC108-661,30/09/2019,Economy & Environment,BRADVALE LTD T/A INSPIRE HEALTHCARE SERVICES,26/09/2019,622.31,60500-GENERAL MATERIALS,Supplies & Services,"Equip,Furniture & Materials",Revenue
Walsall Council,http://opendatacommunities.org/id/metropolitan-district-council/walsall,WC108-662,30/09/2019,Economy & Environment,BRADVALE LTD T/A INSPIRE HEALTHCARE SERVICES,26/09/2019,622.31,60500-GENERAL MATERIALS,Supplies & Services,"Equip,Furniture & Materials",Revenue
Walsall Council,http://opendatacommunities.org/id/metropolitan-district-council/walsall,WC108-663,30/09/2019,Economy & Environment,BRADVALE LTD T/A INSPIRE HEALTHCARE SERVICES,01/09/2019,642.79,60500-GENERAL MATERIALS,Supplies & Services,"Equip,Furniture & Materials",Revenue
Walsall Council,http://opendatacommunities.org/id/metropolitan-district-council/walsall,WC108-664,30/09/2019,Economy & Environment,BRADVALE LTD T/A INSPIRE HEALTHCARE SERVICES,26/09/2019,642.79,60500-GENERAL MATERIALS,Supplies & Services,"Equip,Furniture & Materials",Revenue
Walsall Council,http://opendatacommunities.org/id/metropolitan-district-council/walsall,WC108-665,30/09/2019,Economy & Environment,BRADVALE LTD T/A INSPIRE HEALTHCARE SERVICES,26/09/2019,642.79,60500-GENERAL MATERIALS,Supplies & Services,"Equip,Furniture & Materials",Revenue
Walsall Council,http://opendatacommunities.org/id/metropolitan-district-council/walsall,WC108-666,30/09/2019,Economy & Environment,BRAMBLE HUB LIMITED,19/09/2019,"1,123.61",63114-OTHER FEES & LICENCES-SERVICES-FEES,Supplies & Services,Other Supplies & Services,Revenue
Walsall Council,http://opendatacommunities.org/id/metropolitan-district-council/walsall,WC108-667,30/09/2019,Economy & Environment,BRAMBLE HUB LIMITED,19/09/2019,"1,123.61",63114-OTHER FEES & LICENCES-SERVICES-FEES,Supplies & Services,Other Supplies & Services,Revenue
Walsall Council,http://opendatacommunities.org/id/metropolitan-district-council/walsall,WC108-668,30/09/2019,Economy & Environment,BRAMBLE HUB LIMITED,19/09/2019,"1,123.61",63114-OTHER FEES & LICENCES-SERVICES-FEES,Supplies & Services,Other Supplies & Services,Revenue
Walsall Council,http://opendatacommunities.org/id/metropolitan-district-council/walsall,WC108-669,30/09/2019,Economy & Environment,BRAMBLE HUB LIMITED,19/09/2019,"1,123.61",63114-OTHER FEES & LICENCES-SERVICES-FEES,Supplies & Services,Other Supplies & Services,Revenue
Walsall Council,http://opendatacommunities.org/id/metropolitan-district-council/walsall,WC108-670,30/09/2019,Resources and Transformation,BRAP LTD,26/09/2019,"8,670.00",73025-PROFESSIONAL SERVICES-PRIV CONTRACTOR & OTHER AGENCIES,Third Party Payments,Private Contractor Fees,Revenue
Walsall Council,http://opendatacommunities.org/id/metropolitan-district-council/walsall,WC108-671,30/09/2019,Economy & Environment,BRELMAYNE LTD,23/09/2019,317.20,60008-REPAIR & MAINTENANCE OF FURNITURE & EQUIPMENT,Supplies & Services,"Equip,Furniture & Materials",Revenue
Walsall Council,http://opendatacommunities.org/id/metropolitan-district-council/walsall,WC108-672,30/09/2019,Resources and Transformation,BRELMAYNE LTD,01/09/2019,360.00,60007-REPAIR OF EQUIPMENT-EQUIPMENT,Supplies & Services,"Equip,Furniture & Materials",Revenue
Walsall Council,http://opendatacommunities.org/id/metropolitan-district-council/walsall,WC108-673,30/09/2019,Resources and Transformation,BRELMAYNE LTD,01/09/2019,405.00,60007-REPAIR OF EQUIPMENT-EQUIPMENT,Supplies & Services,"Equip,Furniture & Materials",Revenue
Walsall Council,http://opendatacommunities.org/id/metropolitan-district-council/walsall,WC108-674,30/09/2019,Resources and Transformation,BRELMAYNE LTD,01/09/2019,405.00,60007-REPAIR OF EQUIPMENT-EQUIPMENT,Supplies & Services,"Equip,Furniture & Materials",Revenue
Walsall Council,http://opendatacommunities.org/id/metropolitan-district-council/walsall,WC108-675,30/09/2019,Resources and Transformation,BRELMAYNE LTD,01/09/2019,405.00,60007-REPAIR OF EQUIPMENT-EQUIPMENT,Supplies & Services,"Equip,Furniture & Materials",Revenue
Walsall Council,http://opendatacommunities.org/id/metropolitan-district-council/walsall,WC108-676,30/09/2019,Resources and Transformation,BRELMAYNE LTD,01/09/2019,585.00,60007-REPAIR OF EQUIPMENT-EQUIPMENT,Supplies & Services,"Equip,Furniture & Materials",Revenue
Walsall Council,http://opendatacommunities.org/id/metropolitan-district-council/walsall,WC108-677,30/09/2019,Adult Social Care,REDACTED,06/09/2019,550.00,73506-DIRECT PAYMENT,Third Party Payments,Private Contractor Fees,Revenue
Walsall Council,http://opendatacommunities.org/id/metropolitan-district-council/walsall,WC108-678,30/09/2019,Adult Social Care,REDACTED,06/09/2019,304.60,73506-DIRECT PAYMENT,Third Party Payments,Private Contractor Fees,Revenue
Walsall Council,http://opendatacommunities.org/id/metropolitan-district-council/walsall,WC108-679,30/09/2019,Childrens,REDACTED,06/09/2019,720.00,74501-MAINTENANCE ALLOWANCE-FOSTER CARERS,Transfer Payments,Transfer Payments,Revenue
Walsall Council,http://opendatacommunities.org/id/metropolitan-district-council/walsall,WC108-680,30/09/2019,Childrens,REDACTED,06/09/2019,720.00,74501-MAINTENANCE ALLOWANCE-FOSTER CARERS,Transfer Payments,Transfer Payments,Revenue
Walsall Council,http://opendatacommunities.org/id/metropolitan-district-council/walsall,WC108-681,30/09/2019,Childrens,REDACTED,06/09/2019,"1,600.00",74508-INTERNAL FOSTER CARERS-CARER FEES,Transfer Payments,Transfer Payments,Revenue
Walsall Council,http://opendatacommunities.org/id/metropolitan-district-council/walsall,WC108-682,30/09/2019,Economy & Environment,BRENNTAG UK LIMITED,20/09/2019,413.89,60503-CHEMICALS & SCIENTIFIC MATS-MATERIALS,Supplies & Services,"Equip,Furniture & Materials",Revenue
Walsall Council,http://opendatacommunities.org/id/metropolitan-district-council/walsall,WC108-683,30/09/2019,Economy & Environment,BRENNTAG UK LIMITED,01/10/2019,413.89,60503-CHEMICALS & SCIENTIFIC MATS-MATERIALS,Supplies & Services,"Equip,Furniture & Materials",Revenue
Walsall Council,http://opendatacommunities.org/id/metropolitan-district-council/walsall,WC108-684,30/09/2019,Economy & Environment,BRENNTAG UK LIMITED,13/09/2019,633.14,60503-CHEMICALS & SCIENTIFIC MATS-MATERIALS,Supplies & Services,"Equip,Furniture & Materials",Revenue
Walsall Council,http://opendatacommunities.org/id/metropolitan-district-council/walsall,WC108-685,30/09/2019,Economy & Environment,BRENNTAG UK LIMITED,01/09/2019,654.56,50301-FUEL FOR VEHICLES,Transport,Other Transport,Revenue
Walsall Council,http://opendatacommunities.org/id/metropolitan-district-council/walsall,WC108-686,30/09/2019,Adult Social Care,REDACTED,06/09/2019,"1,538.29",73510-SHARED LIVES,Third Party Payments,Private Contractor Fees,Revenue
Walsall Council,http://opendatacommunities.org/id/metropolitan-district-council/walsall,WC108-687,30/09/2019,Adult Social Care,REDACTED,06/09/2019,"1,952.49",73510-SHARED LIVES,Third Party Payments,Private Contractor Fees,Revenue
Walsall Council,http://opendatacommunities.org/id/metropolitan-district-council/walsall,WC108-688,30/09/2019,Adult Social Care,REDACTED,06/09/2019,"2,258.20",73506-DIRECT PAYMENT,Third Party Payments,Private Contractor Fees,Revenue
Walsall Council,http://opendatacommunities.org/id/metropolitan-district-council/walsall,WC108-689,30/09/2019,Adult Social Care,REDACTED,06/09/2019,"1,045.50",73506-DIRECT PAYMENT,Third Party Payments,Private Contractor Fees,Revenue
Walsall Council,http://opendatacommunities.org/id/metropolitan-district-council/walsall,WC108-690,30/09/2019,Adult Social Care,BRIDGEWOOD HEALTH CARE LTD,16/09/2019,"5,854.28",73500-RESIDENTIAL,Third Party Payments,Private Contractor Fees,Revenue
Walsall Council,http://opendatacommunities.org/id/metropolitan-district-council/walsall,WC108-691,30/09/2019,Adult Social Care,BRIDGEWOOD HEALTH CARE LTD,16/09/2019,"10,147.00",73503-NURSING EMI,Third Party Payments,Private Contractor Fees,Revenue
Walsall Council,http://opendatacommunities.org/id/metropolitan-district-council/walsall,WC108-692,30/09/2019,Resources and Transformation,BRISTOW & SUTOR,18/09/2019,219.75,73014-LEGAL FEES-PRIV CONTRACTOR FEES,Third Party Payments,Private Contractor Fees,Revenue
Walsall Council,http://opendatacommunities.org/id/metropolitan-district-council/walsall,WC108-693,30/09/2019,Resources and Transformation,BRISTOW & SUTOR,18/09/2019,268.86,73014-LEGAL FEES-PRIV CONTRACTOR FEES,Third Party Payments,Private Contractor Fees,Revenue
Walsall Council,http://opendatacommunities.org/id/metropolitan-district-council/walsall,WC108-694,30/09/2019,Resources and Transformation,BRISTOW & SUTOR,18/09/2019,430.63,73014-LEGAL FEES-PRIV CONTRACTOR FEES,Third Party Payments,Private Contractor Fees,Revenue
Walsall Council,http://opendatacommunities.org/id/metropolitan-district-council/walsall,WC108-695,30/09/2019,Resources and Transformation,BRITANNIA HOTELS LTD T/A BRITANNIA HOTEL WOLVERHAMPTON,11/09/2019,228.25,75501-BED & BREAKFAST PAYMENTS,Third Party Payments,Private Contractor Fees,Revenue
Walsall Council,http://opendatacommunities.org/id/metropolitan-district-council/walsall,WC108-696,30/09/2019,Resources and Transformation,BRITANNIA HOTELS LTD T/A BRITANNIA HOTEL WOLVERHAMPTON,05/09/2019,232.00,75501-BED & BREAKFAST PAYMENTS,Third Party Payments,Private Contractor Fees,Revenue
Walsall Council,http://opendatacommunities.org/id/metropolitan-district-council/walsall,WC108-697,30/09/2019,Resources and Transformation,BRITANNIA HOTELS LTD T/A BRITANNIA HOTEL WOLVERHAMPTON,13/09/2019,291.11,75501-BED & BREAKFAST PAYMENTS,Third Party Payments,Private Contractor Fees,Revenue
Walsall Council,http://opendatacommunities.org/id/metropolitan-district-council/walsall,WC108-698,30/09/2019,Resources and Transformation,BRITANNIA HOTELS LTD T/A BRITANNIA HOTEL WOLVERHAMPTON,23/09/2019,334.84,75501-BED & BREAKFAST PAYMENTS,Third Party Payments,Private Contractor Fees,Revenue
Walsall Council,http://opendatacommunities.org/id/metropolitan-district-council/walsall,WC108-699,30/09/2019,Resources and Transformation,BRITANNIA HOTELS LTD T/A BRITANNIA HOTEL WOLVERHAMPTON,01/09/2019,351.36,75501-BED & BREAKFAST PAYMENTS,Third Party Payments,Private Contractor Fees,Revenue
Walsall Council,http://opendatacommunities.org/id/metropolitan-district-council/walsall,WC108-700,30/09/2019,Resources and Transformation,BRITANNIA HOTELS LTD T/A BRITANNIA HOTEL WOLVERHAMPTON,11/09/2019,429.50,75501-BED & BREAKFAST PAYMENTS,Third Party Payments,Private Contractor Fees,Revenue
Walsall Council,http://opendatacommunities.org/id/metropolitan-district-council/walsall,WC108-701,30/09/2019,Resources and Transformation,BRITANNIA HOTELS LTD T/A BRITANNIA HOTEL WOLVERHAMPTON,23/09/2019,435.50,75501-BED & BREAKFAST PAYMENTS,Third Party Payments,Private Contractor Fees,Revenue
Walsall Council,http://opendatacommunities.org/id/metropolitan-district-council/walsall,WC108-702,30/09/2019,Resources and Transformation,BRITANNIA HOTELS LTD T/A BRITANNIA HOTEL WOLVERHAMPTON,01/09/2019,481.25,75501-BED & BREAKFAST PAYMENTS,Third Party Payments,Private Contractor Fees,Revenue
Walsall Council,http://opendatacommunities.org/id/metropolitan-district-council/walsall,WC108-703,30/09/2019,Resources and Transformation,BRITANNIA HOTELS LTD T/A BRITANNIA HOTEL WOLVERHAMPTON,11/09/2019,"1,014.25",75501-BED & BREAKFAST PAYMENTS,Third Party Payments,Private Contractor Fees,Revenue
Walsall Council,http://opendatacommunities.org/id/metropolitan-district-council/walsall,WC108-704,30/09/2019,Resources and Transformation,BRITISH TELECOMMUNICATIONS LTD,17/09/2019,716.00,63603-COST OF CALLS-TELEPHONES,Supplies & Services,Communications & Computing,Revenue
Walsall Council,http://opendatacommunities.org/id/metropolitan-district-council/walsall,WC108-705,30/09/2019,Childrens,BRITISH YOUTH COUNCIL,04/09/2019,420.00,62515-MISCELLANEOUS SUPPLIES,Supplies & Services,Other Supplies & Services,Revenue
Walsall Council,http://opendatacommunities.org/id/metropolitan-district-council/walsall,WC108-706,30/09/2019,Childrens,BRITISH YOUTH COUNCIL,04/09/2019,945.00,62515-MISCELLANEOUS SUPPLIES,Supplies & Services,Other Supplies & Services,Revenue
Walsall Council,http://opendatacommunities.org/id/metropolitan-district-council/walsall,WC108-707,30/09/2019,Adult Social Care,BROADWAY HALLS CARE HOME,16/09/2019,"1,972.24",73501-RESIDENTIAL EMI,Third Party Payments,Private Contractor Fees,Revenue
Walsall Council,http://opendatacommunities.org/id/metropolitan-district-council/walsall,WC108-708,30/09/2019,Holding Accounts,BROWNE JACOBSON SOLICITORS,16/09/2019,665.00,67001-MISC INSURANCES - PAYMENT OF CLAIMS,Supplies & Services,Other Supplies & Services,Revenue
Walsall Council,http://opendatacommunities.org/id/metropolitan-district-council/walsall,WC108-709,30/09/2019,Centrally Held,BROWNE JACOBSON SOLICITORS,18/09/2019,971.50,73014-LEGAL FEES-PRIV CONTRACTOR FEES,Third Party Payments,Private Contractor Fees,Revenue
Walsall Council,http://opendatacommunities.org/id/metropolitan-district-council/walsall,WC108-710,30/09/2019,Economy & Environment,BROWNHILLS ASPHALT & TARMAC LIMITED,23/09/2019,939.55,60006-NEW-FURNITURE & EQUIPMENT,Supplies & Services,"Equip,Furniture & Materials",Revenue
Walsall Council,http://opendatacommunities.org/id/metropolitan-district-council/walsall,WC108-711,30/09/2019,Economy & Environment,BROWNHILLS ASPHALT & TARMAC LIMITED,24/09/2019,"1,384.00",60500-GENERAL MATERIALS,Supplies & Services,"Equip,Furniture & Materials",Revenue
Walsall Council,http://opendatacommunities.org/id/metropolitan-district-council/walsall,WC108-712,30/09/2019,Economy & Environment,BROWNHILLS ASPHALT & TARMAC LIMITED,12/09/2019,"6,500.00",01006-SITE WORKS MAIN CONTRACTORS,Capital,Capital,Capital
Walsall Council,http://opendatacommunities.org/id/metropolitan-district-council/walsall,WC108-713,30/09/2019,Economy & Environment,BROWNHILLS ASPHALT & TARMAC LIMITED,12/09/2019,"8,550.00",01006-SITE WORKS MAIN CONTRACTORS,Capital,Capital,Capital
Walsall Council,http://opendatacommunities.org/id/metropolitan-district-council/walsall,WC108-714,30/09/2019,Childrens,BROWNHILLS COMMUNITY ASSOCIATION,12/09/2019,570.00,63120-CRECHE FACILITIES-SERVICES-FEES,Supplies & Services,Other Supplies & Services,Revenue
Walsall Council,http://opendatacommunities.org/id/metropolitan-district-council/walsall,WC108-715,30/09/2019,Childrens,BROWNHILLS COMMUNITY ASSOCIATION,12/09/2019,"1,140.00",63120-CRECHE FACILITIES-SERVICES-FEES,Supplies & Services,Other Supplies & Services,Revenue
Walsall Council,http://opendatacommunities.org/id/metropolitan-district-council/walsall,WC108-716,30/09/2019,Childrens,BROWNHILLS COMMUNITY ASSOCIATION,12/09/2019,"1,140.00",63120-CRECHE FACILITIES-SERVICES-FEES,Supplies & Services,Other Supplies & Services,Revenue
Walsall Council,http://opendatacommunities.org/id/metropolitan-district-council/walsall,WC108-717,30/09/2019,Childrens,BROWNHILLS COMMUNITY ASSOCIATION,01/09/2019,"6,851.25",66505-OTHER-GRANTS TO OTHER ORGS,Third Party Payments,Grants to Other Orgs,Revenue
Walsall Council,http://opendatacommunities.org/id/metropolitan-district-council/walsall,WC108-718,30/09/2019,Childrens,BROWNHILLS COMMUNITY ASSOCIATION,01/09/2019,"12,214.44",66505-OTHER-GRANTS TO OTHER ORGS,Third Party Payments,Grants to Other Orgs,Revenue
Walsall Council,http://opendatacommunities.org/id/metropolitan-district-council/walsall,WC108-719,30/09/2019,Adult Social Care,REDACTED,06/09/2019,"1,040.40",73506-DIRECT PAYMENT,Third Party Payments,Private Contractor Fees,Revenue
Walsall Council,http://opendatacommunities.org/id/metropolitan-district-council/walsall,WC108-720,30/09/2019,Childrens,BT PLC,18/09/2019,216.10,63603-COST OF CALLS-TELEPHONES,Supplies & Services,Communications & Computing,Revenue
Walsall Council,http://opendatacommunities.org/id/metropolitan-district-council/walsall,WC108-721,30/09/2019,Childrens,BT PLC,18/09/2019,218.60,63603-COST OF CALLS-TELEPHONES,Supplies & Services,Communications & Computing,Revenue
Walsall Council,http://opendatacommunities.org/id/metropolitan-district-council/walsall,WC108-722,30/09/2019,Childrens,BT PLC,17/09/2019,219.38,63603-COST OF CALLS-TELEPHONES,Supplies & Services,Communications & Computing,Revenue
Walsall Council,http://opendatacommunities.org/id/metropolitan-district-council/walsall,WC108-723,30/09/2019,Childrens,BT PLC,18/09/2019,223.60,63603-COST OF CALLS-TELEPHONES,Supplies & Services,Communications & Computing,Revenue
Walsall Council,http://opendatacommunities.org/id/metropolitan-district-council/walsall,WC108-724,30/09/2019,Childrens,BT PLC,18/09/2019,224.25,63603-COST OF CALLS-TELEPHONES,Supplies & Services,Communications & Computing,Revenue
Walsall Council,http://opendatacommunities.org/id/metropolitan-district-council/walsall,WC108-725,30/09/2019,Childrens,BT PLC,18/09/2019,225.20,63603-COST OF CALLS-TELEPHONES,Supplies & Services,Communications & Computing,Revenue
Walsall Council,http://opendatacommunities.org/id/metropolitan-district-council/walsall,WC108-726,30/09/2019,Childrens,BT PLC,18/09/2019,228.40,63603-COST OF CALLS-TELEPHONES,Supplies & Services,Communications & Computing,Revenue
Walsall Council,http://opendatacommunities.org/id/metropolitan-district-council/walsall,WC108-727,30/09/2019,Resources and Transformation,BT PLC,12/09/2019,"1,268.35",63807-COMMS LINKS-COMPUTER,Supplies & Services,Communications & Computing,Revenue
Walsall Council,http://opendatacommunities.org/id/metropolitan-district-council/walsall,WC108-728,30/09/2019,Economy & Environment,BT PLC,11/09/2019,"7,939.00",63601-LANDLINE PHONES,Supplies & Services,Communications & Computing,Revenue
Walsall Council,http://opendatacommunities.org/id/metropolitan-district-council/walsall,WC108-729,30/09/2019,Resources and Transformation,BT PLC,10/09/2019,"14,944.14",63601-LANDLINE PHONES,Supplies & Services,Communications & Computing,Revenue
Walsall Council,http://opendatacommunities.org/id/metropolitan-district-council/walsall,WC108-730,30/09/2019,Economy & Environment,BUCKINGHAMSHIRE HEALTHCARE NHS TRUST,23/09/2019,262.00,63253-PAYMENT TO CONTRACTOR,Third Party Payments,Private Contractor Fees,Revenue
Walsall Council,http://opendatacommunities.org/id/metropolitan-district-council/walsall,WC108-731,30/09/2019,Economy & Environment,BUFFET EXPRESS LTD,04/09/2019,228.50,61009-BEVERAGES-PROVISIONS,Supplies & Services,Provisions,Revenue
Walsall Council,http://opendatacommunities.org/id/metropolitan-district-council/walsall,WC108-732,30/09/2019,Economy & Environment,BUFFET EXPRESS LTD,25/09/2019,371.50,61009-BEVERAGES-PROVISIONS,Supplies & Services,Provisions,Revenue
Walsall Council,http://opendatacommunities.org/id/metropolitan-district-council/walsall,WC108-733,30/09/2019,Resources and Transformation,BUILDING RESEARCH ESTABLISHMENT LTD (BRE),11/09/2019,"1,750.00",63102-CONSULTANTS FEES - CORPORATE,Supplies & Services,Services,Revenue
Walsall Council,http://opendatacommunities.org/id/metropolitan-district-council/walsall,WC108-734,30/09/2019,Resources and Transformation,BUILDING RESEARCH ESTABLISHMENT LTD (BRE),11/09/2019,"3,630.00",63102-CONSULTANTS FEES - CORPORATE,Supplies & Services,Services,Revenue
Walsall Council,http://opendatacommunities.org/id/metropolitan-district-council/walsall,WC108-735,30/09/2019,Adult Social Care,BUPA NURSING HOMES ASTON COURT,16/09/2019,"1,774.96",73500-RESIDENTIAL,Third Party Payments,Private Contractor Fees,Revenue
Walsall Council,http://opendatacommunities.org/id/metropolitan-district-council/walsall,WC108-736,30/09/2019,Adult Social Care,BUSH HOME LTD,16/09/2019,"-18,051.85",73501-RESIDENTIAL EMI,Third Party Payments,Private Contractor Fees,Revenue
Walsall Council,http://opendatacommunities.org/id/metropolitan-district-council/walsall,WC108-737,30/09/2019,Adult Social Care,BUSH HOME LTD,23/09/2019,570.52,73025-PROFESSIONAL SERVICES-PRIV CONTRACTOR & OTHER AGENCIES,Third Party Payments,Private Contractor Fees,Revenue
Walsall Council,http://opendatacommunities.org/id/metropolitan-district-council/walsall,WC108-738,30/09/2019,Adult Social Care,BUSH HOME LTD,23/09/2019,950.87,73025-PROFESSIONAL SERVICES-PRIV CONTRACTOR & OTHER AGENCIES,Third Party Payments,Private Contractor Fees,Revenue
Walsall Council,http://opendatacommunities.org/id/metropolitan-district-council/walsall,WC108-739,30/09/2019,Adult Social Care,BUSH HOME LTD,16/09/2019,"1,141.05",73504-SHORT STAY RESIDENTIAL,Third Party Payments,Private Contractor Fees,Revenue
Walsall Council,http://opendatacommunities.org/id/metropolitan-district-council/walsall,WC108-740,30/09/2019,Adult Social Care,BUSH HOME LTD,23/09/2019,"1,584.78",73025-PROFESSIONAL SERVICES-PRIV CONTRACTOR & OTHER AGENCIES,Third Party Payments,Private Contractor Fees,Revenue
Walsall Council,http://opendatacommunities.org/id/metropolitan-district-council/walsall,WC108-741,30/09/2019,Adult Social Care,BUSH HOME LTD,16/09/2019,"1,690.49",73501-RESIDENTIAL EMI,Third Party Payments,Private Contractor Fees,Revenue
Walsall Council,http://opendatacommunities.org/id/metropolitan-district-council/walsall,WC108-742,30/09/2019,Adult Social Care,BUSH HOME LTD,16/09/2019,"1,774.96",73500-RESIDENTIAL,Third Party Payments,Private Contractor Fees,Revenue
Walsall Council,http://opendatacommunities.org/id/metropolitan-district-council/walsall,WC108-743,30/09/2019,Adult Social Care,BUSH HOME LTD,16/09/2019,"1,774.96",73500-RESIDENTIAL,Third Party Payments,Private Contractor Fees,Revenue
Walsall Council,http://opendatacommunities.org/id/metropolitan-district-council/walsall,WC108-744,30/09/2019,Adult Social Care,BUSH HOME LTD,16/09/2019,"1,774.96",73500-RESIDENTIAL,Third Party Payments,Private Contractor Fees,Revenue
Walsall Council,http://opendatacommunities.org/id/metropolitan-district-council/walsall,WC108-745,30/09/2019,Adult Social Care,BUSH HOME LTD,16/09/2019,"1,774.96",73500-RESIDENTIAL,Third Party Payments,Private Contractor Fees,Revenue
Walsall Council,http://opendatacommunities.org/id/metropolitan-district-council/walsall,WC108-746,30/09/2019,Adult Social Care,BUSH HOME LTD,16/09/2019,"1,774.96",73500-RESIDENTIAL,Third Party Payments,Private Contractor Fees,Revenue
Walsall Council,http://opendatacommunities.org/id/metropolitan-district-council/walsall,WC108-747,30/09/2019,Adult Social Care,BUSH HOME LTD,16/09/2019,"1,972.24",73501-RESIDENTIAL EMI,Third Party Payments,Private Contractor Fees,Revenue
Walsall Council,http://opendatacommunities.org/id/metropolitan-district-council/walsall,WC108-748,30/09/2019,Adult Social Care,BUSH HOME LTD,16/09/2019,"1,972.24",73501-RESIDENTIAL EMI,Third Party Payments,Private Contractor Fees,Revenue
Walsall Council,http://opendatacommunities.org/id/metropolitan-district-council/walsall,WC108-749,30/09/2019,Adult Social Care,BUSH HOME LTD,16/09/2019,"1,972.24",73501-RESIDENTIAL EMI,Third Party Payments,Private Contractor Fees,Revenue
Walsall Council,http://opendatacommunities.org/id/metropolitan-district-council/walsall,WC108-750,30/09/2019,Adult Social Care,BUSH HOME LTD,16/09/2019,"1,972.24",73501-RESIDENTIAL EMI,Third Party Payments,Private Contractor Fees,Revenue
Walsall Council,http://opendatacommunities.org/id/metropolitan-district-council/walsall,WC108-751,30/09/2019,Adult Social Care,BUSH HOME LTD,16/09/2019,"1,972.24",73501-RESIDENTIAL EMI,Third Party Payments,Private Contractor Fees,Revenue
Walsall Council,http://opendatacommunities.org/id/metropolitan-district-council/walsall,WC108-752,30/09/2019,Adult Social Care,BUSH HOME LTD,16/09/2019,"1,972.24",73501-RESIDENTIAL EMI,Third Party Payments,Private Contractor Fees,Revenue
Walsall Council,http://opendatacommunities.org/id/metropolitan-district-council/walsall,WC108-753,30/09/2019,Childrens,BUSY BEES CHILDCARE LTD,01/09/2019,825.30,66505-OTHER-GRANTS TO OTHER ORGS,Third Party Payments,Grants to Other Orgs,Revenue
Walsall Council,http://opendatacommunities.org/id/metropolitan-district-council/walsall,WC108-754,30/09/2019,Childrens,BUSY BEES CHILDCARE LTD,01/09/2019,"9,591.75",66505-OTHER-GRANTS TO OTHER ORGS,Third Party Payments,Grants to Other Orgs,Revenue
Walsall Council,http://opendatacommunities.org/id/metropolitan-district-council/walsall,WC108-755,30/09/2019,Economy & Environment,BUXTONS LTD,09/09/2019,-208.50,61500-CLOTHING & LAUNDRY,Supplies & Services,"Equip,Furniture & Materials",Revenue
Walsall Council,http://opendatacommunities.org/id/metropolitan-district-council/walsall,WC108-756,30/09/2019,Economy & Environment,BUXTONS LTD,09/09/2019,208.50,61500-CLOTHING & LAUNDRY,Supplies & Services,"Equip,Furniture & Materials",Revenue
Walsall Council,http://opendatacommunities.org/id/metropolitan-district-council/walsall,WC108-757,30/09/2019,Economy & Environment,BUXTONS LTD,09/09/2019,820.50,61500-CLOTHING & LAUNDRY,Supplies & Services,"Equip,Furniture & Materials",Revenue
Walsall Council,http://opendatacommunities.org/id/metropolitan-district-council/walsall,WC108-758,30/09/2019,Childrens,BY THE BRIDGE,06/09/2019,"2,278.00",74037-INDEPENDENT FOSTER CARE-OTH AGENCY PROVISION,Third Party Payments,Private Contractor Fees,Revenue
Walsall Council,http://opendatacommunities.org/id/metropolitan-district-council/walsall,WC108-759,30/09/2019,Childrens,BY THE BRIDGE,06/09/2019,"2,278.00",74037-INDEPENDENT FOSTER CARE-OTH AGENCY PROVISION,Third Party Payments,Private Contractor Fees,Revenue
Walsall Council,http://opendatacommunities.org/id/metropolitan-district-council/walsall,WC108-760,30/09/2019,Childrens,BY THE BRIDGE,06/09/2019,"3,996.00",74037-INDEPENDENT FOSTER CARE-OTH AGENCY PROVISION,Third Party Payments,Private Contractor Fees,Revenue
Walsall Council,http://opendatacommunities.org/id/metropolitan-district-council/walsall,WC108-761,30/09/2019,Economy & Environment,C & W UK LLP,06/09/2019,"2,000.00",63000-PROFESSIONAL FEES AND SERVICES,Supplies & Services,Services,Revenue
Walsall Council,http://opendatacommunities.org/id/metropolitan-district-council/walsall,WC108-762,30/09/2019,Economy & Environment,C ART ART TRANSPORT LTD,12/09/2019,288.00,73032-TRANSPORTATION-PRIV CONTRACTOR FEES,Third Party Payments,Private Contractor Fees,Revenue
Walsall Council,http://opendatacommunities.org/id/metropolitan-district-council/walsall,WC108-763,30/09/2019,Childrens,REDACTED,06/09/2019,720.00,74501-MAINTENANCE ALLOWANCE-FOSTER CARERS,Transfer Payments,Transfer Payments,Revenue
Walsall Council,http://opendatacommunities.org/id/metropolitan-district-council/walsall,WC108-764,30/09/2019,Childrens,REDACTED,06/09/2019,720.00,74501-MAINTENANCE ALLOWANCE-FOSTER CARERS,Transfer Payments,Transfer Payments,Revenue
Walsall Council,http://opendatacommunities.org/id/metropolitan-district-council/walsall,WC108-765,30/09/2019,Childrens,REDACTED,06/09/2019,860.00,74501-MAINTENANCE ALLOWANCE-FOSTER CARERS,Transfer Payments,Transfer Payments,Revenue
Walsall Council,http://opendatacommunities.org/id/metropolitan-district-council/walsall,WC108-766,30/09/2019,Childrens,REDACTED,06/09/2019,"2,400.00",74508-INTERNAL FOSTER CARERS-CARER FEES,Transfer Payments,Transfer Payments,Revenue
Walsall Council,http://opendatacommunities.org/id/metropolitan-district-council/walsall,WC108-767,30/09/2019,Childrens,REDACTED,06/09/2019,720.00,74501-MAINTENANCE ALLOWANCE-FOSTER CARERS,Transfer Payments,Transfer Payments,Revenue
Walsall Council,http://opendatacommunities.org/id/metropolitan-district-council/walsall,WC108-768,30/09/2019,Childrens,REDACTED,06/09/2019,860.00,74501-MAINTENANCE ALLOWANCE-FOSTER CARERS,Transfer Payments,Transfer Payments,Revenue
Walsall Council,http://opendatacommunities.org/id/metropolitan-district-council/walsall,WC108-769,30/09/2019,Childrens,REDACTED,06/09/2019,"1,600.00",74508-INTERNAL FOSTER CARERS-CARER FEES,Transfer Payments,Transfer Payments,Revenue
Walsall Council,http://opendatacommunities.org/id/metropolitan-district-council/walsall,WC108-770,30/09/2019,Economy & Environment,C P DAVIDSON & SONS LTD,09/09/2019,345.36,60500-GENERAL MATERIALS,Supplies & Services,"Equip,Furniture & Materials",Revenue
Walsall Council,http://opendatacommunities.org/id/metropolitan-district-council/walsall,WC108-771,30/09/2019,Economy & Environment,C P DAVIDSON & SONS LTD,19/09/2019,421.98,60500-GENERAL MATERIALS,Supplies & Services,"Equip,Furniture & Materials",Revenue
Walsall Council,http://opendatacommunities.org/id/metropolitan-district-council/walsall,WC108-772,30/09/2019,Economy & Environment,CADENT GAS LTD,24/09/2019,"3,694.57",01002-PROJECT FEES,Capital,Capital,Capital
Walsall Council,http://opendatacommunities.org/id/metropolitan-district-council/walsall,WC108-773,30/09/2019,Resources and Transformation,CADLINE LTD,23/09/2019,"34,267.50",63800-COMPUTER EQUIPMENT AND SUPPLIES,Supplies & Services,Communications & Computing,Revenue
Walsall Council,http://opendatacommunities.org/id/metropolitan-district-council/walsall,WC108-774,30/09/2019,Childrens,CALCOT SERVICES FOR CHILDREN LTD,06/09/2019,"22,000.00",74036-EXTERNAL RESIDENTIAL CARE-OTH AGENCY PROVISION,Third Party Payments,Private Contractor Fees,Revenue
Walsall Council,http://opendatacommunities.org/id/metropolitan-district-council/walsall,WC108-775,30/09/2019,Adult Social Care,CALDMORE AREA HOUSING ASS LTD,16/09/2019,"2,558.36",73500-RESIDENTIAL,Third Party Payments,Private Contractor Fees,Revenue
Walsall Council,http://opendatacommunities.org/id/metropolitan-district-council/walsall,WC108-776,30/09/2019,Adult Social Care,CALDMORE AREA HOUSING ASS LTD,16/09/2019,"2,689.52",73500-RESIDENTIAL,Third Party Payments,Private Contractor Fees,Revenue
Walsall Council,http://opendatacommunities.org/id/metropolitan-district-council/walsall,WC108-777,30/09/2019,Adult Social Care,CALDMORE AREA HOUSING ASS LTD,16/09/2019,"2,689.52",73500-RESIDENTIAL,Third Party Payments,Private Contractor Fees,Revenue
Walsall Council,http://opendatacommunities.org/id/metropolitan-district-council/walsall,WC108-778,30/09/2019,Adult Social Care,CALDMORE AREA HOUSING ASS LTD,16/09/2019,"2,689.52",73500-RESIDENTIAL,Third Party Payments,Private Contractor Fees,Revenue
Walsall Council,http://opendatacommunities.org/id/metropolitan-district-council/walsall,WC108-779,30/09/2019,Adult Social Care,CALDMORE AREA HOUSING ASS LTD,16/09/2019,"2,689.52",73500-RESIDENTIAL,Third Party Payments,Private Contractor Fees,Revenue
Walsall Council,http://opendatacommunities.org/id/metropolitan-district-council/walsall,WC108-780,30/09/2019,Childrens,CALDMORE PRIMARY ACADEMY,01/09/2019,"4,576.16",66502-TOP UP FUNDING -GRANTS TO SCHOOLS,Third Party Payments,Grants to Other Orgs,Revenue
Walsall Council,http://opendatacommunities.org/id/metropolitan-district-council/walsall,WC108-781,30/09/2019,Childrens,CALDMORE PRIMARY ACADEMY,01/09/2019,"36,540.00",66505-OTHER-GRANTS TO OTHER ORGS,Third Party Payments,Grants to Other Orgs,Revenue
Walsall Council,http://opendatacommunities.org/id/metropolitan-district-council/walsall,WC108-782,30/09/2019,Childrens,REDACTED,23/09/2019,375.88,74510-RESIDENTS ORDERS,Third Party Payments,Private Contractor Fees,Revenue
Walsall Council,http://opendatacommunities.org/id/metropolitan-district-council/walsall,WC108-783,30/09/2019,Adult Social Care,REDACTED,06/09/2019,"1,667.60",73506-DIRECT PAYMENT,Third Party Payments,Private Contractor Fees,Revenue
Walsall Council,http://opendatacommunities.org/id/metropolitan-district-council/walsall,WC108-784,30/09/2019,Childrens,CAMBIAN CHILDCARE LIMITED,06/09/2019,"9,642.86",74036-EXTERNAL RESIDENTIAL CARE-OTH AGENCY PROVISION,Third Party Payments,Private Contractor Fees,Revenue
Walsall Council,http://opendatacommunities.org/id/metropolitan-district-council/walsall,WC108-785,30/09/2019,Resources and Transformation,CAMMAX LIMITED,01/09/2019,"9,409.00",63800-COMPUTER EQUIPMENT AND SUPPLIES,Supplies & Services,Communications & Computing,Revenue
Walsall Council,http://opendatacommunities.org/id/metropolitan-district-council/walsall,WC108-786,30/09/2019,Economy & Environment,CANAL & RIVER TRUST,04/09/2019,"1,302.75",43000-RENTS,Premises,Rent,Revenue
Walsall Council,http://opendatacommunities.org/id/metropolitan-district-council/walsall,WC108-787,30/09/2019,Childrens,CAPSTONE FOSTER CARE (SOUTH EAST) LIMITED,06/09/2019,"3,003.12",74037-INDEPENDENT FOSTER CARE-OTH AGENCY PROVISION,Third Party Payments,Private Contractor Fees,Revenue
Walsall Council,http://opendatacommunities.org/id/metropolitan-district-council/walsall,WC108-788,30/09/2019,Adult Social Care,CARE 2 U LIMITED,12/09/2019,394.22,73507-DOMICILIARY CARE,Third Party Payments,Private Contractor Fees,Revenue
Walsall Council,http://opendatacommunities.org/id/metropolitan-district-council/walsall,WC108-789,30/09/2019,Adult Social Care,CARE 2 U LIMITED,12/09/2019,401.52,73507-DOMICILIARY CARE,Third Party Payments,Private Contractor Fees,Revenue
Walsall Council,http://opendatacommunities.org/id/metropolitan-district-council/walsall,WC108-790,30/09/2019,Adult Social Care,CARE 2 U LIMITED,12/09/2019,405.12,73507-DOMICILIARY CARE,Third Party Payments,Private Contractor Fees,Revenue
Walsall Council,http://opendatacommunities.org/id/metropolitan-district-council/walsall,WC108-791,30/09/2019,Adult Social Care,CARE 2 U LIMITED,12/09/2019,420.65,73507-DOMICILIARY CARE,Third Party Payments,Private Contractor Fees,Revenue
Walsall Council,http://opendatacommunities.org/id/metropolitan-district-council/walsall,WC108-792,30/09/2019,Adult Social Care,CARE 2 U LIMITED,12/09/2019,473.16,73507-DOMICILIARY CARE,Third Party Payments,Private Contractor Fees,Revenue
Walsall Council,http://opendatacommunities.org/id/metropolitan-district-council/walsall,WC108-793,30/09/2019,Adult Social Care,CARE 2 U LIMITED,12/09/2019,592.70,73507-DOMICILIARY CARE,Third Party Payments,Private Contractor Fees,Revenue
Walsall Council,http://opendatacommunities.org/id/metropolitan-district-council/walsall,WC108-794,30/09/2019,Adult Social Care,CARE 2 U LIMITED,12/09/2019,608.26,73507-DOMICILIARY CARE,Third Party Payments,Private Contractor Fees,Revenue
